Local authority department which incurred the expenditure,Service Division,Cost Centre,Summary of the Purpose of Expenditure,Expense Type,Expense Code,Detailed Expense Type,Date of Transaction,Transaction Number,Beneficiary,Merchant Category Number,Merchant Category,Gross Amount,VAT,Net Amount
Regeneration Economy and Growth,Culture Sport and Tourism,030712,VCD - Project Delivery,Supplies and Services,384199,Miscellaneous Expenses,01-Dec-2022,000010431220271,ECARDWIDGET.COM,5734,Other hired and contracted services,2.21,0.00,2.21
Children and Young Peoples Services,Head of Early Help Inclusion & Vulnerable Children.,085956,Lumley,Supplies and Services,328041,Clothing uniforms and laundry E328,01-Dec-2022,000010431220435,SPORTSDIRECT.COM,5655,Clothing uniforms and laundry,62.98,0.00,62.98
Regeneration Economy and Growth,Planning & Housing,031634,LOCAL LETTINGS AGENCY,Supplies and Services,308011,Furniture,01-Dec-2022,000010436941849,STANLEY MARKET HALL CA,5713,Furniture repair and replacement,312.40,0.00,312.40
Children and Young Peoples Services,Head of Education and Skills,071801,Selby Cottage Childcare Centre,Supplies and Services,324117,Provisions E324,01-Dec-2022,000010436941851,TESCO STORES 2278,5411,Catering costs - provisions,79.57,0.00,79.57
Children and Young Peoples Services,Head of Education and Skills,075034,Youth Futures Foundation,Transport,235057,Public Transport,01-Dec-2022,000010436941867,WWW.GONORTHEAST.CO.UK,4111,Staff travelling,25.00,0.00,25.00
Children and Young Peoples Services,Head of Education and Skills,075034,Youth Futures Foundation,Transport,235057,Public Transport,01-Dec-2022,000010436941869,WWW.GONORTHEAST.CO.UK,4111,Staff travelling,25.00,0.00,25.00
Children and Young Peoples Services,Head of Education and Skills,075034,Youth Futures Foundation,Transport,235057,Public Transport,01-Dec-2022,000010436941871,WWW.GONORTHEAST.CO.UK,4111,Staff travelling,25.00,0.00,25.00
Children and Young Peoples Services,Head of Childrens Social Care,085341,High Etherley Satelite Home,Supplies and Services,324117,Provisions E324,01-Dec-2022,000010436941875,TESCO STORES 6329,5411,Catering costs - provisions,10.07,0.00,10.07
Resources BK0010,Procurement Sales & Business Services,065504,Business Support - Meadowfield,Supplies and Services,304259,Equipment and Materials,01-Dec-2022,000010436941879,Samsung UK,5732,Equipment-purchase and rental,45.00,0.00,45.00
Children and Young Peoples Services,Head of Childrens Social Care,085342,16 Hickstead Rise (previously 9 Cedar Ave),Transport,215995,Running Costs of Vehicles,01-Dec-2022,000010436941889,WOODHAM SERVICES,5541,Vehicle running expenses,50.01,0.00,50.01
Children and Young Peoples Services,Head of Childrens Social Care,085342,16 Hickstead Rise (previously 9 Cedar Ave),Supplies and Services,324117,Provisions E324,01-Dec-2022,000010436941891,TESCO STORES 2916,5411,Catering costs - provisions,97.28,0.00,97.28
Children and Young Peoples Services,Head of Childrens Social Care,085342,16 Hickstead Rise (previously 9 Cedar Ave),Supplies and Services,324117,Provisions E324,01-Dec-2022,000010436941893,TESCO STORES 2916,5411,Catering costs - provisions,6.00,0.00,6.00
Regeneration Economy and Growth,Culture Sport and Tourism,054966,Gala Theatre - Gala Productions,Supplies and Services,338047,Services,01-Dec-2022,000010436941895,MARK SG ENTERPRISES,7372,Direct production costs,135.95,0.00,135.95
Regeneration Economy and Growth,Culture Sport and Tourism,054212,Stanley Library,Supplies and Services,304252,Equipment and Materials,01-Dec-2022,000010436941897,Barriers Direct,5399,Equipment-repairsserviceinsurance,88.92,0.00,88.92
Regeneration Economy and Growth,Culture Sport and Tourism,054604,Seven Hills Spennymoor,Supplies and Services,340001,Postages E340,01-Dec-2022,000010436941899,QUADIENT UK LTD,5111,Postages,200.00,0.00,200.00
Children and Young Peoples Services,Head of Childrens Social Care,085334,West Rainton Satelite Home,Supplies and Services,328041,Clothing uniforms and laundry E328,01-Dec-2022,000010436941937,ARGOS LTD,5310,Clothing uniforms and laundry,145.95,0.00,145.95
Children and Young Peoples Services,Head of Childrens Social Care,085334,West Rainton Satelite Home,Supplies and Services,304403,Equipment and Materials,01-Dec-2022,000010436941939,WWW.NYMR.CO.UK,5947,Other consumables,120.00,0.00,120.00
Regeneration Economy and Growth,Economic Development Level C,030771,Durham Advance Flexible Fund,Supplies and Services,304403,Equipment and Materials,01-Dec-2022,000010436941941,AMZNMKTPLACE AMAZON.CO,5999,Other consumables,6.35,1.06,5.29
Regeneration Economy and Growth,Economic Development Level C,030771,Durham Advance Flexible Fund,Supplies and Services,304403,Equipment and Materials,01-Dec-2022,000010436941943,AMZNMKTPLACE AMAZON.CO,5999,Other consumables,3.98,0.66,3.32
Neighbourhoods and Climate Change,Environmental Services,031200,North Pennines Core,Supplies and Services,304221,Equipment and Materials,01-Dec-2022,000010436941961,WWW.SCREWFIX.COM,5211,Direct materials,89.98,15.00,74.98
Neighbourhoods and Climate Change,Environmental Services,010367,C&G - South Grounds Maintenance,Supplies and Services,304403,Equipment and Materials,01-Dec-2022,000010436941971,MAXWELLS DIY,5231,Other consumables,10.00,1.67,8.33
Children and Young Peoples Services,Head of Childrens Social Care,085624,Families First Crook and Barnard Castle,Supplies and Services,364301,Grants to Voluntary Organisations,01-Dec-2022,000010436941977,ARGOS LTD,5310,Hardship,65.00,0.00,65.00
Children and Young Peoples Services,Head of Childrens Social Care,085624,Families First Crook and Barnard Castle,Supplies and Services,364301,Grants to Voluntary Organisations,01-Dec-2022,000010436941979,HOME BARGAINS,5251,Hardship,19.01,0.00,19.01
Children and Young Peoples Services,Head of Childrens Social Care,085331,New Lea Childrens Home,Supplies and Services,324117,Provisions E324,01-Dec-2022,000010436941981,ASDA SUPERSTORE,5411,Catering costs - provisions,11.00,0.00,11.00
Neighbourhoods and Climate Change,Environmental Services,010367,C&G - South Grounds Maintenance,Supplies and Services,304403,Equipment and Materials,01-Dec-2022,000010436942027,TIMPSON LTD,5999,Other consumables,48.00,0.00,48.00
Children and Young Peoples Services,Head of Childrens Social Care,085358,Orchard House Sacriston Solo Home,Supplies and Services,304999,Equipment and Materials,01-Dec-2022,000010436942045,SUPERDRUG STORES PLC,5912,Misc equipment tools and materials,21.21,0.00,21.21
Children and Young Peoples Services,Head of Childrens Social Care,085358,Orchard House Sacriston Solo Home,Supplies and Services,384999,Miscellaneous Expenses,01-Dec-2022,000010436942047,THE PERFUME SHOP,5977,Other expenses,66.99,0.00,66.99
Adult and Health Services,Head of Adults,055302,Durham Pathways,Supplies and Services,304403,Equipment and Materials,01-Dec-2022,000010436942053,AMZNMktplace,5999,Other consumables,26.24,4.37,21.87
Neighbourhoods and Climate Change,Environmental Services,011060,C&G - Hardwick Park Catering,Supplies and Services,324117,Provisions E324,01-Dec-2022,000010436942063,Fruugo.com,5311,Catering costs - provisions,39.57,0.00,39.57
Children and Young Peoples Services,Head of Education and Skills,071801,Selby Cottage Childcare Centre,Supplies and Services,324117,Provisions E324,01-Dec-2022,000010436942065,B&M 519 - CONSETT,5399,Catering costs - provisions,42.09,0.00,42.09
Children and Young Peoples Services,Head of Education and Skills,071801,Selby Cottage Childcare Centre,Supplies and Services,324117,Provisions E324,01-Dec-2022,000010436942067,WM MORRISONS STORE,5411,Catering costs - provisions,39.50,0.00,39.50
Children and Young Peoples Services,Head of Childrens Social Care,085333,Coxhoe Satelite Home,Transport,235057,Public Transport,01-Dec-2022,000010436942069,WWW.GONORTHEAST.CO.UK,4111,Staff travelling,5.70,0.00,5.70
Children and Young Peoples Services,Head of Childrens Social Care,085333,Coxhoe Satelite Home,Transport,235057,Public Transport,01-Dec-2022,000010436942071,WWW.GONORTHEAST.CO.UK,4111,Staff travelling,5.70,0.00,5.70
Children and Young Peoples Services,Head of Childrens Social Care,085333,Coxhoe Satelite Home,Transport,235057,Public Transport,01-Dec-2022,000010436942073,WWW.GONORTHEAST.CO.UK,4111,Staff travelling,5.70,0.00,5.70
Children and Young Peoples Services,Head of Childrens Social Care,085333,Coxhoe Satelite Home,Transport,235057,Public Transport,01-Dec-2022,000010436942075,WWW.GONORTHEAST.CO.UK,4111,Staff travelling,5.70,0.00,5.70
Children and Young Peoples Services,Head of Childrens Social Care,085333,Coxhoe Satelite Home,Transport,235057,Public Transport,01-Dec-2022,000010436942077,WWW.GONORTHEAST.CO.UK,4111,Staff travelling,5.70,0.00,5.70
Children and Young Peoples Services,Head of Childrens Social Care,085333,Coxhoe Satelite Home,Transport,235057,Public Transport,01-Dec-2022,000010436942079,WWW.GONORTHEAST.CO.UK,4111,Staff travelling,5.70,0.00,5.70
Children and Young Peoples Services,Head of Childrens Social Care,085333,Coxhoe Satelite Home,Supplies and Services,304403,Equipment and Materials,01-Dec-2022,000010436942081,AMZNMktplace,5999,Other consumables,15.94,0.00,15.94
Children and Young Peoples Services,Head of Childrens Social Care,085333,Coxhoe Satelite Home,Supplies and Services,304403,Equipment and Materials,01-Dec-2022,000010436942083,CEX LTD,5065,Other consumables,189.95,0.00,189.95
Children and Young Peoples Services,Head of Childrens Social Care,085333,Coxhoe Satelite Home,Supplies and Services,304403,Equipment and Materials,01-Dec-2022,000010436942085,AMZNMKTPLACE AMAZON.CO,5999,Other consumables,29.99,0.00,29.99
Children and Young Peoples Services,Head of Childrens Social Care,085333,Coxhoe Satelite Home,Supplies and Services,342033,Computers and Communications,01-Dec-2022,000010436942087,WWW.STUDIO.CO.UK,5964,Computer hardware,97.49,0.00,97.49
Children and Young Peoples Services,Head of Early Help Inclusion & Vulnerable Children.,085957,Secure Management,Supplies and Services,304403,Equipment and Materials,01-Dec-2022,000010436942107,AMZNMktplace,5999,Other consumables,29.97,0.00,29.97
Children and Young Peoples Services,Head of Early Help Inclusion & Vulnerable Children.,085957,Secure Management,Supplies and Services,304403,Equipment and Materials,01-Dec-2022,000010436942109,AMZNMktplace,5999,Other consumables,18.99,3.17,15.82
Children and Young Peoples Services,Head of Early Help Inclusion & Vulnerable Children.,085957,Secure Management,Supplies and Services,304403,Equipment and Materials,01-Dec-2022,000010436942111,AMZNMktplace,5999,Other consumables,52.64,8.78,43.86
Children and Young Peoples Services,Head of Early Help Inclusion & Vulnerable Children.,085957,Secure Management,Supplies and Services,304403,Equipment and Materials,01-Dec-2022,000010436942113,AMZNMktplace,5999,Other consumables,24.62,4.10,20.52
Children and Young Peoples Services,Head of Childrens Social Care,085364,Children Looked After Team 1,Transport,235057,Public Transport,01-Dec-2022,000010436942125,Oyster Online,4112,Staff travelling,57.00,0.00,57.00
Children and Young Peoples Services,Head of Early Help Inclusion & Vulnerable Children.,085957,Secure Management,Supplies and Services,304259,Equipment and Materials,01-Dec-2022,000010436942127,Amazon MP3,5735,Equipment-purchase and rental,0.68,0.00,0.68
Children and Young Peoples Services,Head of Early Help Inclusion & Vulnerable Children.,085957,Secure Management,Supplies and Services,304403,Equipment and Materials,01-Dec-2022,000010436942129,AMZNMktplace,5999,Other consumables,3.88,0.65,3.23
Children and Young Peoples Services,Head of Early Help Inclusion & Vulnerable Children.,085957,Secure Management,Supplies and Services,304403,Equipment and Materials,01-Dec-2022,000010436942131,AMZNMktplace,5999,Other consumables,6.99,1.17,5.82
Children and Young Peoples Services,Head of Early Help Inclusion & Vulnerable Children.,085957,Secure Management,Supplies and Services,304403,Equipment and Materials,01-Dec-2022,000010436942133,AMZNMktplace,5999,Other consumables,4.80,0.00,4.80
Children and Young Peoples Services,Head of Early Help Inclusion & Vulnerable Children.,085957,Secure Management,Supplies and Services,304403,Equipment and Materials,01-Dec-2022,000010436942135,AMZNMktplace,5999,Other consumables,10.24,1.71,8.53
Children and Young Peoples Services,Head of Early Help Inclusion & Vulnerable Children.,085957,Secure Management,Supplies and Services,324117,Provisions E324,01-Dec-2022,000010436942137,TESCO STORES 6329,5411,Catering costs - provisions,63.88,0.00,63.88
Children and Young Peoples Services,Head of Education and Skills,070169,Durham SSP,Supplies and Services,304999,Equipment and Materials,01-Dec-2022,000010436942147,Microsoft Subscription,5816,Misc equipment tools and materials,7.99,1.33,6.66
Neighbourhoods and Climate Change,Environmental Services,010367,C&G - South Grounds Maintenance,Supplies and Services,304221,Equipment and Materials,01-Dec-2022,000010436942149,SCREWFIX DIR LTD,5211,Direct materials,5.21,0.00,5.21
Neighbourhoods and Climate Change,Community Protection,011293,Horden Making Every Adult Matter (MEAM),Transport,235057,Public Transport,01-Dec-2022,000010436942153,BOOKING #2987283,4121,Staff travelling,7.80,0.00,7.80
Neighbourhoods and Climate Change,Environmental Services,031238,North Pennines - Tees Swale,Supplies and Services,304259,Equipment and Materials,01-Dec-2022,000010436942157,MANOMANO,5722,Equipment-purchase and rental,33.97,0.00,33.97
Neighbourhoods and Climate Change,Environmental Services,031238,North Pennines - Tees Swale,Supplies and Services,324117,Provisions E324,01-Dec-2022,000010436942159,MARKS&SPENCER PLC,5411,Catering costs - provisions,50.00,0.00,50.00
Children and Young Peoples Services,Head of Childrens Social Care,085332,Middlestone Moor CU,Supplies and Services,348037,Subsistence E348,01-Dec-2022,000010436942189,VMS ROADCHEF COSTA,5814,Subsistence,7.80,0.00,7.80
Children and Young Peoples Services,Head of Childrens Social Care,085351,Framwellgate Moor CU,Supplies and Services,328041,Clothing uniforms and laundry E328,01-Dec-2022,000010436942191,"W.BOYES & CO.,LIMITED",5311,Clothing uniforms and laundry,20.99,0.00,20.99
Adult and Health Services,Head of Adults,055643,Hawthorn House LD Respite Unit,Supplies and Services,304403,Equipment and Materials,01-Dec-2022,000010436942259,AMZNMktplace,5999,Other consumables,25.00,4.17,20.83
Regeneration Economy and Growth,Business Durham CL0850,030672,Operations Team,Supplies and Services,348037,Subsistence E348,01-Dec-2022,000010436942269,FINBARR`S,5812,Subsistence,221.74,0.00,221.74
Children and Young Peoples Services,Head of Childrens Social Care,085347,Solo Home The Manse,Supplies and Services,304403,Equipment and Materials,01-Dec-2022,000010436942287,AMZNMktplace,5999,Other consumables,25.48,0.00,25.48
Neighbourhoods and Climate Change,Partnerships & Community Engagement Div.,060700,Civil Contingencies Unit 060700,Supplies and Services,304403,Equipment and Materials,01-Dec-2022,000010436942357,AMZNBusiness 1I8EG5YN4,5999,Other consumables,151.84,25.32,126.52
Neighbourhoods and Climate Change,Partnerships & Community Engagement Div.,060700,Civil Contingencies Unit 060700,Supplies and Services,304403,Equipment and Materials,01-Dec-2022,000010436942359,AMZNMKTPLACE AMAZON.CO,5999,Other consumables,148.41,24.75,123.66
Neighbourhoods and Climate Change,Partnerships & Community Engagement Div.,060700,Civil Contingencies Unit 060700,Supplies and Services,304403,Equipment and Materials,01-Dec-2022,000010436942361,AMZNMKTPLACE AMAZON.CO,5999,Other consumables,164.90,27.50,137.40
Neighbourhoods and Climate Change,Partnerships & Community Engagement Div.,060700,Civil Contingencies Unit 060700,Supplies and Services,304403,Equipment and Materials,01-Dec-2022,000010436942363,AMZNBusiness 1W20A7CM4,5999,Other consumables,341.64,56.97,284.67
Neighbourhoods and Climate Change,Partnerships & Community Engagement Div.,060530,3 Towns AAP,Supplies and Services,304403,Equipment and Materials,01-Dec-2022,000010436942371,AMZNMKTPLACE AMAZON.CO,5999,Other consumables,44.98,7.50,37.48
Resources BK0010,Procurement Sales & Business Services,065502,Business Support - Crook,Supplies and Services,304403,Equipment and Materials,01-Dec-2022,000010436942379,AMZNBusiness 1I9ST8YA4,5999,Other consumables,46.98,0.00,46.98
Resources BK0010,Procurement Sales & Business Services,065502,Business Support - Crook,Supplies and Services,308011,Furniture,01-Dec-2022,000010436942381,IKEA LTD SHOP ONLINE,5712,Furniture repair and replacement,34.00,0.00,34.00
Resources BK0010,Procurement Sales & Business Services,065502,Business Support - Crook,Supplies and Services,384999,Miscellaneous Expenses,01-Dec-2022,000010436942383,BAKER ROSS,5970,Other expenses,43.65,0.00,43.65
Resources BK0010,Procurement Sales & Business Services,065502,Business Support - Crook,Supplies and Services,324117,Provisions E324,01-Dec-2022,000010436942385,ASDA GEORGE COM LEEDS,5411,Catering costs - provisions,30.45,0.00,30.45
Resources BK0010,Digital Services,065335,School Services - Implementations,Supplies and Services,304259,Equipment and Materials,01-Dec-2022,000010436942395,Connect Distribution S,5722,Equipment-purchase and rental,118.15,0.00,118.15
Resources BK0010,Digital Services,065335,School Services - Implementations,Supplies and Services,344033,Telephones,01-Dec-2022,000010436942397,NETS Zandgroup AB,4812,Telephones general-all costs,70.22,0.00,70.22
Resources BK0010,Digital Services,065335,School Services - Implementations,Supplies and Services,304259,Equipment and Materials,01-Dec-2022,000010436942399,REPLACEBASE,5732,Equipment-purchase and rental,132.19,0.00,132.19
Resources BK0010,Digital Services,065335,School Services - Implementations,Supplies and Services,304999,Equipment and Materials,01-Dec-2022,000010436942401,RJHFINISHING.CO.UK,5251,Misc equipment tools and materials,66.94,0.00,66.94
Regeneration Economy and Growth,Economic Development Level C,030771,Durham Advance Flexible Fund,Transport,235057,Public Transport,01-Dec-2022,000010436942409,WALKERGATE CAR PAR,7523,Staff travelling,3.10,0.52,2.58
Children and Young Peoples Services,Head of Early Help Inclusion & Vulnerable Children.,085965,Barnard,Transfer Payments,515002,Social Services Clients,01-Dec-2022,000010436942411,JD SPORTS INTERNET,5941,Pocket money,21.99,0.00,21.99
Dedicated Schools Grant BG0015,DSG High Needs Block,079040,HNB Management and support,Supplies and Services,304403,Equipment and Materials,01-Dec-2022,000010436942413,AMZNMktplace,5999,Other consumables,4.98,0.83,4.15
Regeneration Economy and Growth,Business Durham CL0850,030671,Business Space 030671,Supplies and Services,324117,Provisions E324,01-Dec-2022,000010436942455,ASDA SUPERSTORE,5411,Catering costs - provisions,10.75,0.00,10.75
Children and Young Peoples Services,Head of Childrens Social Care,085333,Coxhoe Satelite Home,Supplies and Services,324117,Provisions E324,01-Dec-2022,000010436942469,SAINSBURY`S S/MKT,5411,Catering costs - provisions,97.01,0.00,97.01
Regeneration Economy and Growth,Culture Sport and Tourism,011263,Louisa Centre 011263,Supplies and Services,304259,Equipment and Materials,01-Dec-2022,000010436942519,Decathlon UK Limited,5941,Equipment-purchase and rental,95.68,0.00,95.68
Regeneration Economy and Growth,Culture Sport and Tourism,011263,Louisa Centre 011263,Supplies and Services,304221,Equipment and Materials,01-Dec-2022,000010436942521,WWW.SCREWFIX.COM,5211,Direct materials,129.99,0.00,129.99
Children and Young Peoples Services,Head of Early Help Inclusion & Vulnerable Children.,088107,Wheatley Hill & N. Aycliffe Family Centre,Supplies and Services,324117,Provisions E324,01-Dec-2022,000010436942523,ASDA GROCERIES ONLINE,5411,Catering costs - provisions,37.95,0.00,37.95
Children and Young Peoples Services,Head of Early Help Inclusion & Vulnerable Children.,088107,Wheatley Hill & N. Aycliffe Family Centre,Supplies and Services,324117,Provisions E324,01-Dec-2022,000010436942525,ASDA GROCERIES ONLINE,5411,Catering costs - provisions,-2.15,0.00,-2.15
Children and Young Peoples Services,Head of Early Help Inclusion & Vulnerable Children.,088107,Wheatley Hill & N. Aycliffe Family Centre,Supplies and Services,324117,Provisions E324,01-Dec-2022,000010436942527,ASDA GROCERIES ONLINE,5411,Catering costs - provisions,-0.55,0.00,-0.55
Regeneration Economy and Growth,Culture Sport and Tourism,054233,Bishop Auckland Town Hall Library,Supplies and Services,324117,Provisions E324,01-Dec-2022,000010436942535,HERON FOODS,5411,Catering costs - provisions,15.80,0.00,15.80
Regeneration Economy and Growth,Culture Sport and Tourism,054233,Bishop Auckland Town Hall Library,Supplies and Services,324117,Provisions E324,01-Dec-2022,000010436942537,ASDA STORES,5411,Catering costs - provisions,19.20,0.00,19.20
Children and Young Peoples Services,Head of Childrens Social Care,085331,New Lea Childrens Home,Supplies and Services,304259,Equipment and Materials,01-Dec-2022,000010436942543,JD SPORTS INTERNET,5941,Equipment-purchase and rental,184.00,0.00,184.00
Children and Young Peoples Services,Head of Childrens Social Care,085331,New Lea Childrens Home,Transport,215995,Running Costs of Vehicles,01-Dec-2022,000010436942545,CHESTER ROAD SERVICE S,5541,Vehicle running expenses,74.99,0.00,74.99
Children and Young Peoples Services,Head of Childrens Social Care,085331,New Lea Childrens Home,Transport,215995,Running Costs of Vehicles,01-Dec-2022,000010436942547,CHESTER ROAD SERVICE S,5541,Vehicle running expenses,3.98,0.00,3.98
Children and Young Peoples Services,Head of Childrens Social Care,085331,New Lea Childrens Home,Supplies and Services,384999,Miscellaneous Expenses,01-Dec-2022,000010436942565,Amazon.co.uk 1W6VV3CC4,5969,Other expenses,1.29,0.22,1.07
Resources BK0010,Procurement Sales & Business Services,065501,Business Support - Executive Support,Supplies and Services,304403,Equipment and Materials,01-Dec-2022,000010436942567,AMZNMktplace,5999,Other consumables,7.99,1.33,6.66
Resources BK0010,Procurement Sales & Business Services,065501,Business Support - Executive Support,Supplies and Services,304403,Equipment and Materials,01-Dec-2022,000010436942569,AMZNMktplace,5999,Other consumables,232.94,38.82,194.12
Resources BK0010,Procurement Sales & Business Services,065501,Business Support - Executive Support,Supplies and Services,304403,Equipment and Materials,01-Dec-2022,000010436942571,AMZNMktplace,5999,Other consumables,16.99,2.83,14.16
Resources BK0010,Procurement Sales & Business Services,065501,Business Support - Executive Support,Supplies and Services,304259,Equipment and Materials,01-Dec-2022,000010436942573,DISCLOSURE AND BARRING,9399,Equipment-purchase and rental,18.00,0.00,18.00
Resources BK0010,Procurement Sales & Business Services,065500,Business Support - Management,Supplies and Services,336005,Advertising E336,01-Dec-2022,000010436942585,Google ADS8772529636,7311,Advertising other than for staff,247.17,0.00,247.17
Resources BK0010,Procurement Sales & Business Services,065500,Business Support - Management,Supplies and Services,336005,Advertising E336,01-Dec-2022,000010436942587,LINKEDIN-851 5185344,7311,Advertising other than for staff,22.01,0.00,22.01
Neighbourhoods and Climate Change,Environmental Services,031200,North Pennines Core,Supplies and Services,304403,Equipment and Materials,01-Dec-2022,000010436942607,SAFELINCS,5999,Other consumables,277.55,0.00,277.55
Regeneration Economy and Growth,Economic Development Level C,030554,International Relations 030554,Supplies and Services,352001,Conference Expenses,01-Dec-2022,000010436942619,Hotel at Booking.com,7011,Conferencesseminars fees etc,49.00,0.00,49.00
Regeneration Economy and Growth,Economic Development Level C,030554,International Relations 030554,Supplies and Services,352001,Conference Expenses,01-Dec-2022,000010436942621,Hotel at Booking.com,7011,Conferencesseminars fees etc,232.00,0.00,232.00
Regeneration Economy and Growth,Economic Development Level C,030554,International Relations 030554,Supplies and Services,352001,Conference Expenses,01-Dec-2022,000010436942623,Hotel at Booking.com,7011,Conferencesseminars fees etc,232.00,0.00,232.00
Regeneration Economy and Growth,Economic Development Level C,030554,International Relations 030554,Transport,235057,Public Transport,01-Dec-2022,000010436942625,UBER TRIP,4121,Staff travelling,43.28,0.00,43.28
Regeneration Economy and Growth,Economic Development Level C,030554,International Relations 030554,Transport,235057,Public Transport,01-Dec-2022,000010436942627,UBER TRIP,4121,Staff travelling,44.55,0.00,44.55
Regeneration Economy and Growth,Corporate Property and Land,010525,Catering - Green Lane,Supplies and Services,324117,Provisions E324,01-Dec-2022,000010437010287,HOPWELLS LTD,5811,Catering costs - provisions,67.97,0.00,67.97
Regeneration Economy and Growth,Corporate Property and Land,011275,Catering -Durham Leadership Centre,Supplies and Services,324117,Provisions E324,01-Dec-2022,000010437010291,HOPWELLS LTD,5811,Catering costs - provisions,104.06,0.00,104.06
Regeneration Economy and Growth,Corporate Property and Land,011275,Catering -Durham Leadership Centre,Supplies and Services,324117,Provisions E324,01-Dec-2022,000010437010293,JR HOLLAND FOODSERVICE,5499,Catering costs - provisions,50.25,0.00,50.25
Regeneration Economy and Growth,Corporate Property and Land,011296,Catering - Dunes,Supplies and Services,324117,Provisions E324,01-Dec-2022,000010437010295,HOPWELLS LTD,5811,Catering costs - provisions,102.35,0.00,102.35
Regeneration Economy and Growth,Corporate Property and Land,011296,Catering - Dunes,Supplies and Services,324117,Provisions E324,01-Dec-2022,000010437010297,HOPWELLS LTD,5811,Catering costs - provisions,264.22,0.00,264.22
Regeneration Economy and Growth,Corporate Property and Land,011296,Catering - Dunes,Supplies and Services,324117,Provisions E324,01-Dec-2022,000010437010299,HOPWELLS LTD,5811,Catering costs - provisions,-12.55,0.00,-12.55
Regeneration Economy and Growth,Corporate Property and Land,030691,Catering - Durham Dales Centre,Supplies and Services,324117,Provisions E324,01-Dec-2022,000010437010301,HOPWELLS LTD,5811,Catering costs - provisions,238.11,0.00,238.11
Regeneration Economy and Growth,Corporate Property and Land,030691,Catering - Durham Dales Centre,Supplies and Services,324117,Provisions E324,01-Dec-2022,000010437010303,JR HOLLAND FOODSERVICE,5499,Catering costs - provisions,168.03,0.00,168.03
Regeneration Economy and Growth,Culture Sport and Tourism,054235,Bishop Auckland Town Hall Cafe,Supplies and Services,324117,Provisions E324,01-Dec-2022,000010437010305,HOPWELLS LTD,5811,Catering costs - provisions,321.11,0.00,321.11
Regeneration Economy and Growth,Culture Sport and Tourism,054235,Bishop Auckland Town Hall Cafe,Supplies and Services,324117,Provisions E324,01-Dec-2022,000010437010307,JR HOLLAND FOODSERVICE,5499,Catering costs - provisions,283.80,0.00,283.80
Neighbourhoods and Climate Change,Environmental Services,011060,C&G - Hardwick Park Catering,Supplies and Services,324117,Provisions E324,01-Dec-2022,000010437010309,JR HOLLAND FOODSERVICE,5499,Catering costs - provisions,95.11,0.00,95.11
Regeneration Economy and Growth,Corporate Property and Land,021234,Catering - Locomotion,Supplies and Services,324117,Provisions E324,01-Dec-2022,000010437010311,HOPWELLS LTD,5811,Catering costs - provisions,73.61,0.00,73.61
Regeneration Economy and Growth,Corporate Property and Land,021234,Catering - Locomotion,Supplies and Services,324117,Provisions E324,01-Dec-2022,000010437010313,HOPWELLS LTD,5811,Catering costs - provisions,289.73,0.00,289.73
Regeneration Economy and Growth,Corporate Property and Land,021234,Catering - Locomotion,Supplies and Services,324117,Provisions E324,01-Dec-2022,000010437010315,JR HOLLAND FOODSERVICE,5499,Catering costs - provisions,60.82,0.00,60.82
Regeneration Economy and Growth,Corporate Property and Land,021235,Catering - Wharton Park,Supplies and Services,324117,Provisions E324,01-Dec-2022,000010437010317,HOPWELLS LTD,5811,Catering costs - provisions,136.39,0.00,136.39
Regeneration Economy and Growth,Culture Sport and Tourism,054812,Gala Theatre - Catering etc,Supplies and Services,324117,Provisions E324,01-Dec-2022,000010437010319,HOPWELLS LTD,5811,Catering costs - provisions,112.40,0.00,112.40
Regeneration Economy and Growth,Culture Sport and Tourism,054812,Gala Theatre - Catering etc,Supplies and Services,324117,Provisions E324,01-Dec-2022,000010437010321,JR HOLLAND FOODSERVICE,5499,Catering costs - provisions,38.91,0.00,38.91
Regeneration Economy and Growth,Corporate Property and Land,021242,Catering - County Hall,Supplies and Services,324117,Provisions E324,01-Dec-2022,000010437010323,HOPWELLS LTD,5811,Catering costs - provisions,81.72,0.00,81.72
Regeneration Economy and Growth,Corporate Property and Land,021242,Catering - County Hall,Supplies and Services,324117,Provisions E324,01-Dec-2022,000010437010325,HOPWELLS LTD,5811,Catering costs - provisions,193.86,0.00,193.86
Regeneration Economy and Growth,Corporate Property and Land,021324,Catering - Meadowfield,Supplies and Services,324117,Provisions E324,01-Dec-2022,000010437010327,HOPWELLS LTD,5811,Catering costs - provisions,98.30,0.00,98.30
Regeneration Economy and Growth,Culture Sport and Tourism,054775,Durham Town Hall 054775,Supplies and Services,304259,Equipment and Materials,01-Dec-2022,000010444289611,AMZNBUSINESS 1W61E2FJ4,5999,Equipment-purchase and rental,9.79,1.63,8.16
Neighbourhoods and Climate Change,Environmental Services,031200,North Pennines Core,Supplies and Services,324117,Provisions E324,01-Dec-2022,000010444289755,ALDI 11 774,5411,Catering costs - provisions,12.52,0.00,12.52
Children and Young Peoples Services,Head of Childrens Social Care,085511,Emergency Duty Team,Employees,040149,Recruitment Instruction and Training,01-Dec-2022,000010444289855,PREMIER INN,3811,Training-all costs,57.80,0.00,57.80
Children and Young Peoples Services,Head of Childrens Social Care,085511,Emergency Duty Team,Employees,040149,Recruitment Instruction and Training,01-Dec-2022,000010444289857,PREMIER INN,3811,Training-all costs,70.50,0.00,70.50
Children and Young Peoples Services,Head of Childrens Social Care,085358,Orchard House Sacriston Solo Home,Supplies and Services,328041,Clothing uniforms and laundry E328,01-Dec-2022,000010444289955,PRIMARK 670 GATESHEAD,5651,Clothing uniforms and laundry,166.90,0.00,166.90
Neighbourhoods and Climate Change,Environmental Services,010301,C&G - North Grounds Maintenance,Supplies and Services,304999,Equipment and Materials,01-Dec-2022,000010444290109,ROPE SERVICES UK,5251,Misc equipment tools and materials,135.00,0.00,135.00
Children and Young Peoples Services,Head of Childrens Social Care,085551,Short Break Services-Park Hse Sher,Supplies and Services,324117,Provisions E324,01-Dec-2022,000010444290321,ALDI,5411,Catering costs - provisions,10.06,0.00,10.06
Adult and Health Services,Head of Adults,055310,Positive Journeys (Tudhoe),Supplies and Services,324117,Provisions E324,01-Dec-2022,000010444291197,ALDI 32 774,5411,Catering costs - provisions,1.65,0.00,1.65
Regeneration Economy and Growth,Planning & Housing,031576,B& B - Temp Accom,Supplies and Services,364320,Grants to Voluntary Organisations,01-Dec-2022,000010444291205,Roadchef Durham,7011,Accommodation assistance,30.00,0.00,30.00
Regeneration Economy and Growth,Economic Development Level C,030554,International Relations 030554,Supplies and Services,352001,Conference Expenses,01-Dec-2022,000010444291207,Roadchef Durham,7011,Conferencesseminars fees etc,7.50,0.00,7.50
Regeneration Economy and Growth,Corporate Property and Land,011296,Catering - Dunes,Supplies and Services,324117,Provisions E324,01-Dec-2022,000010444398345,BATLEYS PERTH,5300,Catering costs - provisions,66.19,11.03,55.16
Neighbourhoods and Climate Change,Environmental Services,011060,C&G - Hardwick Park Catering,Supplies and Services,324117,Provisions E324,01-Dec-2022,000010444398355,BATLEYS PERTH,5300,Catering costs - provisions,222.06,37.01,185.05
Neighbourhoods and Climate Change,Environmental Services,011060,C&G - Hardwick Park Catering,Supplies and Services,324117,Provisions E324,01-Dec-2022,000010444398355 - 1,BATLEYS PERTH,5300,Catering costs - provisions,358.81,,358.81
Regeneration Economy and Growth,Corporate Property and Land,021242,Catering - County Hall,Supplies and Services,324117,Provisions E324,01-Dec-2022,000010444398365,BATLEYS PERTH,5300,Catering costs - provisions,194.94,32.49,162.45
Regeneration Economy and Growth,Corporate Property and Land,021242,Catering - County Hall,Supplies and Services,324117,Provisions E324,01-Dec-2022,000010444398365 - 1,BATLEYS PERTH,5300,Catering costs - provisions,142.51,,142.51
Children and Young Peoples Services,Head of Education and Skills,071801,Selby Cottage Childcare Centre,Supplies and Services,304403,Equipment and Materials,02-Dec-2022,000010436941853,AMZNMktplace,5999,Other consumables,14.96,2.50,12.46
Children and Young Peoples Services,Head of Education and Skills,075034,Youth Futures Foundation,Supplies and Services,304403,Equipment and Materials,02-Dec-2022,000010436941873,AMZNBusiness 1W5ND9N24,5999,Other consumables,147.00,0.00,147.00
Regeneration Economy and Growth,Business Durham CL0850,030689,Inward Investment and Aftercare,Supplies and Services,304403,Equipment and Materials,02-Dec-2022,000010444289423,ADOBE CREATIVE CLOUD,5734,Other consumables,51.98,0.00,51.98
Dedicated Schools Grant BG0015,DSG Schools Block,417603,Greenfield Community College 004176 - English,Supplies and Services,304403,Equipment and Materials,02-Dec-2022,000010444289471,AMZNMktplace,5999,Other consumables,17.84,2.97,14.87
Regeneration Economy and Growth,Planning & Housing,031500,Housing Solutions - Core,Supplies and Services,352001,Conference Expenses,02-Dec-2022,000010444289483,Roadchef Durham,7011,Conferencesseminars fees etc,15.00,0.00,15.00
Regeneration Economy and Growth,Planning & Housing,031500,Housing Solutions - Core,Supplies and Services,352001,Conference Expenses,02-Dec-2022,000010444289485,Roadchef Durham,7011,Conferencesseminars fees etc,7.50,0.00,7.50
Children and Young Peoples Services,Head of Education and Skills,075034,Youth Futures Foundation,Transport,235057,Public Transport,02-Dec-2022,000010444289493,WWW.GONORTHEAST.CO.UK,4111,Staff travelling,4.70,0.00,4.70
Children and Young Peoples Services,Head of Education and Skills,075034,Youth Futures Foundation,Transport,235057,Public Transport,02-Dec-2022,000010444289495,WWW.GONORTHEAST.CO.UK,4111,Staff travelling,4.70,0.00,4.70
Children and Young Peoples Services,Head of Education and Skills,075034,Youth Futures Foundation,Transport,235057,Public Transport,02-Dec-2022,000010444289499,ARRIVA UK BUS,4131,Staff travelling,23.00,0.00,23.00
Children and Young Peoples Services,Head of Education and Skills,075034,Youth Futures Foundation,Supplies and Services,304221,Equipment and Materials,02-Dec-2022,000010444289503,WWW.SCREWFIX.COM,5211,Direct materials,121.94,0.00,121.94
Children and Young Peoples Services,Head of Education and Skills,075034,Youth Futures Foundation,Supplies and Services,304221,Equipment and Materials,02-Dec-2022,000010444289507,WWW.SCREWFIX.COM,5211,Direct materials,44.98,0.00,44.98
Children and Young Peoples Services,Head of Education and Skills,075034,Youth Futures Foundation,Supplies and Services,304221,Equipment and Materials,02-Dec-2022,000010444289511,WWW.SCREWFIX.COM,5211,Direct materials,66.57,0.00,66.57
Children and Young Peoples Services,Head of Education and Skills,075034,Youth Futures Foundation,Supplies and Services,304403,Equipment and Materials,02-Dec-2022,000010444289515,AMZNMktplace,5999,Other consumables,24.55,0.00,24.55
Children and Young Peoples Services,Head of Childrens Social Care,085341,High Etherley Satelite Home,Supplies and Services,324117,Provisions E324,02-Dec-2022,000010444289521,TESCO STORES 6329,5411,Catering costs - provisions,4.00,0.00,4.00
Children and Young Peoples Services,Head of Childrens Social Care,085341,High Etherley Satelite Home,Supplies and Services,324117,Provisions E324,02-Dec-2022,000010444289525,TESCO STORES 6329,5411,Catering costs - provisions,9.50,0.00,9.50
Children and Young Peoples Services,Head of Childrens Social Care,085341,High Etherley Satelite Home,Supplies and Services,324117,Provisions E324,02-Dec-2022,000010444289527,TESCO STORES 6329,5411,Catering costs - provisions,6.30,0.00,6.30
Children and Young Peoples Services,Head of Childrens Social Care,085341,High Etherley Satelite Home,Supplies and Services,324117,Provisions E324,02-Dec-2022,000010444289533,TESCO STORES 6329,5411,Catering costs - provisions,10.00,0.00,10.00
Children and Young Peoples Services,Head of Childrens Social Care,085347,Solo Home The Manse,Supplies and Services,304403,Equipment and Materials,02-Dec-2022,000010444289577,AMZNMktplace,5999,Other consumables,22.94,0.00,22.94
Neighbourhoods and Climate Change,Environmental Services,010383,C&G - South Street Cleansing,Supplies and Services,304221,Equipment and Materials,02-Dec-2022,000010444289593,CARRS BILLINGTON SPENN,5599,Direct materials,45.36,0.00,45.36
Regeneration Economy and Growth,Culture Sport and Tourism,054798,dli Museum - WW1 Education Programme,Supplies and Services,304259,Equipment and Materials,02-Dec-2022,000010444289601,SP ECOM UK,5734,Equipment-purchase and rental,27.79,0.00,27.79
Regeneration Economy and Growth,Culture Sport and Tourism,054108,Durham Clayport Library,Supplies and Services,304252,Equipment and Materials,02-Dec-2022,000010444289607,AMZNMKTPLACE AMAZON.CO,5999,Equipment-repairsserviceinsurance,12.18,2.03,10.15
Regeneration Economy and Growth,Culture Sport and Tourism,054820,Gala Theatre - Overheads,Supplies and Services,304252,Equipment and Materials,02-Dec-2022,000010444289615,AMZNMktplace,5999,Equipment-repairsserviceinsurance,5.99,1.00,4.99
Regeneration Economy and Growth,Culture Sport and Tourism,030712,VCD - Project Delivery,Supplies and Services,384199,Miscellaneous Expenses,02-Dec-2022,000010444289643,MAILCHIMP MISC,5968,Other hired and contracted services,292.16,0.00,292.16
Children and Young Peoples Services,Head of Childrens Social Care,085332,Middlestone Moor CU,Supplies and Services,324117,Provisions E324,02-Dec-2022,000010444289691,TESCO STORES 2371,5411,Catering costs - provisions,215.73,0.00,215.73
Children and Young Peoples Services,Head of Education and Skills,054640,Durham Learning Resources 054640,Supplies and Services,304403,Equipment and Materials,02-Dec-2022,000010444289759,AMZNMKTPLACE AMAZON.CO,5999,Other consumables,12.82,2.14,10.68
Regeneration Economy and Growth,Corporate Property and Land,021242,Catering - County Hall,Supplies and Services,324117,Provisions E324,02-Dec-2022,000010444289847,LIDL GB HARTLEPOOL,5411,Catering costs - provisions,15.99,0.00,15.99
Children and Young Peoples Services,Head of Childrens Social Care,085342,16 Hickstead Rise (previously 9 Cedar Ave),Supplies and Services,348037,Subsistence E348,02-Dec-2022,000010444289977,GRETNA GREEN HOTEL,5813,Subsistence,22.95,0.00,22.95
Children and Young Peoples Services,Head of Childrens Social Care,085342,16 Hickstead Rise (previously 9 Cedar Ave),Supplies and Services,348037,Subsistence E348,02-Dec-2022,000010444289979,GRETNA GREEN HOTEL,5813,Subsistence,10.73,0.00,10.73
Adult and Health Services,Head of Adults,055302,Durham Pathways,Supplies and Services,384999,Miscellaneous Expenses,02-Dec-2022,000010444290009,CRICUT,5970,Other expenses,449.99,75.00,374.99
Regeneration Economy and Growth,Culture Sport and Tourism,054967,Theatre - Technical Staffing,Supplies and Services,304999,Equipment and Materials,02-Dec-2022,000010444290019,SPOTIFY,5815,Misc equipment tools and materials,9.99,0.00,9.99
Children and Young Peoples Services,Head of Education and Skills,071801,Selby Cottage Childcare Centre,Supplies and Services,324117,Provisions E324,02-Dec-2022,000010444290045,ASDA SUPERSTORE,5411,Catering costs - provisions,3.20,0.00,3.20
Children and Young Peoples Services,Head of Childrens Social Care,085333,Coxhoe Satelite Home,Supplies and Services,348037,Subsistence E348,02-Dec-2022,000010444290051,EAST DURHAM COLLEGE,5814,Subsistence,5.30,0.00,5.30
Children and Young Peoples Services,Head of Childrens Social Care,085333,Coxhoe Satelite Home,Supplies and Services,348037,Subsistence E348,02-Dec-2022,000010444290055,FIVE QUARTER,5812,Subsistence,14.10,0.00,14.10
Children and Young Peoples Services,Head of Childrens Social Care,085333,Coxhoe Satelite Home,Supplies and Services,348037,Subsistence E348,02-Dec-2022,000010444290059,FIVE QUARTER,5812,Subsistence,4.25,0.00,4.25
Children and Young Peoples Services,Head of Childrens Social Care,085341,High Etherley Satelite Home,Supplies and Services,324117,Provisions E324,02-Dec-2022,000010444290071,ASDA STORES,5411,Catering costs - provisions,74.86,0.00,74.86
Children and Young Peoples Services,Head of Early Help Inclusion & Vulnerable Children.,085957,Secure Management,Supplies and Services,304403,Equipment and Materials,02-Dec-2022,000010444290157,AMZNMktplace,5999,Other consumables,9.98,0.00,9.98
Children and Young Peoples Services,Head of Early Help Inclusion & Vulnerable Children.,085957,Secure Management,Supplies and Services,324117,Provisions E324,02-Dec-2022,000010444290159,TESCO STORES 6329,5411,Catering costs - provisions,93.74,0.00,93.74
Children and Young Peoples Services,Head of Early Help Inclusion & Vulnerable Children.,085957,Secure Management,Supplies and Services,304403,Equipment and Materials,02-Dec-2022,000010444290161,AMZNMktplace,5999,Other consumables,2.99,0.50,2.49
Children and Young Peoples Services,Head of Childrens Social Care,085342,16 Hickstead Rise (previously 9 Cedar Ave),Supplies and Services,348037,Subsistence E348,02-Dec-2022,000010444290227,GRETNA GREEN HOTEL,5813,Subsistence,5.90,0.00,5.90
Children and Young Peoples Services,Head of Childrens Social Care,085342,16 Hickstead Rise (previously 9 Cedar Ave),Supplies and Services,348037,Subsistence E348,02-Dec-2022,000010444290231,GRETNA GREEN HOTEL,5813,Subsistence,11.87,0.00,11.87
Regeneration Economy and Growth,Economic Development Level C,030554,International Relations 030554,Supplies and Services,324117,Provisions E324,02-Dec-2022,000010444290369,ALDI 24 774,5411,Catering costs - provisions,5.67,0.00,5.67
Regeneration Economy and Growth,Corporate Property and Land,020041,Bldg Serv - Business Development - General,Transport,235057,Public Transport,02-Dec-2022,000010444290499,MIDDLESBROUGH COUNCIL,9399,Staff travelling,10.80,1.80,9.00
Regeneration Economy and Growth,Corporate Property and Land,020041,Bldg Serv - Business Development - General,Transport,215995,Running Costs of Vehicles,02-Dec-2022,000010444290503,MEADOWFIELD FILLING ST,5541,Vehicle running expenses,39.61,6.60,33.01
Neighbourhoods and Climate Change,Partnerships & Community Engagement Div.,060700,Civil Contingencies Unit 060700,Supplies and Services,304403,Equipment and Materials,02-Dec-2022,000010444290585,AMZNMktplace,5999,Other consumables,781.26,130.50,650.76
Children and Young Peoples Services,Head of Childrens Social Care,085334,West Rainton Satelite Home,Supplies and Services,324117,Provisions E324,02-Dec-2022,000010444290595,TESCO STORES 2371,5411,Catering costs - provisions,28.35,0.00,28.35
Children and Young Peoples Services,Head of Childrens Social Care,085334,West Rainton Satelite Home,Supplies and Services,324117,Provisions E324,02-Dec-2022,000010444290599,ALDI 12 774,5411,Catering costs - provisions,136.88,0.00,136.88
Children and Young Peoples Services,Head of Childrens Social Care,085334,West Rainton Satelite Home,Supplies and Services,324117,Provisions E324,02-Dec-2022,000010444290603,TESCO STORES 2371,5411,Catering costs - provisions,-1.50,0.00,-1.50
Regeneration Economy and Growth,Business Durham CL0850,030671,Business Space 030671,Supplies and Services,348037,Subsistence E348,02-Dec-2022,000010444290771,SumUp Burnopfield Cr,5813,Subsistence,243.00,0.00,243.00
Children and Young Peoples Services,Head of Education and Skills,071802,Louisa Cent Nursery,Supplies and Services,324117,Provisions E324,02-Dec-2022,000010444290785,ASDA GROCERIES ONLINE,5411,Catering costs - provisions,180.21,0.00,180.21
Children and Young Peoples Services,Head of Education and Skills,071802,Louisa Cent Nursery,Supplies and Services,324117,Provisions E324,02-Dec-2022,000010444290791,ASDA SUPERSTORE,5411,Catering costs - provisions,35.45,0.00,35.45
Children and Young Peoples Services,Head of Education and Skills,071802,Louisa Cent Nursery,Supplies and Services,324117,Provisions E324,02-Dec-2022,000010444290795,ASDA GROCERIES ONLINE,5411,Catering costs - provisions,-1.38,0.00,-1.38
Children and Young Peoples Services,Head of Education and Skills,071802,Louisa Cent Nursery,Supplies and Services,324117,Provisions E324,02-Dec-2022,000010444290797,ASDA GROCERIES ONLINE,5411,Catering costs - provisions,-2.22,0.00,-2.22
Neighbourhoods and Climate Change,Environmental Services,031200,North Pennines Core,Supplies and Services,342033,Computers and Communications,02-Dec-2022,000010444290833,SendinBlue,7372,Computer hardware,23.00,0.00,23.00
Children and Young Peoples Services,Head of Early Help Inclusion & Vulnerable Children.,085962,Aycliffe Secure - Durham,Supplies and Services,304403,Equipment and Materials,02-Dec-2022,000010444290899,AMZNMKTPLACE AMAZON.CO,5999,Other consumables,19.87,3.31,16.56
Regeneration Economy and Growth,Culture Sport and Tourism,054233,Bishop Auckland Town Hall Library,Supplies and Services,324117,Provisions E324,02-Dec-2022,000010444290907,HERON FOODS,5411,Catering costs - provisions,7.38,0.00,7.38
Children and Young Peoples Services,Head of Childrens Social Care,085331,New Lea Childrens Home,Supplies and Services,304999,Equipment and Materials,02-Dec-2022,000010444290921,HOME BARGAINS,5251,Misc equipment tools and materials,7.41,0.00,7.41
Children and Young Peoples Services,Head of Childrens Social Care,085331,New Lea Childrens Home,Supplies and Services,324117,Provisions E324,02-Dec-2022,000010444290923,ASDA SUPERSTORE,5411,Catering costs - provisions,37.05,0.00,37.05
Regeneration Economy and Growth,Culture Sport and Tourism,010664,Freemans Quay Leisure Centre,Supplies and Services,304403,Equipment and Materials,02-Dec-2022,000010444290989,AMZNMktplace,5999,Other consumables,44.95,0.00,44.95
Children and Young Peoples Services,Head of Childrens Social Care,085334,West Rainton Satelite Home,Supplies and Services,324117,Provisions E324,02-Dec-2022,000010444290995,STARBUCKS THINFORD,5499,Catering costs - provisions,9.80,0.00,9.80
Resources BK0010,Procurement Sales & Business Services,065501,Business Support - Executive Support,Supplies and Services,304403,Equipment and Materials,02-Dec-2022,000010444291021,AMZNMktplace,5999,Other consumables,34.66,5.78,28.88
Children and Young Peoples Services,Head of Childrens Social Care,085341,High Etherley Satelite Home,Supplies and Services,304403,Equipment and Materials,02-Dec-2022,000010444291085,AMZNMKTPLACE AMAZON.CO,5999,Other consumables,23.99,0.00,23.99
Children and Young Peoples Services,Head of Childrens Social Care,085551,Short Break Services-Park Hse Sher,Supplies and Services,324117,Provisions E324,02-Dec-2022,000010444291139,TESCO STORES 2371,5411,Catering costs - provisions,149.45,0.00,149.45
Children and Young Peoples Services,Head of Childrens Social Care,085551,Short Break Services-Park Hse Sher,Supplies and Services,324117,Provisions E324,02-Dec-2022,000010444291141,ALDI 12 774,5411,Catering costs - provisions,0.65,0.00,0.65
Children and Young Peoples Services,Head of Childrens Social Care,085551,Short Break Services-Park Hse Sher,Supplies and Services,304403,Equipment and Materials,02-Dec-2022,000010444291145,WWW.PARTYDELIGHTS.CO.U,5947,Other consumables,37.73,0.00,37.73
Children and Young Peoples Services,Head of Childrens Social Care,085397,Regionalisation of Adoption,Supplies and Services,308011,Furniture,02-Dec-2022,000010444291165,THE RANGE,5719,Furniture repair and replacement,15.70,0.00,15.70
Children and Young Peoples Services,Head of Childrens Social Care,085397,Regionalisation of Adoption,Supplies and Services,324117,Provisions E324,02-Dec-2022,000010444291169,ASDA SUPERSTORE,5411,Catering costs - provisions,5.00,0.00,5.00
Children and Young Peoples Services,Head of Childrens Social Care,085397,Regionalisation of Adoption,Supplies and Services,324117,Provisions E324,02-Dec-2022,000010444291171,TESCO STORES 2562,5411,Catering costs - provisions,6.65,0.00,6.65
Children and Young Peoples Services,Head of Childrens Social Care,085397,Regionalisation of Adoption,Supplies and Services,308011,Furniture,02-Dec-2022,000010444291173,IKEA LTD 143 GATESHEAD,5712,Furniture repair and replacement,5.50,0.00,5.50
Children and Young Peoples Services,Head of Childrens Social Care,085397,Regionalisation of Adoption,Supplies and Services,308011,Furniture,02-Dec-2022,000010444291177,IKEA LTD 143 GATESHEAD,5712,Furniture repair and replacement,6.50,0.00,6.50
Regeneration Economy and Growth,Business Durham CL0850,030694,Plexus 2,Supplies and Services,324117,Provisions E324,02-Dec-2022,000010444291187,SP VENDING SUPERSTOR,5411,Catering costs - provisions,30.84,0.00,30.84
Regeneration Economy and Growth,Economic Development Level C,030554,International Relations 030554,Supplies and Services,352001,Conference Expenses,02-Dec-2022,000010444291209,Hotel at Booking.com,7011,Conferencesseminars fees etc,188.10,0.00,188.10
Regeneration Economy and Growth,Economic Development Level C,030554,International Relations 030554,Employees,040149,Recruitment Instruction and Training,02-Dec-2022,000010444291213,PREMIER INN,3811,Training-all costs,310.65,0.00,310.65
Regeneration Economy and Growth,Economic Development Level C,030554,International Relations 030554,Employees,040149,Recruitment Instruction and Training,02-Dec-2022,000010444291215,PREMIER INN,3811,Training-all costs,203.60,0.00,203.60
Regeneration Economy and Growth,Economic Development Level C,030554,International Relations 030554,Employees,040149,Recruitment Instruction and Training,02-Dec-2022,000010444291219,PREMIER INN,3811,Training-all costs,200.20,0.00,200.20
Regeneration Economy and Growth,Economic Development Level C,030554,International Relations 030554,Employees,040149,Recruitment Instruction and Training,02-Dec-2022,000010444291223,PREMIER INN,3811,Training-all costs,200.20,0.00,200.20
Regeneration Economy and Growth,Corporate Property and Land,011275,Catering -Durham Leadership Centre,Supplies and Services,324117,Provisions E324,02-Dec-2022,000010444398343,JR HOLLAND FOODSERVICE,5499,Catering costs - provisions,-4.24,0.00,-4.24
Regeneration Economy and Growth,Corporate Property and Land,011296,Catering - Dunes,Supplies and Services,324117,Provisions E324,02-Dec-2022,000010444398347,JR HOLLAND FOODSERVICE,5499,Catering costs - provisions,90.59,0.00,90.59
Regeneration Economy and Growth,Corporate Property and Land,011296,Catering - Dunes,Supplies and Services,324117,Provisions E324,02-Dec-2022,000010444398349,JR HOLLAND FOODSERVICE,5499,Catering costs - provisions,12.80,0.00,12.80
Regeneration Economy and Growth,Corporate Property and Land,030691,Catering - Durham Dales Centre,Supplies and Services,324117,Provisions E324,02-Dec-2022,000010444398353,JR HOLLAND FOODSERVICE,5499,Catering costs - provisions,-12.50,0.00,-12.50
Regeneration Economy and Growth,Culture Sport and Tourism,011263,Louisa Centre 011263,Supplies and Services,324117,Provisions E324,02-Dec-2022,000010444398357,JR HOLLAND FOODSERVICE,5499,Catering costs - provisions,42.55,0.00,42.55
Regeneration Economy and Growth,Culture Sport and Tourism,011263,Louisa Centre 011263,Supplies and Services,324117,Provisions E324,02-Dec-2022,000010444398359,JR HOLLAND FOODSERVICE,5499,Catering costs - provisions,105.72,0.00,105.72
Regeneration Economy and Growth,Culture Sport and Tourism,054812,Gala Theatre - Catering etc,Supplies and Services,324117,Provisions E324,02-Dec-2022,000010444398363,JR HOLLAND FOODSERVICE,5499,Catering costs - provisions,64.72,0.00,64.72
Regeneration Economy and Growth,Corporate Property and Land,021242,Catering - County Hall,Supplies and Services,324117,Provisions E324,02-Dec-2022,000010444398367,JR HOLLAND FOODSERVICE,5499,Catering costs - provisions,11.20,0.00,11.20
Regeneration Economy and Growth,Business Durham CL0850,030689,Inward Investment and Aftercare,Supplies and Services,342222,Computers and Communications,02-Dec-2022,000010452683053,FASTHOSTS,4816,Comp hardware purch-network servers,75.06,0.00,75.06
Regeneration Economy and Growth,Planning & Housing,031623,Rough Sleeping,Supplies and Services,304259,Equipment and Materials,02-Dec-2022,000010452683535,WAKEFIELD MDC INT,9399,Equipment-purchase and rental,37.50,0.00,37.50
Regeneration Economy and Growth,Corporate Property and Land,010525,Catering - Green Lane,Supplies and Services,324117,Provisions E324,02-Dec-2022,000010452792377,BATLEYS PERTH,5300,Catering costs - provisions,158.16,26.36,131.80
Regeneration Economy and Growth,Corporate Property and Land,010525,Catering - Green Lane,Supplies and Services,324117,Provisions E324,02-Dec-2022,000010452792377 - 1,BATLEYS PERTH,5300,Catering costs - provisions,67.18,,67.18
Regeneration Economy and Growth,Planning & Housing,031500,Housing Solutions - Core,Supplies and Services,352001,Conference Expenses,03-Dec-2022,000010444289489,Roadchef Durham,7011,Conferencesseminars fees etc,7.50,0.00,7.50
Children and Young Peoples Services,Head of Childrens Social Care,085342,16 Hickstead Rise (previously 9 Cedar Ave),Supplies and Services,324117,Provisions E324,03-Dec-2022,000010444289545,TESCO STORES 2916,5411,Catering costs - provisions,4.00,0.00,4.00
Children and Young Peoples Services,Head of Childrens Social Care,085342,16 Hickstead Rise (previously 9 Cedar Ave),Supplies and Services,348037,Subsistence E348,03-Dec-2022,000010444289547,MCDONALD`S,5812,Subsistence,2.98,0.00,2.98
Children and Young Peoples Services,Head of Childrens Social Care,085341,High Etherley Satelite Home,Supplies and Services,324117,Provisions E324,03-Dec-2022,000010444289561,TESCO STORES 6329,5411,Catering costs - provisions,3.60,0.00,3.60
Regeneration Economy and Growth,Culture Sport and Tourism,054108,Durham Clayport Library,Supplies and Services,304252,Equipment and Materials,03-Dec-2022,000010444289619,AMZNMktplace,5999,Equipment-repairsserviceinsurance,6.99,1.17,5.82
Regeneration Economy and Growth,Culture Sport and Tourism,054798,dli Museum - WW1 Education Programme,Supplies and Services,304259,Equipment and Materials,03-Dec-2022,000010444289625,AMZNMktplace,5999,Equipment-purchase and rental,7.99,1.33,6.66
Regeneration Economy and Growth,Culture Sport and Tourism,030712,VCD - Project Delivery,Supplies and Services,384199,Miscellaneous Expenses,03-Dec-2022,000010444289647,FACEBK JCQNUKTQH2,7311,Other hired and contracted services,82.29,0.00,82.29
Regeneration Economy and Growth,Culture Sport and Tourism,030705,Visit County Durham 030705,Supplies and Services,304259,Equipment and Materials,03-Dec-2022,000010444289649,FASTHOSTS,4816,Equipment-purchase and rental,7.54,1.26,6.28
Children and Young Peoples Services,Head of Childrens Social Care,085342,16 Hickstead Rise (previously 9 Cedar Ave),Supplies and Services,304403,Equipment and Materials,03-Dec-2022,000010444289663,MAX SPIELMANN LTD,5999,Other consumables,9.00,0.00,9.00
Children and Young Peoples Services,Head of Childrens Social Care,085342,16 Hickstead Rise (previously 9 Cedar Ave),Supplies and Services,324117,Provisions E324,03-Dec-2022,000010444289667,TESCO STORES 6329,5411,Catering costs - provisions,34.41,0.00,34.41
Children and Young Peoples Services,Head of Childrens Social Care,085342,16 Hickstead Rise (previously 9 Cedar Ave),Supplies and Services,348037,Subsistence E348,03-Dec-2022,000010444289671,MCDONALD`S,5812,Subsistence,12.00,0.00,12.00
Neighbourhoods and Climate Change,Environmental Services,010367,C&G - South Grounds Maintenance,Supplies and Services,304221,Equipment and Materials,03-Dec-2022,000010444289909,TOOLSTATION LTD,5211,Direct materials,66.20,11.03,55.17
Adult and Health Services,Head of Adults,055302,Durham Pathways,Supplies and Services,304403,Equipment and Materials,03-Dec-2022,000010444290013,AMZNMKTPLACE AMAZON.CO,5999,Other consumables,6.74,1.12,5.62
Children and Young Peoples Services,Head of Childrens Social Care,085333,Coxhoe Satelite Home,Supplies and Services,308011,Furniture,03-Dec-2022,000010444290063,THE RANGE,5719,Furniture repair and replacement,-148.96,0.00,-148.96
Children and Young Peoples Services,Head of Childrens Social Care,085347,Solo Home The Manse,Supplies and Services,328041,Clothing uniforms and laundry E328,03-Dec-2022,000010444290129,NEW LOOK MCOMM,5621,Clothing uniforms and laundry,40.57,0.00,40.57
Children and Young Peoples Services,Head of Childrens Social Care,085347,Solo Home The Manse,Supplies and Services,348037,Subsistence E348,03-Dec-2022,000010444290131,HILL TOP,5813,Subsistence,15.67,0.00,15.67
Children and Young Peoples Services,Head of Early Help Inclusion & Vulnerable Children.,085957,Secure Management,Supplies and Services,324117,Provisions E324,03-Dec-2022,000010444290165,TESCO STORES 6329,5411,Catering costs - provisions,103.44,0.00,103.44
Children and Young Peoples Services,Head of Childrens Social Care,085341,High Etherley Satelite Home,Supplies and Services,304403,Equipment and Materials,03-Dec-2022,000010444290331,AMZNMktplace,5999,Other consumables,54.90,9.15,45.75
Children and Young Peoples Services,Head of Childrens Social Care,085341,High Etherley Satelite Home,Supplies and Services,328041,Clothing uniforms and laundry E328,03-Dec-2022,000010444290335,InfiniteAir,7996,Clothing uniforms and laundry,19.90,0.00,19.90
Regeneration Economy and Growth,Economic Development Level C,030554,International Relations 030554,Transport,235057,Public Transport,03-Dec-2022,000010444290373,WALKERGATE CAR PAR,7523,Staff travelling,9.50,0.00,9.50
Regeneration Economy and Growth,Corporate Property and Land,011001,FM-Civic Bldgs-Green Lane Council Offices Spennymoor,Supplies and Services,304403,Equipment and Materials,03-Dec-2022,000010444290591,AMZNMktplace,5999,Other consumables,11.99,2.00,9.99
Children and Young Peoples Services,Head of Education and Skills,070007,School and Governor Support Unit,Supplies and Services,304999,Equipment and Materials,03-Dec-2022,000010444290611,VMO Vimeo PRO,5968,Misc equipment tools and materials,189.00,0.00,189.00
Children and Young Peoples Services,Head of Early Help Inclusion & Vulnerable Children.,085801,CDYJS - Support,Supplies and Services,304403,Equipment and Materials,03-Dec-2022,000010444290773,AMZNMktplace,5999,Other consumables,4.98,0.83,4.15
Children and Young Peoples Services,Head of Early Help Inclusion & Vulnerable Children.,085801,CDYJS - Support,Supplies and Services,304403,Equipment and Materials,03-Dec-2022,000010444290773 - 1,AMZNMktplace,5999,Other consumables,7.20,,7.20
Children and Young Peoples Services,Head of Childrens Social Care,085347,Solo Home The Manse,Supplies and Services,348037,Subsistence E348,03-Dec-2022,000010444290801,HILL TOP,5813,Subsistence,42.01,0.00,42.01
Regeneration Economy and Growth,Economic Development Level C,030554,International Relations 030554,Transport,235057,Public Transport,03-Dec-2022,000010444290843,WALKERGATE CAR PAR,7523,Staff travelling,9.50,0.00,9.50
Children and Young Peoples Services,Head of Childrens Social Care,085331,New Lea Childrens Home,Supplies and Services,304403,Equipment and Materials,03-Dec-2022,000010444290925,AMZNMktplace,5999,Other consumables,26.97,0.00,26.97
Children and Young Peoples Services,Head of Childrens Social Care,085331,New Lea Childrens Home,Supplies and Services,324117,Provisions E324,03-Dec-2022,000010444290927,B&M 388 - METRO,5399,Catering costs - provisions,99.39,0.00,99.39
Children and Young Peoples Services,Head of Childrens Social Care,085331,New Lea Childrens Home,Supplies and Services,324117,Provisions E324,03-Dec-2022,000010444290929,MR PRETZELS (UK) RETAI,5499,Catering costs - provisions,5.95,0.00,5.95
Children and Young Peoples Services,Head of Childrens Social Care,085331,New Lea Childrens Home,Supplies and Services,304999,Equipment and Materials,03-Dec-2022,000010444290931,HOME BARGAINS,5251,Misc equipment tools and materials,19.52,0.00,19.52
Children and Young Peoples Services,Head of Childrens Social Care,085331,New Lea Childrens Home,Supplies and Services,328041,Clothing uniforms and laundry E328,03-Dec-2022,000010444290933,PRIMARK 670 GATESHEAD,5651,Clothing uniforms and laundry,157.60,0.00,157.60
Children and Young Peoples Services,Head of Childrens Social Care,085331,New Lea Childrens Home,Supplies and Services,328041,Clothing uniforms and laundry E328,03-Dec-2022,000010444290943,MATALAN.CO.UK,5691,Clothing uniforms and laundry,22.85,0.00,22.85
Children and Young Peoples Services,Head of Childrens Social Care,085331,New Lea Childrens Home,Supplies and Services,304403,Equipment and Materials,03-Dec-2022,000010444290947,AMZNMKTPLACE AMAZON.CO,5999,Other consumables,4.99,0.00,4.99
Children and Young Peoples Services,Head of Childrens Social Care,085397,Regionalisation of Adoption,Supplies and Services,328041,Clothing uniforms and laundry E328,03-Dec-2022,000010444291181,POUNDLAND LTD 1597,5310,Clothing uniforms and laundry,2.00,0.00,2.00
Regeneration Economy and Growth,Business Durham CL0850,030694,Plexus 2,Supplies and Services,304403,Equipment and Materials,03-Dec-2022,000010444291191,AMZNMktplace,5999,Other consumables,8.98,0.00,8.98
Children and Young Peoples Services,Head of Education and Skills,071801,Selby Cottage Childcare Centre,Supplies and Services,304403,Equipment and Materials,04-Dec-2022,000010444289447,AMZNMktplace,5999,Other consumables,8.58,1.44,7.14
Children and Young Peoples Services,Head of Education and Skills,071801,Selby Cottage Childcare Centre,Supplies and Services,304403,Equipment and Materials,04-Dec-2022,000010444289453,AMZNMktplace,5999,Other consumables,12.98,2.16,10.82
Children and Young Peoples Services,Head of Childrens Social Care,085341,High Etherley Satelite Home,Supplies and Services,328041,Clothing uniforms and laundry E328,04-Dec-2022,000010444289565,SPORTSDIRECT.COM,5655,Clothing uniforms and laundry,72.99,0.00,72.99
Children and Young Peoples Services,Head of Childrens Social Care,085347,Solo Home The Manse,Supplies and Services,324117,Provisions E324,04-Dec-2022,000010444289583,ALDI STORES 779-104,5411,Catering costs - provisions,32.21,0.00,32.21
Regeneration Economy and Growth,Culture Sport and Tourism,054108,Durham Clayport Library,Supplies and Services,304252,Equipment and Materials,04-Dec-2022,000010444289631,AMZNMKTPLACE AMAZON.CO,5999,Equipment-repairsserviceinsurance,44.99,7.50,37.49
Children and Young Peoples Services,Head of Childrens Social Care,085342,16 Hickstead Rise (previously 9 Cedar Ave),Supplies and Services,308011,Furniture,04-Dec-2022,000010444289901,SANTASPOSTOFFICE.CO.UK,5719,Furniture repair and replacement,8.98,0.00,8.98
Children and Young Peoples Services,Head of Childrens Social Care,085358,Orchard House Sacriston Solo Home,Supplies and Services,344033,Telephones,04-Dec-2022,000010444289961,giffgaff,4814,Telephones general-all costs,10.00,0.00,10.00
Children and Young Peoples Services,Head of Childrens Social Care,085517,Supporting Solutions Service (Edge of Care),Supplies and Services,304403,Equipment and Materials,04-Dec-2022,000010444290073,AMZNBusiness 1W9X82ER4,5999,Other consumables,7.50,0.00,7.50
Children and Young Peoples Services,Head of Childrens Social Care,085517,Supporting Solutions Service (Edge of Care),Supplies and Services,304403,Equipment and Materials,04-Dec-2022,000010444290079,AMZNMKTPLACE AMAZON.CO,5999,Other consumables,6.29,1.05,5.24
Children and Young Peoples Services,Head of Early Help Inclusion & Vulnerable Children.,085957,Secure Management,Supplies and Services,324117,Provisions E324,04-Dec-2022,000010444290169,TESCO STORES 6329,5411,Catering costs - provisions,118.60,0.00,118.60
Children and Young Peoples Services,Head of Early Help Inclusion & Vulnerable Children.,085957,Secure Management,Supplies and Services,328041,Clothing uniforms and laundry E328,04-Dec-2022,000010444290173,Footasylum Limited,5651,Clothing uniforms and laundry,-19.99,0.00,-19.99
Children and Young Peoples Services,Head of Childrens Social Care,085341,High Etherley Satelite Home,Supplies and Services,304403,Equipment and Materials,04-Dec-2022,000010444290337,AMZNMktplace,5999,Other consumables,17.75,2.96,14.79
Children and Young Peoples Services,Head of Childrens Social Care,085341,High Etherley Satelite Home,Supplies and Services,304403,Equipment and Materials,04-Dec-2022,000010444290339,AMZNMktplace,5999,Other consumables,8.49,1.42,7.07
Dedicated Schools Grant BG0015,DSG High Needs Block,079040,HNB Management and support,Supplies and Services,304403,Equipment and Materials,04-Dec-2022,000010444290685,AMZNBUSINESS 1W3F24184,5999,Other consumables,7.44,1.24,6.20
Dedicated Schools Grant BG0015,DSG High Needs Block,079040,HNB Management and support,Supplies and Services,304403,Equipment and Materials,04-Dec-2022,000010444290685 - 1,AMZNBUSINESS 1W3F24184,5999,Other consumables,0.16,,0.16
Children and Young Peoples Services,Head of Childrens Social Care,085347,Solo Home The Manse,Supplies and Services,324117,Provisions E324,04-Dec-2022,000010444290729,CO-OP GROUP 310016,5411,Catering costs - provisions,11.20,0.00,11.20
Children and Young Peoples Services,Head of Childrens Social Care,085331,New Lea Childrens Home,Supplies and Services,384999,Miscellaneous Expenses,04-Dec-2022,000010444290937,Amazon.co.uk 1W2VS4EC4,5969,Other expenses,9.00,0.00,9.00
Children and Young Peoples Services,Head of Childrens Social Care,085331,New Lea Childrens Home,Supplies and Services,304403,Equipment and Materials,04-Dec-2022,000010444290939,AMZNMktplace,5999,Other consumables,23.99,0.00,23.99
Children and Young Peoples Services,Head of Childrens Social Care,085331,New Lea Childrens Home,Supplies and Services,304403,Equipment and Materials,04-Dec-2022,000010444290941,AMZNMktplace,5999,Other consumables,5.69,0.00,5.69
Children and Young Peoples Services,Head of Childrens Social Care,085334,West Rainton Satelite Home,Supplies and Services,308011,Furniture,04-Dec-2022,000010444291001,Dunelm SoftFurnishings,5712,Furniture repair and replacement,90.00,0.00,90.00
Children and Young Peoples Services,Head of Childrens Social Care,085334,West Rainton Satelite Home,Supplies and Services,324117,Provisions E324,04-Dec-2022,000010444291007,TESCO STORES 2371,5411,Catering costs - provisions,115.80,0.00,115.80
Resources BK0010,Procurement Sales & Business Services,065501,Business Support - Executive Support,Supplies and Services,304403,Equipment and Materials,04-Dec-2022,000010444291029,AMZNBusiness 1W1LM8PG4,5999,Other consumables,10.26,1.71,8.55
Resources BK0010,Procurement Sales & Business Services,065500,Business Support - Management,Supplies and Services,304403,Equipment and Materials,04-Dec-2022,000010444291053,AMZNBUSINESS 1W2NA3154,5999,Other consumables,29.97,5.00,24.97
Regeneration Economy and Growth,Economic Development Level C,030554,International Relations 030554,Employees,040149,Recruitment Instruction and Training,04-Dec-2022,000010444291227,PREMIER INN,3811,Training-all costs,-9.50,0.00,-9.50
Children and Young Peoples Services,Head of Early Help Inclusion & Vulnerable Children.,085965,Barnard,Supplies and Services,304259,Equipment and Materials,04-Dec-2022,000010452683903,AMZNMKTPLACE AMAZON.CO,5999,Equipment-purchase and rental,25.98,0.00,25.98
Resources BK0010,Procurement Sales & Business Services,065503,Business Support - Spectrum,Supplies and Services,304999,Equipment and Materials,05-Dec-2022,000010444290693,BOOTS UK ECOMM,5912,Misc equipment tools and materials,"1,360.00",0.00,1360.00
Children and Young Peoples Services,Head of Education and Skills,071801,Selby Cottage Childcare Centre,Supplies and Services,304403,Equipment and Materials,05-Dec-2022,000010452683071,AMZNMktplace,5999,Other consumables,3.98,0.66,3.32
Children and Young Peoples Services,Head of Education and Skills,071801,Selby Cottage Childcare Centre,Supplies and Services,304403,Equipment and Materials,05-Dec-2022,000010452683075,AMZNMktplace,5999,Other consumables,20.00,3.33,16.67
Children and Young Peoples Services,Head of Education and Skills,071801,Selby Cottage Childcare Centre,Supplies and Services,304403,Equipment and Materials,05-Dec-2022,000010452683077,AMZNMktplace,5999,Other consumables,7.90,1.32,6.58
Children and Young Peoples Services,Head of Education and Skills,071801,Selby Cottage Childcare Centre,Supplies and Services,324117,Provisions E324,05-Dec-2022,000010452683079,WILKO RETAIL LIMITED,5399,Catering costs - provisions,24.85,0.00,24.85
Children and Young Peoples Services,Head of Education and Skills,071801,Selby Cottage Childcare Centre,Supplies and Services,324117,Provisions E324,05-Dec-2022,000010452683083,TESCO STORES 2278,5411,Catering costs - provisions,45.60,0.00,45.60
Children and Young Peoples Services,Head of Education and Skills,075034,Youth Futures Foundation,Transport,235057,Public Transport,05-Dec-2022,000010452683107,ARRIVA UK BUS,4131,Staff travelling,16.50,0.00,16.50
Children and Young Peoples Services,Head of Education and Skills,075034,Youth Futures Foundation,Transport,235057,Public Transport,05-Dec-2022,000010452683109,ARRIVA UK BUS,4131,Staff travelling,15.30,0.00,15.30
Children and Young Peoples Services,Head of Education and Skills,075034,Youth Futures Foundation,Transport,235057,Public Transport,05-Dec-2022,000010452683113,ARRIVA UK BUS,4131,Staff travelling,16.50,0.00,16.50
Children and Young Peoples Services,Head of Childrens Social Care,085341,High Etherley Satelite Home,Supplies and Services,348037,Subsistence E348,05-Dec-2022,000010452683119,MCDONALDS,5812,Subsistence,11.78,0.00,11.78
Children and Young Peoples Services,Head of Childrens Social Care,085341,High Etherley Satelite Home,Supplies and Services,304999,Equipment and Materials,05-Dec-2022,000010452683123,HOME BARGAINS,5251,Misc equipment tools and materials,14.68,0.00,14.68
Children and Young Peoples Services,Head of Childrens Social Care,085341,High Etherley Satelite Home,Supplies and Services,328041,Clothing uniforms and laundry E328,05-Dec-2022,000010452683125,JD SPORTS PLC,5941,Clothing uniforms and laundry,35.00,0.00,35.00
Children and Young Peoples Services,Head of Education and Skills,078411,16-19 Education & Training,Transport,235057,Public Transport,05-Dec-2022,000010452683151,WWW.GONORTHEAST.CO.UK,4111,Staff travelling,72.00,0.00,72.00
Children and Young Peoples Services,Head of Education and Skills,078411,16-19 Education & Training,Transport,235057,Public Transport,05-Dec-2022,000010452683155,WWW.GONORTHEAST.CO.UK,4111,Staff travelling,7.80,0.00,7.80
Neighbourhoods and Climate Change,Environmental Services,010383,C&G - South Street Cleansing,Supplies and Services,304221,Equipment and Materials,05-Dec-2022,000010452683161,CARRS BILLINGTON SPENN,5599,Direct materials,76.08,0.00,76.08
Regeneration Economy and Growth,Culture Sport and Tourism,054501,HM Prison Durham,Supplies and Services,304259,Equipment and Materials,05-Dec-2022,000010452683167,4IMPRINT DIRECT LTD,5999,Equipment-purchase and rental,127.74,21.29,106.45
Regeneration Economy and Growth,Culture Sport and Tourism,054308,Shotton Library,Supplies and Services,304252,Equipment and Materials,05-Dec-2022,000010452683171,AMZNMktplace,5999,Equipment-repairsserviceinsurance,5.88,0.98,4.90
Regeneration Economy and Growth,Culture Sport and Tourism,054108,Durham Clayport Library,Supplies and Services,304252,Equipment and Materials,05-Dec-2022,000010452683173,ARGOS LTD,5310,Equipment-repairsserviceinsurance,225.00,37.50,187.50
Regeneration Economy and Growth,Culture Sport and Tourism,054108,Durham Clayport Library,Supplies and Services,304252,Equipment and Materials,05-Dec-2022,000010452683177,ARGOS LTD,5310,Equipment-repairsserviceinsurance,39.95,6.66,33.29
Regeneration Economy and Growth,Culture Sport and Tourism,054308,Shotton Library,Supplies and Services,304252,Equipment and Materials,05-Dec-2022,000010452683181,AMZNMktplace,5999,Equipment-repairsserviceinsurance,7.90,1.32,6.58
Regeneration Economy and Growth,Culture Sport and Tourism,054308,Shotton Library,Supplies and Services,304252,Equipment and Materials,05-Dec-2022,000010452683183,AMZNMktplace,5999,Equipment-repairsserviceinsurance,10.00,1.67,8.33
Regeneration Economy and Growth,Culture Sport and Tourism,030712,VCD - Project Delivery,Supplies and Services,384199,Miscellaneous Expenses,05-Dec-2022,000010452683193,GROSVENOR AND ARROW CA,4121,Other hired and contracted services,103.50,0.00,103.50
Children and Young Peoples Services,Head of Early Help Inclusion & Vulnerable Children.,088105,W/Close and Willington Family Centre,Supplies and Services,384302,Miscellaneous Expenses,05-Dec-2022,000010452683283,MCDONALD`S,5812,Activity expenses,20.76,0.00,20.76
Children and Young Peoples Services,Head of Early Help Inclusion & Vulnerable Children.,088104,BA/BC/Crook Intensive Family Support Team,Supplies and Services,364301,Grants to Voluntary Organisations,05-Dec-2022,000010452683289,ARGOS LTD,5310,Hardship,26.00,4.33,21.67
Regeneration Economy and Growth,Economic Development Level C,030544,Rural Employability - Client Engagement,Transport,235057,Public Transport,05-Dec-2022,000010452683293,PRINCE BISHOP SHOPPING,7523,Staff travelling,3.30,0.00,3.30
Regeneration Economy and Growth,Culture Sport and Tourism,054233,Bishop Auckland Town Hall Library,Supplies and Services,324117,Provisions E324,05-Dec-2022,000010452683299,TESCO STORES 2971,5411,Catering costs - provisions,33.90,0.00,33.90
Children and Young Peoples Services,Head of Childrens Social Care,085342,16 Hickstead Rise (previously 9 Cedar Ave),Supplies and Services,324117,Provisions E324,05-Dec-2022,000010452683409,TESCO STORES 2916,5411,Catering costs - provisions,34.04,0.00,34.04
Children and Young Peoples Services,Head of Childrens Social Care,085342,16 Hickstead Rise (previously 9 Cedar Ave),Supplies and Services,324117,Provisions E324,05-Dec-2022,000010452683413,ALDI 74 774,5411,Catering costs - provisions,22.17,0.00,22.17
Children and Young Peoples Services,Head of Education and Skills,071732,Dean Bank Childcare,Supplies and Services,328041,Clothing uniforms and laundry E328,05-Dec-2022,000010452683431,ARGOS LTD,5310,Clothing uniforms and laundry,45.00,0.00,45.00
Children and Young Peoples Services,Head of Education and Skills,071732,Dean Bank Childcare,Supplies and Services,324117,Provisions E324,05-Dec-2022,000010452683433,ASDA GROCERIES ONLINE,5411,Catering costs - provisions,114.43,0.00,114.43
Adult and Health Services,Head of Adults,055302,Durham Pathways,Supplies and Services,324117,Provisions E324,05-Dec-2022,000010452683437,ALDI STORES,5411,Catering costs - provisions,10.57,0.00,10.57
Adult and Health Services,Head of Adults,055302,Durham Pathways,Supplies and Services,324117,Provisions E324,05-Dec-2022,000010452683439,ALDI STORES,5411,Catering costs - provisions,33.97,0.00,33.97
Children and Young Peoples Services,Head of Education and Skills,071801,Selby Cottage Childcare Centre,Supplies and Services,324117,Provisions E324,05-Dec-2022,000010452683457,TESCO STORES 2278,5411,Catering costs - provisions,9.91,0.00,9.91
Children and Young Peoples Services,Head of Education and Skills,071801,Selby Cottage Childcare Centre,Supplies and Services,328041,Clothing uniforms and laundry E328,05-Dec-2022,000010452683461,THE WORKS,5310,Clothing uniforms and laundry,31.00,0.00,31.00
Children and Young Peoples Services,Head of Education and Skills,071801,Selby Cottage Childcare Centre,Supplies and Services,328041,Clothing uniforms and laundry E328,05-Dec-2022,000010452683463,THE WORKS,5310,Clothing uniforms and laundry,67.00,0.00,67.00
Regeneration Economy and Growth,Business Durham CL0850,030690,Durham Dales Centre - Tourist Information Centre,Supplies and Services,304221,Equipment and Materials,05-Dec-2022,000010452683469,A AND K HOSIERY LTD,5099,Direct materials,382.86,0.00,382.86
Regeneration Economy and Growth,Business Durham CL0850,030690,Durham Dales Centre - Tourist Information Centre,Supplies and Services,304221,Equipment and Materials,05-Dec-2022,000010452683473,A AND K HOSIERY LTD,5099,Direct materials,18.00,0.00,18.00
Children and Young Peoples Services,Head of Childrens Social Care,085341,High Etherley Satelite Home,Supplies and Services,324117,Provisions E324,05-Dec-2022,000010452683477,WILKO RETAIL LIMITED,5399,Catering costs - provisions,36.00,6.00,30.00
Children and Young Peoples Services,Head of Childrens Social Care,085341,High Etherley Satelite Home,Supplies and Services,324117,Provisions E324,05-Dec-2022,000010452683481,774 026,5411,Catering costs - provisions,88.53,0.00,88.53
Children and Young Peoples Services,Head of Childrens Social Care,085517,Supporting Solutions Service (Edge of Care),Supplies and Services,304403,Equipment and Materials,05-Dec-2022,000010452683485,FIRSTAID4LESS.CO.UK,5999,Other consumables,37.08,0.00,37.08
Children and Young Peoples Services,Head of Early Help Inclusion & Vulnerable Children.,085957,Secure Management,Supplies and Services,324117,Provisions E324,05-Dec-2022,000010452683527,TESCO STORES 6329,5411,Catering costs - provisions,93.13,0.00,93.13
Regeneration Economy and Growth,Economic Development Level C,030771,Durham Advance Flexible Fund,Transport,215995,Running Costs of Vehicles,05-Dec-2022,000010452683531,ASDA PETROL UPT 4587,5542,Vehicle running expenses,19.54,3.26,16.28
Regeneration Economy and Growth,Economic Development Level C,030771,Durham Advance Flexible Fund,Transport,235057,Public Transport,05-Dec-2022,000010452683545,WALKERGATE CAR PAR,7523,Staff travelling,2.00,0.33,1.67
Children and Young Peoples Services,Head of Childrens Social Care,085364,Children Looked After Team 1,Supplies and Services,304259,Equipment and Materials,05-Dec-2022,000010452683561,DARLINGTON BOROUGH COU,9399,Equipment-purchase and rental,11.00,0.00,11.00
Children and Young Peoples Services,Head of Education and Skills,070169,Durham SSP,Supplies and Services,328041,Clothing uniforms and laundry E328,05-Dec-2022,000010452683577,KITS 4 ALL,5655,Clothing uniforms and laundry,183.60,30.60,153.00
Children and Young Peoples Services,Head of Childrens Social Care,085342,16 Hickstead Rise (previously 9 Cedar Ave),Transport,235057,Public Transport,05-Dec-2022,000010452683601,WWW.GONORTHEAST.CO.UK,4111,Staff travelling,10.90,0.00,10.90
Children and Young Peoples Services,Head of Childrens Social Care,085621,Families First Newton Aycliffe and Shildon,Supplies and Services,304403,Equipment and Materials,05-Dec-2022,000010452683613,AMZNBusiness 1W5TJ9X04,5999,Other consumables,8.45,0.00,8.45
Regeneration Economy and Growth,Economic Development Level C,030771,Durham Advance Flexible Fund,Supplies and Services,348037,Subsistence E348,05-Dec-2022,000010452683765,SQ RIVERVIEW KITCHEN,5812,Subsistence,7.00,0.00,7.00
Regeneration Economy and Growth,Economic Development Level C,030771,Durham Advance Flexible Fund,Transport,235057,Public Transport,05-Dec-2022,000010452683769,WALKERGATE CAR PAR,7523,Staff travelling,3.10,0.00,3.10
Children and Young Peoples Services,Head of Education and Skills,071732,Dean Bank Childcare,Supplies and Services,324117,Provisions E324,05-Dec-2022,000010452683805,B&M 147 - FERRYHILL,5399,Catering costs - provisions,5.25,0.00,5.25
Children and Young Peoples Services,Head of Education and Skills,071732,Dean Bank Childcare,Supplies and Services,324117,Provisions E324,05-Dec-2022,000010452683809,ASDA GROCERIES ONLINE,5411,Catering costs - provisions,70.53,0.00,70.53
Regeneration Economy and Growth,Corporate Property and Land,011001,FM-Civic Bldgs-Green Lane Council Offices Spennymoor,Premises,115125,Repairs to Grounds,05-Dec-2022,000010452683853,REPLACEMENT KEYS LTD,5399,General maintenance,79.50,0.00,79.50
Regeneration Economy and Growth,Corporate Property and Land,011003,FM-Civic Bldgs-County Hall Durham,Supplies and Services,304221,Equipment and Materials,05-Dec-2022,000010452683855,WWW.SCREWFIX.COM,5211,Direct materials,39.98,0.00,39.98
Neighbourhoods and Climate Change,Partnerships & Community Engagement Div.,060700,Civil Contingencies Unit 060700,Supplies and Services,304403,Equipment and Materials,05-Dec-2022,000010452683859,AMZNMKTPLACE AMAZON.CO,5999,Other consumables,272.16,45.36,226.80
Neighbourhoods and Climate Change,Partnerships & Community Engagement Div.,060700,Civil Contingencies Unit 060700,Supplies and Services,304403,Equipment and Materials,05-Dec-2022,000010452683859 - 1,AMZNMKTPLACE AMAZON.CO,5999,Other consumables,0.42,,0.42
Neighbourhoods and Climate Change,Partnerships & Community Engagement Div.,060700,Civil Contingencies Unit 060700,Supplies and Services,304403,Equipment and Materials,05-Dec-2022,000010452683863,AMZNMKTPLACE AMAZON.CO,5999,Other consumables,"2,250.96",375.16,1875.80
Neighbourhoods and Climate Change,Partnerships & Community Engagement Div.,060700,Civil Contingencies Unit 060700,Supplies and Services,304403,Equipment and Materials,05-Dec-2022,000010452683863 - 1,AMZNMKTPLACE AMAZON.CO,5999,Other consumables,4.52,,4.52
Children and Young Peoples Services,Head of Early Help Inclusion & Vulnerable Children.,085965,Barnard,Supplies and Services,304403,Equipment and Materials,05-Dec-2022,000010452683885,AMZNMKTPLACE AMAZON.CO,5999,Other consumables,21.96,0.00,21.96
Regeneration Economy and Growth,Economic Development Level C,030771,Durham Advance Flexible Fund,Transport,235057,Public Transport,05-Dec-2022,000010452683899,WALKERGATE CAR PAR,7523,Staff travelling,2.00,0.33,1.67
Children and Young Peoples Services,Head of Childrens Social Care,085347,Solo Home The Manse,Supplies and Services,324117,Provisions E324,05-Dec-2022,000010452683919,TESCO STORES 2371,5411,Catering costs - provisions,127.05,0.00,127.05
Children and Young Peoples Services,Head of Childrens Social Care,085351,Framwellgate Moor CU,Supplies and Services,324117,Provisions E324,05-Dec-2022,000010452683977,ASDA GROCERIES ONLINE,5411,Catering costs - provisions,160.46,0.00,160.46
Children and Young Peoples Services,Head of Childrens Social Care,085351,Framwellgate Moor CU,Supplies and Services,324117,Provisions E324,05-Dec-2022,000010452683981,ASDA GROCERIES ONLINE,5411,Catering costs - provisions,-1.20,0.00,-1.20
Regeneration Economy and Growth,Economic Development Level C,030772,CLLD South,Transport,235057,Public Transport,05-Dec-2022,000010452684061,WALKERGATE CAR PAR,7523,Staff travelling,2.00,0.33,1.67
Children and Young Peoples Services,Head of Early Help Inclusion & Vulnerable Children.,088107,Wheatley Hill & N. Aycliffe Family Centre,Supplies and Services,324117,Provisions E324,05-Dec-2022,000010452684091,ASDA GROCERIES ONLINE,5411,Catering costs - provisions,34.58,0.00,34.58
Children and Young Peoples Services,Head of Early Help Inclusion & Vulnerable Children.,085962,Aycliffe Secure - Durham,Supplies and Services,304403,Equipment and Materials,05-Dec-2022,000010452684099,AMZNMktplace,5999,Other consumables,29.15,4.87,24.28
Children and Young Peoples Services,Head of Early Help Inclusion & Vulnerable Children.,085962,Aycliffe Secure - Durham,Supplies and Services,304403,Equipment and Materials,05-Dec-2022,000010452684103,AMZNMKTPLACE AMAZON.CO,5999,Other consumables,41.98,7.00,34.98
Regeneration Economy and Growth,Economic Development Level C,030776,LINKCD Flexible Fund,Supplies and Services,348037,Subsistence E348,05-Dec-2022,000010452684115,THE HIVE,5812,Subsistence,1.00,0.17,0.83
Regeneration Economy and Growth,Economic Development Level C,030776,LINKCD Flexible Fund,Transport,235057,Public Transport,05-Dec-2022,000010452684119,PRINCE BISHOP SHOPPING,7523,Staff travelling,2.10,0.00,2.10
Children and Young Peoples Services,Head of Childrens Social Care,085334,West Rainton Satelite Home,Supplies and Services,304403,Equipment and Materials,05-Dec-2022,000010452684149,AMZNMktplace,5999,Other consumables,63.84,0.00,63.84
Resources BK0010,Procurement Sales & Business Services,065500,Business Support - Management,Supplies and Services,336005,Advertising E336,05-Dec-2022,000010452684175,FACEBK BVG6HJ35B2,7311,Advertising other than for staff,500.00,0.00,500.00
Regeneration Economy and Growth,Planning & Housing,031634,LOCAL LETTINGS AGENCY,Premises,120037,Energy Costs,05-Dec-2022,000010452684199,UTILITA ENERGY LIMITED,4900,Other fuels,50.00,0.00,50.00
Children and Young Peoples Services,Head of Childrens Social Care,085551,Short Break Services-Park Hse Sher,Supplies and Services,324117,Provisions E324,05-Dec-2022,000010452684223,TESCO STORES 2371,5411,Catering costs - provisions,114.61,0.00,114.61
Regeneration Economy and Growth,Economic Development Level C,030554,International Relations 030554,Supplies and Services,352001,Conference Expenses,05-Dec-2022,000010452684251,Hotel at Booking.com,7011,Conferencesseminars fees etc,157.00,0.00,157.00
Regeneration Economy and Growth,Economic Development Level C,030554,International Relations 030554,Supplies and Services,352001,Conference Expenses,05-Dec-2022,000010452684255,Hotel at Booking.com,7011,Conferencesseminars fees etc,49.00,0.00,49.00
Regeneration Economy and Growth,Economic Development Level C,030554,International Relations 030554,Supplies and Services,352001,Conference Expenses,05-Dec-2022,000010452684259,Hotel at Booking.com,7011,Conferencesseminars fees etc,49.00,0.00,49.00
Regeneration Economy and Growth,Economic Development Level C,030554,International Relations 030554,Supplies and Services,352001,Conference Expenses,05-Dec-2022,000010452684263,Hotel at Booking.com,7011,Conferencesseminars fees etc,49.00,0.00,49.00
Regeneration Economy and Growth,Economic Development Level C,030554,International Relations 030554,Supplies and Services,352001,Conference Expenses,05-Dec-2022,000010452684267,Hotel at Booking.com,7011,Conferencesseminars fees etc,49.00,0.00,49.00
Regeneration Economy and Growth,Economic Development Level C,030554,International Relations 030554,Supplies and Services,352001,Conference Expenses,05-Dec-2022,000010452684271,Roadchef Durham,7011,Conferencesseminars fees etc,7.50,0.00,7.50
Regeneration Economy and Growth,Economic Development Level C,030554,International Relations 030554,Supplies and Services,352001,Conference Expenses,05-Dec-2022,000010452684275,Roadchef Durham,7011,Conferencesseminars fees etc,22.50,0.00,22.50
Regeneration Economy and Growth,Corporate Property and Land,010525,Catering - Green Lane,Supplies and Services,324117,Provisions E324,05-Dec-2022,000010452792381,FREEMAN CATERING BUTCH,5422,Catering costs - provisions,55.31,0.00,55.31
Regeneration Economy and Growth,Corporate Property and Land,010525,Catering - Green Lane,Supplies and Services,324117,Provisions E324,05-Dec-2022,000010452792385,JR HOLLAND FOODSERVICE,5499,Catering costs - provisions,84.12,0.00,84.12
Regeneration Economy and Growth,Corporate Property and Land,011275,Catering -Durham Leadership Centre,Supplies and Services,324117,Provisions E324,05-Dec-2022,000010452792391,FREEMAN CATERING BUTCH,5422,Catering costs - provisions,71.13,0.00,71.13
Regeneration Economy and Growth,Corporate Property and Land,011296,Catering - Dunes,Supplies and Services,324117,Provisions E324,05-Dec-2022,000010452792395,JR HOLLAND FOODSERVICE,5499,Catering costs - provisions,-12.80,0.00,-12.80
Regeneration Economy and Growth,Corporate Property and Land,030691,Catering - Durham Dales Centre,Supplies and Services,324117,Provisions E324,05-Dec-2022,000010452792401,FREEMAN CATERING BUTCH,5422,Catering costs - provisions,87.34,0.00,87.34
Regeneration Economy and Growth,Corporate Property and Land,030691,Catering - Durham Dales Centre,Supplies and Services,324117,Provisions E324,05-Dec-2022,000010452792403,JR HOLLAND FOODSERVICE,5499,Catering costs - provisions,158.91,0.00,158.91
Regeneration Economy and Growth,Culture Sport and Tourism,054235,Bishop Auckland Town Hall Cafe,Supplies and Services,324117,Provisions E324,05-Dec-2022,000010452792407,JR HOLLAND FOODSERVICE,5499,Catering costs - provisions,704.19,0.00,704.19
Neighbourhoods and Climate Change,Environmental Services,011060,C&G - Hardwick Park Catering,Supplies and Services,324117,Provisions E324,05-Dec-2022,000010452792411,FREEMAN CATERING BUTCH,5422,Catering costs - provisions,60.95,0.00,60.95
Neighbourhoods and Climate Change,Environmental Services,011060,C&G - Hardwick Park Catering,Supplies and Services,324117,Provisions E324,05-Dec-2022,000010452792413,JR HOLLAND FOODSERVICE,5499,Catering costs - provisions,28.23,0.00,28.23
Regeneration Economy and Growth,Corporate Property and Land,021234,Catering - Locomotion,Supplies and Services,324117,Provisions E324,05-Dec-2022,000010452792417,FREEMAN CATERING BUTCH,5422,Catering costs - provisions,51.57,0.00,51.57
Regeneration Economy and Growth,Culture Sport and Tourism,054812,Gala Theatre - Catering etc,Supplies and Services,324117,Provisions E324,05-Dec-2022,000010452792423,FREEMAN CATERING BUTCH,5422,Catering costs - provisions,20.94,0.00,20.94
Regeneration Economy and Growth,Corporate Property and Land,021242,Catering - County Hall,Supplies and Services,324117,Provisions E324,05-Dec-2022,000010452792427,FREEMAN CATERING BUTCH,5422,Catering costs - provisions,370.81,0.00,370.81
Regeneration Economy and Growth,Corporate Property and Land,021242,Catering - County Hall,Supplies and Services,324117,Provisions E324,05-Dec-2022,000010452792431,JR HOLLAND FOODSERVICE,5499,Catering costs - provisions,32.24,0.00,32.24
Regeneration Economy and Growth,Corporate Property and Land,021242,Catering - County Hall,Supplies and Services,324117,Provisions E324,05-Dec-2022,000010452792435,JR HOLLAND FOODSERVICE,5499,Catering costs - provisions,63.20,0.00,63.20
Children and Young Peoples Services,Head of Childrens Social Care,085341,High Etherley Satelite Home,Supplies and Services,304259,Equipment and Materials,05-Dec-2022,000010461662727,OVERRIDE,5940,Equipment-purchase and rental,11.70,0.00,11.70
Children and Young Peoples Services,Head of Childrens Social Care,085341,High Etherley Satelite Home,Supplies and Services,304259,Equipment and Materials,05-Dec-2022,000010461662729,OVERRIDE,5940,Equipment-purchase and rental,2.00,0.00,2.00
Children and Young Peoples Services,Head of Childrens Social Care,085341,High Etherley Satelite Home,Supplies and Services,304259,Equipment and Materials,05-Dec-2022,000010461662731,OVERRIDE,5940,Equipment-purchase and rental,34.99,0.00,34.99
Regeneration Economy and Growth,Culture Sport and Tourism,030705,Visit County Durham 030705,Supplies and Services,304259,Equipment and Materials,05-Dec-2022,000010461662757,FASTHOSTS,4816,Equipment-purchase and rental,39.47,6.58,32.89
Children and Young Peoples Services,Head of Childrens Social Care,085342,16 Hickstead Rise (previously 9 Cedar Ave),Supplies and Services,304403,Equipment and Materials,05-Dec-2022,000010461662889,AMZNMKTPLACE AMAZON.CO,5999,Other consumables,26.60,0.00,26.60
Children and Young Peoples Services,Head of Early Help Inclusion & Vulnerable Children.,085965,Barnard,Supplies and Services,304403,Equipment and Materials,05-Dec-2022,000010461663195,AMZNMKTPLACE AMAZON.CO,5999,Other consumables,25.23,0.00,25.23
Regeneration Economy and Growth,Economic Development Level C,030554,International Relations 030554,Employees,040149,Recruitment Instruction and Training,05-Dec-2022,000010461663363,PREMIER INN,3811,Training-all costs,100.00,0.00,100.00
Regeneration Economy and Growth,Economic Development Level C,030554,International Relations 030554,Employees,040149,Recruitment Instruction and Training,05-Dec-2022,000010461663365,PREMIER INN,3811,Training-all costs,69.00,0.00,69.00
Regeneration Economy and Growth,Economic Development Level C,030554,International Relations 030554,Employees,040149,Recruitment Instruction and Training,05-Dec-2022,000010461663367,PREMIER INN,3811,Training-all costs,69.00,0.00,69.00
Regeneration Economy and Growth,Corporate Property and Land,030691,Catering - Durham Dales Centre,Supplies and Services,324117,Provisions E324,05-Dec-2022,000010468495209,BATLEYS PERTH,5300,Catering costs - provisions,23.76,3.96,19.80
Regeneration Economy and Growth,Corporate Property and Land,030691,Catering - Durham Dales Centre,Supplies and Services,324117,Provisions E324,05-Dec-2022,000010468495209 - 1,BATLEYS PERTH,5300,Catering costs - provisions,89.29,,89.29
Regeneration Economy and Growth,Culture Sport and Tourism,054812,Gala Theatre - Catering etc,Supplies and Services,324117,Provisions E324,05-Dec-2022,000010468495217,BATLEYS PERTH,5300,Catering costs - provisions,249.30,41.55,207.75
Regeneration Economy and Growth,Culture Sport and Tourism,054812,Gala Theatre - Catering etc,Supplies and Services,324117,Provisions E324,05-Dec-2022,000010468495217 - 1,BATLEYS PERTH,5300,Catering costs - provisions,138.18,,138.18
Regeneration Economy and Growth,Culture Sport and Tourism,054798,dli Museum - WW1 Education Programme,Supplies and Services,304259,Equipment and Materials,06-Dec-2022,000010452683185,AMZNMktplace,5999,Equipment-purchase and rental,5.89,0.98,4.91
Regeneration Economy and Growth,Culture Sport and Tourism,054798,dli Museum - WW1 Education Programme,Supplies and Services,304259,Equipment and Materials,06-Dec-2022,000010452683189,AMZNMktplace,5999,Equipment-purchase and rental,5.99,1.00,4.99
Children and Young Peoples Services,Head of Childrens Social Care,085333,Coxhoe Satelite Home,Supplies and Services,304403,Equipment and Materials,06-Dec-2022,000010452683465,AMZNMktplace,5999,Other consumables,209.96,0.00,209.96
Children and Young Peoples Services,Head of Childrens Social Care,085332,Middlestone Moor CU,Supplies and Services,324117,Provisions E324,06-Dec-2022,000010461662683,RYMANBUSINESS.COM,5399,Catering costs - provisions,388.86,0.00,388.86
Children and Young Peoples Services,Head of Education and Skills,071801,Selby Cottage Childcare Centre,Supplies and Services,324117,Provisions E324,06-Dec-2022,000010461662695,B&M 228 - CHESTER-LE-S,5399,Catering costs - provisions,31.45,0.00,31.45
Children and Young Peoples Services,Head of Education and Skills,071801,Selby Cottage Childcare Centre,Supplies and Services,324117,Provisions E324,06-Dec-2022,000010461662697,ASDA GROCERIES ONLINE,5411,Catering costs - provisions,129.94,0.00,129.94
Children and Young Peoples Services,Head of Education and Skills,071801,Selby Cottage Childcare Centre,Supplies and Services,324117,Provisions E324,06-Dec-2022,000010461662699,ASDA GROCERIES ONLINE,5411,Catering costs - provisions,47.44,0.00,47.44
Children and Young Peoples Services,Head of Education and Skills,071801,Selby Cottage Childcare Centre,Supplies and Services,324117,Provisions E324,06-Dec-2022,000010461662701,TESCO STORES 2278,5411,Catering costs - provisions,31.95,0.00,31.95
Children and Young Peoples Services,Head of Education and Skills,071801,Selby Cottage Childcare Centre,Supplies and Services,304403,Equipment and Materials,06-Dec-2022,000010461662703,AMZNMktplace,5999,Other consumables,33.56,5.60,27.96
Children and Young Peoples Services,Head of Education and Skills,071801,Selby Cottage Childcare Centre,Supplies and Services,328041,Clothing uniforms and laundry E328,06-Dec-2022,000010461662705,THE WORKS,5310,Clothing uniforms and laundry,43.00,0.00,43.00
Children and Young Peoples Services,Head of Education and Skills,071801,Selby Cottage Childcare Centre,Supplies and Services,324117,Provisions E324,06-Dec-2022,000010461662707,ASDA GROCERIES ONLINE,5411,Catering costs - provisions,-2.85,0.00,-2.85
Resources BK0010,Transactional & Customer Services,065180,Collections,Supplies and Services,338045,Services,06-Dec-2022,000010461662711,HMCTS DURHAM012,9222,Legal expenses 338045,"1,278.50",0.00,1278.50
Children and Young Peoples Services,Head of Education and Skills,075034,Youth Futures Foundation,Supplies and Services,304259,Equipment and Materials,06-Dec-2022,000010461662723,DURHAM COUNTY COUNCIL,9399,Equipment-purchase and rental,11.00,0.00,11.00
Children and Young Peoples Services,Head of Education and Skills,075034,Youth Futures Foundation,Supplies and Services,304403,Equipment and Materials,06-Dec-2022,000010461662725,AMZNMKTPLACE AMAZON.CO,5999,Other consumables,24.95,0.00,24.95
Children and Young Peoples Services,Head of Childrens Social Care,085347,Solo Home The Manse,Supplies and Services,328041,Clothing uniforms and laundry E328,06-Dec-2022,000010461662735,POUNDSTRETCHER 205,5331,Clothing uniforms and laundry,20.70,0.00,20.70
Children and Young Peoples Services,Head of Childrens Social Care,085347,Solo Home The Manse,Supplies and Services,304999,Equipment and Materials,06-Dec-2022,000010461662737,HOME BARGAINS,5251,Misc equipment tools and materials,44.51,0.00,44.51
Children and Young Peoples Services,Head of Childrens Social Care,085347,Solo Home The Manse,Supplies and Services,328041,Clothing uniforms and laundry E328,06-Dec-2022,000010461662739,T K MAXX,5331,Clothing uniforms and laundry,35.41,0.00,35.41
Children and Young Peoples Services,Head of Education and Skills,078411,16-19 Education & Training,Supplies and Services,304259,Equipment and Materials,06-Dec-2022,000010461662741,DURHAM COUNTY COUNCIL,9399,Equipment-purchase and rental,11.00,0.00,11.00
Children and Young Peoples Services,Head of Education and Skills,078411,16-19 Education & Training,Supplies and Services,304403,Equipment and Materials,06-Dec-2022,000010461662743,AMZNMKTPLACE AMAZON.CO,5999,Other consumables,84.70,14.12,70.58
Children and Young Peoples Services,Head of Education and Skills,078411,16-19 Education & Training,Supplies and Services,304403,Equipment and Materials,06-Dec-2022,000010461662745,AMZNMKTPLACE AMAZON.CO,5999,Other consumables,18.59,3.10,15.49
Children and Young Peoples Services,Head of Education and Skills,078411,16-19 Education & Training,Supplies and Services,304403,Equipment and Materials,06-Dec-2022,000010461662747,AMZNMKTPLACE AMAZON.CO,5999,Other consumables,16.79,2.80,13.99
Children and Young Peoples Services,Head of Education and Skills,078411,16-19 Education & Training,Supplies and Services,304403,Equipment and Materials,06-Dec-2022,000010461662749,AMZNMKTPLACE AMAZON.CO,5999,Other consumables,18.99,3.17,15.82
Regeneration Economy and Growth,Culture Sport and Tourism,054604,Seven Hills Spennymoor,Supplies and Services,340001,Postages E340,06-Dec-2022,000010461662755,QUADIENT UK LTD,5111,Postages,500.00,0.00,500.00
Children and Young Peoples Services,Head of Childrens Social Care,085332,Middlestone Moor CU,Supplies and Services,324117,Provisions E324,06-Dec-2022,000010461662763,TESCO STORES 2371,5411,Catering costs - provisions,142.93,0.00,142.93
Children and Young Peoples Services,Head of Childrens Social Care,085332,Middlestone Moor CU,Supplies and Services,324117,Provisions E324,06-Dec-2022,000010461662765,TESCO STORES 2371,5411,Catering costs - provisions,-3.30,0.00,-3.30
Children and Young Peoples Services,Head of Childrens Social Care,085342,16 Hickstead Rise (previously 9 Cedar Ave),Transport,215995,Running Costs of Vehicles,06-Dec-2022,000010461662769,WOODHAM SERVICES,5541,Vehicle running expenses,35.03,0.00,35.03
Neighbourhoods and Climate Change,Environmental Services,010383,C&G - South Street Cleansing,Supplies and Services,304221,Equipment and Materials,06-Dec-2022,000010461662787,MKM PETERLEE,5211,Direct materials,140.26,23.38,116.88
Neighbourhoods and Climate Change,Environmental Services,010383,C&G - South Street Cleansing,Supplies and Services,304403,Equipment and Materials,06-Dec-2022,000010461662789,MAXWELLS DIY,5231,Other consumables,10.50,1.75,8.75
Neighbourhoods and Climate Change,Environmental Services,031200,North Pennines Core,Supplies and Services,324117,Provisions E324,06-Dec-2022,000010461662791,STANHOPE SUPERMARKET,5411,Catering costs - provisions,3.20,0.00,3.20
Neighbourhoods and Climate Change,Environmental Services,031200,North Pennines Core,Transport,235057,Public Transport,06-Dec-2022,000010461662793,Weardale Motor Service,4111,Staff travelling,107.52,0.00,107.52
Neighbourhoods and Climate Change,Environmental Services,031200,North Pennines Core,Transport,235057,Public Transport,06-Dec-2022,000010461662795,Weardale Motor Service,4111,Staff travelling,116.44,0.00,116.44
Resources BK0010,Procurement Sales & Business Services,065503,Business Support - Spectrum,Supplies and Services,332047,Printing Stationery and Gen Off Exps,06-Dec-2022,000010461662807,Stationery UK,5943,Stationery,22.33,0.00,22.33
Children and Young Peoples Services,Head of Early Help Inclusion & Vulnerable Children.,088109,Dean Bank and Tudhoe Family Centre,Supplies and Services,384302,Miscellaneous Expenses,06-Dec-2022,000010461662809,ASDA STORES,5411,Activity expenses,200.00,0.00,200.00
Children and Young Peoples Services,Head of Childrens Social Care,085331,New Lea Childrens Home,Supplies and Services,328041,Clothing uniforms and laundry E328,06-Dec-2022,000010461662811,FOOT LOCKER UK 4299,5661,Clothing uniforms and laundry,152.99,0.00,152.99
Children and Young Peoples Services,Head of Childrens Social Care,085331,New Lea Childrens Home,Supplies and Services,372009,Subscriptions E372,06-Dec-2022,000010461662813,WOWCHER,7299,Subscriptions 372009,9.99,0.00,9.99
Children and Young Peoples Services,Head of Childrens Social Care,085331,New Lea Childrens Home,Supplies and Services,304259,Equipment and Materials,06-Dec-2022,000010461662815,HMV RETAIL LTD,5735,Equipment-purchase and rental,12.00,0.00,12.00
Children and Young Peoples Services,Head of Early Help Inclusion & Vulnerable Children.,088105,W/Close and Willington Family Centre,Supplies and Services,384302,Miscellaneous Expenses,06-Dec-2022,000010461662821,WWW.THEWORKS.CO.UK,5310,Activity expenses,130.00,0.00,130.00
Regeneration Economy and Growth,Economic Development Level C,030544,Rural Employability - Client Engagement,Supplies and Services,384999,Miscellaneous Expenses,06-Dec-2022,000010461662823,CHRIS AND SONS HAIR AN,7230,Other expenses,134.94,22.49,112.45
Regeneration Economy and Growth,Culture Sport and Tourism,054233,Bishop Auckland Town Hall Library,Supplies and Services,324117,Provisions E324,06-Dec-2022,000010461662829,WILKO RETAIL LIMITED,5399,Catering costs - provisions,22.00,0.00,22.00
Children and Young Peoples Services,Head of Childrens Social Care,085511,Emergency Duty Team,Supplies and Services,352001,Conference Expenses,06-Dec-2022,000010461662859,Hotel at Booking.com,7011,Conferencesseminars fees etc,45.00,0.00,45.00
Regeneration Economy and Growth,Economic Development Level C,030772,CLLD South,Supplies and Services,304259,Equipment and Materials,06-Dec-2022,000010461662861,BGH OF WALTHAM FOREST,9399,Equipment-purchase and rental,35.00,0.00,35.00
Children and Young Peoples Services,Head of Education and Skills,071732,Dean Bank Childcare,Supplies and Services,324117,Provisions E324,06-Dec-2022,000010461662891,SAINSBURYS S/MKTS,5411,Catering costs - provisions,19.79,0.00,19.79
Adult and Health Services,Head of Adults,055302,Durham Pathways,Supplies and Services,328041,Clothing uniforms and laundry E328,06-Dec-2022,000010461662893,POUNDLAND,5310,Clothing uniforms and laundry,3.75,0.00,3.75
Adult and Health Services,Head of Adults,055302,Durham Pathways,Supplies and Services,324117,Provisions E324,06-Dec-2022,000010461662895,SAINSBURYS S/MKTS,5411,Catering costs - provisions,9.00,0.00,9.00
Regeneration Economy and Growth,Culture Sport and Tourism,054967,Theatre - Technical Staffing,Supplies and Services,328041,Clothing uniforms and laundry E328,06-Dec-2022,000010461662897,THETAILCOMPANY,5691,Clothing uniforms and laundry,193.87,0.00,193.87
Neighbourhoods and Climate Change,Environmental Services,026591,C&G - Hardwick Park,Supplies and Services,328041,Clothing uniforms and laundry E328,06-Dec-2022,000010461662901,SP BASELAYER LTD,5655,Clothing uniforms and laundry,69.50,0.00,69.50
Children and Young Peoples Services,Head of Childrens Social Care,085333,Coxhoe Satelite Home,Supplies and Services,324117,Provisions E324,06-Dec-2022,000010461662903,ASDA SUPERSTORE 4987,5411,Catering costs - provisions,15.60,0.00,15.60
Children and Young Peoples Services,Head of Childrens Social Care,085521,Adolescent Safeguarding and Exploitation Team - ASET,Supplies and Services,328041,Clothing uniforms and laundry E328,06-Dec-2022,000010461662907,DrMartens.com,5661,Clothing uniforms and laundry,169.00,0.00,169.00
Children and Young Peoples Services,Head of Childrens Social Care,085521,Adolescent Safeguarding and Exploitation Team - ASET,Supplies and Services,304403,Equipment and Materials,06-Dec-2022,000010461662909,Flannels,5999,Other consumables,125.99,0.00,125.99
Children and Young Peoples Services,Head of Childrens Social Care,085521,Adolescent Safeguarding and Exploitation Team - ASET,Supplies and Services,328041,Clothing uniforms and laundry E328,06-Dec-2022,000010461662911,EMMIOL 2M3XF,5691,Clothing uniforms and laundry,47.55,0.00,47.55
Children and Young Peoples Services,Head of Childrens Social Care,085517,Supporting Solutions Service (Edge of Care),Supplies and Services,304403,Equipment and Materials,06-Dec-2022,000010461662913,AMZNMktplace,5999,Other consumables,28.99,4.83,24.16
Children and Young Peoples Services,Head of Childrens Social Care,085521,Adolescent Safeguarding and Exploitation Team - ASET,Supplies and Services,304259,Equipment and Materials,06-Dec-2022,000010461662915,JD SPORTS INTERNET,5941,Equipment-purchase and rental,107.00,0.00,107.00
Children and Young Peoples Services,Head of Childrens Social Care,085517,Supporting Solutions Service (Edge of Care),Supplies and Services,324117,Provisions E324,06-Dec-2022,000010461662917,ASDA GROCERIES ONLINE,5411,Catering costs - provisions,26.95,0.00,26.95
Children and Young Peoples Services,Head of Early Help Inclusion & Vulnerable Children.,085957,Secure Management,Supplies and Services,304259,Equipment and Materials,06-Dec-2022,000010461662931,JD SPORTS INTERNET,5941,Equipment-purchase and rental,-30.00,0.00,-30.00
Children and Young Peoples Services,Head of Childrens Social Care,085364,Children Looked After Team 1,Supplies and Services,304259,Equipment and Materials,06-Dec-2022,000010461662943,J D SPORTS,5941,Equipment-purchase and rental,400.00,0.00,400.00
Children and Young Peoples Services,Head of Early Help Inclusion & Vulnerable Children.,085957,Secure Management,Supplies and Services,328041,Clothing uniforms and laundry E328,06-Dec-2022,000010461662945,Footasylum Limited,5651,Clothing uniforms and laundry,54.99,0.00,54.99
Children and Young Peoples Services,Head of Early Help Inclusion & Vulnerable Children.,085957,Secure Management,Supplies and Services,328041,Clothing uniforms and laundry E328,06-Dec-2022,000010461662947,SP STORMDESIRE.COM,5691,Clothing uniforms and laundry,83.94,0.00,83.94
Children and Young Peoples Services,Head of Early Help Inclusion & Vulnerable Children.,085957,Secure Management,Supplies and Services,328041,Clothing uniforms and laundry E328,06-Dec-2022,000010461662949,LIGHTINTHEBOXEU,5691,Clothing uniforms and laundry,95.25,0.00,95.25
Children and Young Peoples Services,Head of Early Help Inclusion & Vulnerable Children.,085957,Secure Management,Supplies and Services,304259,Equipment and Materials,06-Dec-2022,000010461662951,JD SPORTS INTERNET,5941,Equipment-purchase and rental,65.99,0.00,65.99
Children and Young Peoples Services,Head of Early Help Inclusion & Vulnerable Children.,085957,Secure Management,Supplies and Services,328041,Clothing uniforms and laundry E328,06-Dec-2022,000010461662953,PRETTYLITTLETHING.COM,5691,Clothing uniforms and laundry,28.00,0.00,28.00
Children and Young Peoples Services,Head of Early Help Inclusion & Vulnerable Children.,085957,Secure Management,Supplies and Services,304999,Equipment and Materials,06-Dec-2022,000010461662955,BOOTS UK ECOMM,5912,Misc equipment tools and materials,21.75,0.00,21.75
Children and Young Peoples Services,Head of Early Help Inclusion & Vulnerable Children.,085957,Secure Management,Supplies and Services,304403,Equipment and Materials,06-Dec-2022,000010461662957,AMZNMKTPLACE AMAZON.CO,5999,Other consumables,139.95,23.33,116.62
Children and Young Peoples Services,Head of Early Help Inclusion & Vulnerable Children.,085957,Secure Management,Supplies and Services,304403,Equipment and Materials,06-Dec-2022,000010461662959,AMZNMKTPLACE AMAZON.CO,5999,Other consumables,24.99,4.17,20.82
Children and Young Peoples Services,Head of Early Help Inclusion & Vulnerable Children.,085957,Secure Management,Supplies and Services,304403,Equipment and Materials,06-Dec-2022,000010461662961,AMZNMktplace,5999,Other consumables,28.95,0.00,28.95
Children and Young Peoples Services,Head of Early Help Inclusion & Vulnerable Children.,085957,Secure Management,Supplies and Services,304403,Equipment and Materials,06-Dec-2022,000010461662963,AMZNMktplace,5999,Other consumables,8.99,1.50,7.49
Regeneration Economy and Growth,Economic Development Level C,030771,Durham Advance Flexible Fund,Transport,235057,Public Transport,06-Dec-2022,000010461663047,3C_ NSL Durham WAP,7523,Staff travelling,2.50,0.00,2.50
Regeneration Economy and Growth,Economic Development Level C,030771,Durham Advance Flexible Fund,Employees,040149,Recruitment Instruction and Training,06-Dec-2022,000010461663049,Zettle_ THE WITHAM HAL,8398,Training-all costs,5.50,0.00,5.50
Regeneration Economy and Growth,Economic Development Level C,030771,Durham Advance Flexible Fund,Employees,040149,Recruitment Instruction and Training,06-Dec-2022,000010461663051,Zettle_ THE WITHAM HAL,8398,Training-all costs,4.35,0.00,4.35
Resources BK0010,Procurement Sales & Business Services,065504,Business Support - Meadowfield,Supplies and Services,304403,Equipment and Materials,06-Dec-2022,000010461663107,AMZNMktplace,5999,Other consumables,6.99,0.00,6.99
Neighbourhoods and Climate Change,Partnerships & Community Engagement Div.,060700,Civil Contingencies Unit 060700,Supplies and Services,304403,Equipment and Materials,06-Dec-2022,000010461663161,AMZNMKTPLACE AMAZON.CO,5999,Other consumables,41.75,6.96,34.79
Neighbourhoods and Climate Change,Partnerships & Community Engagement Div.,060700,Civil Contingencies Unit 060700,Supplies and Services,304403,Equipment and Materials,06-Dec-2022,000010461663163,AMZNMKTPLACE AMAZON.CO,5999,Other consumables,62.64,10.44,52.20
Neighbourhoods and Climate Change,Partnerships & Community Engagement Div.,060700,Civil Contingencies Unit 060700,Supplies and Services,304403,Equipment and Materials,06-Dec-2022,000010461663165,AMZNMKTPLACE AMAZON.CO,5999,Other consumables,62.64,10.44,52.20
Neighbourhoods and Climate Change,Partnerships & Community Engagement Div.,060700,Civil Contingencies Unit 060700,Supplies and Services,304403,Equipment and Materials,06-Dec-2022,000010461663167,AMZNMKTPLACE AMAZON.CO,5999,Other consumables,461.16,76.86,384.30
Neighbourhoods and Climate Change,Partnerships & Community Engagement Div.,060700,Civil Contingencies Unit 060700,Supplies and Services,304403,Equipment and Materials,06-Dec-2022,000010461663167 - 1,AMZNMKTPLACE AMAZON.CO,5999,Other consumables,0.42,,0.42
Neighbourhoods and Climate Change,Partnerships & Community Engagement Div.,060700,Civil Contingencies Unit 060700,Supplies and Services,304403,Equipment and Materials,06-Dec-2022,000010461663169,AMZNMKTPLACE AMAZON.CO,5999,Other consumables,125.28,20.88,104.40
Neighbourhoods and Climate Change,Partnerships & Community Engagement Div.,060700,Civil Contingencies Unit 060700,Supplies and Services,304403,Equipment and Materials,06-Dec-2022,000010461663171,AMZNMKTPLACE AMAZON.CO,5999,Other consumables,87.84,14.64,73.20
Neighbourhoods and Climate Change,Partnerships & Community Engagement Div.,060700,Civil Contingencies Unit 060700,Supplies and Services,304403,Equipment and Materials,06-Dec-2022,000010461663171 - 1,AMZNMKTPLACE AMAZON.CO,5999,Other consumables,0.08,,0.08
Neighbourhoods and Climate Change,Partnerships & Community Engagement Div.,060700,Civil Contingencies Unit 060700,Supplies and Services,304403,Equipment and Materials,06-Dec-2022,000010461663173,AMZNMKTPLACE AMAZON.CO,5999,Other consumables,62.64,10.44,52.20
Children and Young Peoples Services,Head of Childrens Social Care,085334,West Rainton Satelite Home,Supplies and Services,304403,Equipment and Materials,06-Dec-2022,000010461663177,AMZNMKTPLACE AMAZON.CO,5999,Other consumables,2.99,0.50,2.49
Children and Young Peoples Services,Head of Childrens Social Care,085334,West Rainton Satelite Home,Supplies and Services,304403,Equipment and Materials,06-Dec-2022,000010461663179,AMZNMKTPLACE AMAZON.CO,5999,Other consumables,11.52,1.92,9.60
Children and Young Peoples Services,Head of Childrens Social Care,085334,West Rainton Satelite Home,Supplies and Services,304403,Equipment and Materials,06-Dec-2022,000010461663179 - 1,AMZNMKTPLACE AMAZON.CO,5999,Other consumables,0.04,,0.04
Children and Young Peoples Services,Head of Childrens Social Care,085334,West Rainton Satelite Home,Supplies and Services,304403,Equipment and Materials,06-Dec-2022,000010461663181,AMZNMKTPLACE AMAZON.CO,5999,Other consumables,6.68,1.11,5.57
Children and Young Peoples Services,Head of Childrens Social Care,085334,West Rainton Satelite Home,Supplies and Services,304403,Equipment and Materials,06-Dec-2022,000010461663183,AMZNMKTPLACE AMAZON.CO,5999,Other consumables,4.99,0.83,4.16
Children and Young Peoples Services,Head of Childrens Social Care,085334,West Rainton Satelite Home,Supplies and Services,304403,Equipment and Materials,06-Dec-2022,000010461663185,AMZNMKTPLACE AMAZON.CO,5999,Other consumables,4.45,0.74,3.71
Children and Young Peoples Services,Head of Childrens Social Care,085334,West Rainton Satelite Home,Supplies and Services,304403,Equipment and Materials,06-Dec-2022,000010461663187,AMZNMktplace,5999,Other consumables,12.99,2.17,10.82
Children and Young Peoples Services,Head of Childrens Social Care,085331,New Lea Childrens Home,Supplies and Services,324117,Provisions E324,06-Dec-2022,000010461663189,TESCO STORES 6329,5411,Catering costs - provisions,11.45,0.00,11.45
Children and Young Peoples Services,Head of Early Help Inclusion & Vulnerable Children.,074000,National Supporting Families Programme,Supplies and Services,342033,Computers and Communications,06-Dec-2022,000010461663191,FREEPIK & FLATICON,7333,Computer hardware,111.92,0.00,111.92
Resources BK0010,Digital Services,065335,School Services - Implementations,Supplies and Services,304403,Equipment and Materials,06-Dec-2022,000010461663199,AMZNMktplace,5999,Other consumables,59.90,9.98,49.92
Regeneration Economy and Growth,Economic Development Level C,030771,Durham Advance Flexible Fund,Transport,235057,Public Transport,06-Dec-2022,000010461663211,WALKERGATE CAR PAR,7523,Staff travelling,3.10,0.52,2.58
Children and Young Peoples Services,Head of Early Help Inclusion & Vulnerable Children.,085957,Secure Management,Premises,108099,Service Repairs and Maintenance,06-Dec-2022,000010461663213,AMZNMktplace,5999,General repairs 108099,37.04,6.18,30.86
Children and Young Peoples Services,Head of Early Help Inclusion & Vulnerable Children.,085952,Secure Education,Supplies and Services,304259,Equipment and Materials,06-Dec-2022,000010461663215,AMZNMktplace,5999,Equipment-purchase and rental,14.99,2.50,12.49
Children and Young Peoples Services,Head of Early Help Inclusion & Vulnerable Children.,085952,Secure Education,Supplies and Services,304259,Equipment and Materials,06-Dec-2022,000010461663217,AMZNMKTPLACE AMAZON.CO,5999,Equipment-purchase and rental,77.28,12.88,64.40
Children and Young Peoples Services,Head of Early Help Inclusion & Vulnerable Children.,085957,Secure Management,Supplies and Services,304259,Equipment and Materials,06-Dec-2022,000010461663219,AMZ Amazon.co.uk,5999,Equipment-purchase and rental,-5.39,-0.90,-4.49
Resources BK0010,Procurement Sales & Business Services,065503,Business Support - Spectrum,Supplies and Services,308011,Furniture,06-Dec-2022,000010461663231,SP HOMEDETAIL GRS GADG,5712,Furniture repair and replacement,209.00,0.00,209.00
Children and Young Peoples Services,Head of Early Help Inclusion & Vulnerable Children.,085801,CDYJS - Support,Third Party Payments,430100,Rendered by Private Contractors,06-Dec-2022,000010461663235,VOUCHER EXPRESS,7399,Payments to sub-contractors,150.00,0.00,150.00
Children and Young Peoples Services,Head of Childrens Social Care,085351,Framwellgate Moor CU,Supplies and Services,328041,Clothing uniforms and laundry E328,06-Dec-2022,000010461663247,Footasylum Limited,5651,Clothing uniforms and laundry,90.09,0.00,90.09
Children and Young Peoples Services,Head of Childrens Social Care,085351,Framwellgate Moor CU,Supplies and Services,304999,Equipment and Materials,06-Dec-2022,000010461663249,Amazon Prime 1W1ZT6Q64,5968,Misc equipment tools and materials,0.49,0.08,0.41
Children and Young Peoples Services,Head of Childrens Social Care,085351,Framwellgate Moor CU,Supplies and Services,338048,Services,06-Dec-2022,000010461663251,NSL MOTO,9222,Court costs 338048,99.00,0.00,99.00
Children and Young Peoples Services,Head of Childrens Social Care,085351,Framwellgate Moor CU,Supplies and Services,348037,Subsistence E348,06-Dec-2022,000010461663253,STARBUCKS,5814,Subsistence,3.70,0.00,3.70
Children and Young Peoples Services,Head of Childrens Social Care,085351,Framwellgate Moor CU,Supplies and Services,304403,Equipment and Materials,06-Dec-2022,000010461663255,AMZNMktplace,5999,Other consumables,7.99,0.00,7.99
Children and Young Peoples Services,Head of Childrens Social Care,085333,Coxhoe Satelite Home,Supplies and Services,324117,Provisions E324,06-Dec-2022,000010461663257,TESCO STORES 2916,5411,Catering costs - provisions,14.50,0.00,14.50
Children and Young Peoples Services,Head of Childrens Social Care,085333,Coxhoe Satelite Home,Supplies and Services,324117,Provisions E324,06-Dec-2022,000010461663259,TESCO STORES 2916,5411,Catering costs - provisions,124.92,0.00,124.92
Children and Young Peoples Services,Head of Education and Skills,071802,Louisa Cent Nursery,Supplies and Services,324117,Provisions E324,06-Dec-2022,000010461663265,ASDA SUPERSTORE,5411,Catering costs - provisions,11.24,0.00,11.24
Regeneration Economy and Growth,Culture Sport and Tourism,054233,Bishop Auckland Town Hall Library,Supplies and Services,324117,Provisions E324,06-Dec-2022,000010461663291,HERON FOODS,5411,Catering costs - provisions,34.00,0.00,34.00
Regeneration Economy and Growth,Culture Sport and Tourism,054233,Bishop Auckland Town Hall Library,Supplies and Services,324117,Provisions E324,06-Dec-2022,000010461663293,ASDA STORES,5411,Catering costs - provisions,13.90,0.00,13.90
Neighbourhoods and Climate Change,Environmental Services,010367,C&G - South Grounds Maintenance,Supplies and Services,304221,Equipment and Materials,06-Dec-2022,000010461663309,WWW.TUDORENVIRONMENTAL,5261,Direct materials,270.60,0.00,270.60
Resources BK0010,Procurement Sales & Business Services,065500,Business Support - Management,Supplies and Services,342033,Computers and Communications,06-Dec-2022,000010461663311,Zettle_ John Erwin,7333,Computer hardware,35.00,0.00,35.00
Regeneration Economy and Growth,Economic Development Level C,030554,International Relations 030554,Supplies and Services,352001,Conference Expenses,06-Dec-2022,000010461663369,Hotel at Booking.com,7011,Conferencesseminars fees etc,59.00,0.00,59.00
Regeneration Economy and Growth,Economic Development Level C,030554,International Relations 030554,Supplies and Services,352001,Conference Expenses,06-Dec-2022,000010461663371,Hotel at Booking.com,7011,Conferencesseminars fees etc,108.00,0.00,108.00
Regeneration Economy and Growth,Economic Development Level C,030554,International Relations 030554,Supplies and Services,352001,Conference Expenses,06-Dec-2022,000010461663373,Hotel at Booking.com,7011,Conferencesseminars fees etc,59.00,0.00,59.00
Regeneration Economy and Growth,Economic Development Level C,030554,International Relations 030554,Transport,235057,Public Transport,06-Dec-2022,000010461663375,UBER TRIP,4121,Staff travelling,5.10,0.00,5.10
Regeneration Economy and Growth,Corporate Property and Land,011275,Catering -Durham Leadership Centre,Supplies and Services,324117,Provisions E324,06-Dec-2022,000010461720663,JR HOLLAND FOODSERVICE,5499,Catering costs - provisions,101.70,0.00,101.70
Regeneration Economy and Growth,Culture Sport and Tourism,011265,Empire Theatre (Operations),Supplies and Services,324117,Provisions E324,06-Dec-2022,000010461720665,JR HOLLAND FOODSERVICE,5499,Catering costs - provisions,34.08,0.00,34.08
Regeneration Economy and Growth,Culture Sport and Tourism,054235,Bishop Auckland Town Hall Cafe,Supplies and Services,324117,Provisions E324,06-Dec-2022,000010461720667,JR HOLLAND FOODSERVICE,5499,Catering costs - provisions,180.88,0.00,180.88
Regeneration Economy and Growth,Culture Sport and Tourism,054812,Gala Theatre - Catering etc,Supplies and Services,324117,Provisions E324,06-Dec-2022,000010461720669,JR HOLLAND FOODSERVICE,5499,Catering costs - provisions,115.54,0.00,115.54
Children and Young Peoples Services,Head of Education and Skills,071801,Selby Cottage Childcare Centre,Supplies and Services,324117,Provisions E324,06-Dec-2022,000010462573385,ALDI 32 774,5411,Catering costs - provisions,27.99,0.00,27.99
Regeneration Economy and Growth,Planning & Housing,031500,Housing Solutions - Core,Supplies and Services,352001,Conference Expenses,06-Dec-2022,000010462573395,Roadchef Durham,7011,Conferencesseminars fees etc,108.00,0.00,108.00
Children and Young Peoples Services,Head of Childrens Social Care,085342,16 Hickstead Rise (previously 9 Cedar Ave),Supplies and Services,348037,Subsistence E348,06-Dec-2022,000010462573411,MCDONALDS,5814,Subsistence,19.86,0.00,19.86
Regeneration Economy and Growth,Culture Sport and Tourism,030712,VCD - Project Delivery,Supplies and Services,384199,Miscellaneous Expenses,06-Dec-2022,000010462573425,RADISSON BLU,3583,Other hired and contracted services,75.00,12.50,62.50
Children and Young Peoples Services,Head of Childrens Social Care,085342,16 Hickstead Rise (previously 9 Cedar Ave),Supplies and Services,348037,Subsistence E348,06-Dec-2022,000010462573437,GREGGS,5812,Subsistence,9.30,0.00,9.30
Resources BK0010,Procurement Sales & Business Services,065501,Business Support - Executive Support,Supplies and Services,352001,Conference Expenses,06-Dec-2022,000010462573523,H10 London Waterloo 2,7011,Conferencesseminars fees etc,155.00,0.00,155.00
Resources BK0010,Procurement Sales & Business Services,065501,Business Support - Executive Support,Supplies and Services,352001,Conference Expenses,06-Dec-2022,000010462573525,H10 London Waterloo 2,7011,Conferencesseminars fees etc,155.00,0.00,155.00
Resources BK0010,Procurement Sales & Business Services,065501,Business Support - Executive Support,Supplies and Services,352001,Conference Expenses,06-Dec-2022,000010462573527,H10 London Waterloo 2,7011,Conferencesseminars fees etc,155.00,0.00,155.00
Children and Young Peoples Services,Head of Early Help Inclusion & Vulnerable Children.,085957,Secure Management,Supplies and Services,304403,Equipment and Materials,06-Dec-2022,000010462573657,AMZNMKTPLACE AMAZON.CO,5999,Other consumables,28.38,4.74,23.64
Neighbourhoods and Climate Change,Partnerships & Community Engagement Div.,060700,Civil Contingencies Unit 060700,Supplies and Services,304403,Equipment and Materials,06-Dec-2022,000010462573819,AMZNMKTPLACE AMAZON.CO,5999,Other consumables,62.64,10.44,52.20
Neighbourhoods and Climate Change,Partnerships & Community Engagement Div.,060700,Civil Contingencies Unit 060700,Supplies and Services,304403,Equipment and Materials,06-Dec-2022,000010462573821,AMZNMKTPLACE AMAZON.CO,5999,Other consumables,62.64,10.44,52.20
Neighbourhoods and Climate Change,Partnerships & Community Engagement Div.,060700,Civil Contingencies Unit 060700,Supplies and Services,304403,Equipment and Materials,06-Dec-2022,000010462573829,AMZNMKTPLACE AMAZON.CO,5999,Other consumables,62.64,10.44,52.20
Neighbourhoods and Climate Change,Partnerships & Community Engagement Div.,060700,Civil Contingencies Unit 060700,Supplies and Services,304403,Equipment and Materials,06-Dec-2022,000010462573831,AMZNMKTPLACE AMAZON.CO,5999,Other consumables,62.64,10.44,52.20
Neighbourhoods and Climate Change,Partnerships & Community Engagement Div.,060700,Civil Contingencies Unit 060700,Supplies and Services,304403,Equipment and Materials,06-Dec-2022,000010462573833,AMZNMKTPLACE AMAZON.CO,5999,Other consumables,62.64,10.44,52.20
Children and Young Peoples Services,Head of Childrens Social Care,085334,West Rainton Satelite Home,Supplies and Services,304403,Equipment and Materials,06-Dec-2022,000010462573867,AMZNMKTPLACE AMAZON.CO,5999,Other consumables,4.36,0.73,3.63
Children and Young Peoples Services,Head of Childrens Social Care,085334,West Rainton Satelite Home,Supplies and Services,304403,Equipment and Materials,06-Dec-2022,000010462573869,AMZNMKTPLACE AMAZON.CO,5999,Other consumables,11.99,0.00,11.99
Regeneration Economy and Growth,Economic Development Level C,030554,International Relations 030554,Supplies and Services,352001,Conference Expenses,06-Dec-2022,000010462574051,Roadchef Durham,7011,Conferencesseminars fees etc,108.00,0.00,108.00
Regeneration Economy and Growth,Economic Development Level C,030554,International Relations 030554,Supplies and Services,352001,Conference Expenses,06-Dec-2022,000010462574053,Roadchef Durham,7011,Conferencesseminars fees etc,15.00,0.00,15.00
Regeneration Economy and Growth,Economic Development Level C,030554,International Relations 030554,Supplies and Services,352001,Conference Expenses,06-Dec-2022,000010462574055,Roadchef Durham,7011,Conferencesseminars fees etc,7.50,0.00,7.50
Regeneration Economy and Growth,Economic Development Level C,030554,International Relations 030554,Supplies and Services,352001,Conference Expenses,06-Dec-2022,000010462574057,Roadchef Durham,7011,Conferencesseminars fees etc,15.00,0.00,15.00
Regeneration Economy and Growth,Economic Development Level C,030554,International Relations 030554,Supplies and Services,352001,Conference Expenses,06-Dec-2022,000010462574059,Roadchef Durham,7011,Conferencesseminars fees etc,15.00,0.00,15.00
Regeneration Economy and Growth,Economic Development Level C,030554,International Relations 030554,Supplies and Services,352001,Conference Expenses,06-Dec-2022,000010462574061,Roadchef Durham,7011,Conferencesseminars fees etc,7.50,0.00,7.50
Regeneration Economy and Growth,Corporate Property and Land,030691,Catering - Durham Dales Centre,Supplies and Services,324117,Provisions E324,06-Dec-2022,000010462638283,BATLEYS PERTH,5300,Catering costs - provisions,-10.36,0.00,-10.36
Regeneration Economy and Growth,Culture Sport and Tourism,054235,Bishop Auckland Town Hall Cafe,Supplies and Services,324117,Provisions E324,06-Dec-2022,000010551269521,BATLEYS PERTH,5300,Catering costs - provisions,325.44,54.24,271.20
Regeneration Economy and Growth,Culture Sport and Tourism,054235,Bishop Auckland Town Hall Cafe,Supplies and Services,324117,Provisions E324,06-Dec-2022,000010551269521 - 1,BATLEYS PERTH,5300,Catering costs - provisions,257.57,,257.57
Children and Young Peoples Services,Head of Childrens Social Care,085358,Orchard House Sacriston Solo Home,Supplies and Services,372009,Subscriptions E372,07-Dec-2022,000010461662877,Netflix,4899,Subscriptions 372009,15.99,0.00,15.99
Children and Young Peoples Services,Head of Early Help Inclusion & Vulnerable Children.,074000,National Supporting Families Programme,Supplies and Services,342033,Computers and Communications,07-Dec-2022,000010461663193,FREEPIK & FLATICON,7333,Computer hardware,3.08,0.00,3.08
Resources BK0010,Procurement Sales & Business Services,065500,Business Support - Management,Supplies and Services,336005,Advertising E336,07-Dec-2022,000010461663313,LinkedIn 8532325504,7311,Advertising other than for staff,124.10,0.00,124.10
Regeneration Economy and Growth,Planning & Housing,031500,Housing Solutions - Core,Supplies and Services,352001,Conference Expenses,07-Dec-2022,000010462573397,Roadchef Durham,7011,Conferencesseminars fees etc,336.00,0.00,336.00
Children and Young Peoples Services,Head of Childrens Social Care,085341,High Etherley Satelite Home,Supplies and Services,304649,Equipment and Materials,07-Dec-2022,000010462573399,TESCO STORES 6329,5411,Toys,20.50,0.00,20.50
Regeneration Economy and Growth,Economic Development Level C,030773,CLLD North,Supplies and Services,348037,Subsistence E348,07-Dec-2022,000010462573405,CHESTER LE STREET,5814,Subsistence,2.15,0.00,2.15
Children and Young Peoples Services,Head of Education and Skills,078411,16-19 Education & Training,Supplies and Services,328041,Clothing uniforms and laundry E328,07-Dec-2022,000010462573409,NEW LOOK INTERNET,5621,Clothing uniforms and laundry,109.95,0.00,109.95
Children and Young Peoples Services,Head of Childrens Social Care,085342,16 Hickstead Rise (previously 9 Cedar Ave),Supplies and Services,328041,Clothing uniforms and laundry E328,07-Dec-2022,000010462573413,TK MAXX,5331,Clothing uniforms and laundry,8.98,0.00,8.98
Children and Young Peoples Services,Head of Childrens Social Care,085342,16 Hickstead Rise (previously 9 Cedar Ave),Supplies and Services,304999,Equipment and Materials,07-Dec-2022,000010462573415,SUPERDRUG STORES PLC,5912,Misc equipment tools and materials,38.34,0.00,38.34
Neighbourhoods and Climate Change,Environmental Services,010383,C&G - South Street Cleansing,Supplies and Services,304221,Equipment and Materials,07-Dec-2022,000010462573417,AZTEC CHEMICALS LTD,5169,Direct materials,337.68,56.28,281.40
Neighbourhoods and Climate Change,Environmental Services,010383,C&G - South Street Cleansing,Supplies and Services,304221,Equipment and Materials,07-Dec-2022,000010462573419,AZTEC CHEMICALS LTD,5169,Direct materials,287.86,47.98,239.88
Regeneration Economy and Growth,Culture Sport and Tourism,054798,dli Museum - WW1 Education Programme,Supplies and Services,304259,Equipment and Materials,07-Dec-2022,000010462573421,AMZNMktplace,5999,Equipment-purchase and rental,15.90,0.00,15.90
Children and Young Peoples Services,Head of Childrens Social Care,085332,Middlestone Moor CU,Supplies and Services,304999,Equipment and Materials,07-Dec-2022,000010462573431,HOME BARGAINS SPENNYMO,5251,Misc equipment tools and materials,112.35,0.00,112.35
Children and Young Peoples Services,Head of Childrens Social Care,085332,Middlestone Moor CU,Supplies and Services,324117,Provisions E324,07-Dec-2022,000010462573433,ASDA SUPERSTORE 4987,5411,Catering costs - provisions,47.02,0.00,47.02
Children and Young Peoples Services,Head of Childrens Social Care,085331,New Lea Childrens Home,Supplies and Services,324117,Provisions E324,07-Dec-2022,000010462573483,TESCO STORES 2278,5411,Catering costs - provisions,1.00,0.00,1.00
Children and Young Peoples Services,Head of Early Help Inclusion & Vulnerable Children.,088105,W/Close and Willington Family Centre,Supplies and Services,384302,Miscellaneous Expenses,07-Dec-2022,000010462573487,AMZNMktplace,5999,Activity expenses,13.99,2.33,11.66
Children and Young Peoples Services,Head of Early Help Inclusion & Vulnerable Children.,088105,W/Close and Willington Family Centre,Supplies and Services,384302,Miscellaneous Expenses,07-Dec-2022,000010462573489,AMZNMktplace,5999,Activity expenses,41.94,6.99,34.95
Children and Young Peoples Services,Head of Early Help Inclusion & Vulnerable Children.,088105,W/Close and Willington Family Centre,Supplies and Services,384302,Miscellaneous Expenses,07-Dec-2022,000010462573489 - 1,AMZNMktplace,5999,Activity expenses,0.03,,0.03
Children and Young Peoples Services,Head of Early Help Inclusion & Vulnerable Children.,088105,W/Close and Willington Family Centre,Supplies and Services,384302,Miscellaneous Expenses,07-Dec-2022,000010462573491,AMZNMktplace,5999,Activity expenses,69.90,11.65,58.25
Children and Young Peoples Services,Head of Early Help Inclusion & Vulnerable Children.,088105,W/Close and Willington Family Centre,Supplies and Services,384302,Miscellaneous Expenses,07-Dec-2022,000010462573491 - 1,AMZNMktplace,5999,Activity expenses,0.05,,0.05
Children and Young Peoples Services,Head of Early Help Inclusion & Vulnerable Children.,088105,W/Close and Willington Family Centre,Supplies and Services,384302,Miscellaneous Expenses,07-Dec-2022,000010462573493,AMZNMktplace,5999,Activity expenses,13.99,2.33,11.66
Regeneration Economy and Growth,Economic Development Level C,030544,Rural Employability - Client Engagement,Supplies and Services,304999,Equipment and Materials,07-Dec-2022,000010462573495,HAIRDRESSING SUPPLIES,7298,Misc equipment tools and materials,61.73,10.29,51.44
Regeneration Economy and Growth,Corporate Property and Land,021242,Catering - County Hall,Supplies and Services,324117,Provisions E324,07-Dec-2022,000010462573509,CO-OP GROUP FOOD,5411,Catering costs - provisions,6.15,0.00,6.15
Children and Young Peoples Services,Head of Childrens Social Care,085511,Emergency Duty Team,Supplies and Services,348037,Subsistence E348,07-Dec-2022,000010462573511,THE PUNCH BOWL,5812,Subsistence,45.00,0.00,45.00
Children and Young Peoples Services,Head of Childrens Social Care,085342,16 Hickstead Rise (previously 9 Cedar Ave),Supplies and Services,308011,Furniture,07-Dec-2022,000010462573533,THE RANGE,5719,Furniture repair and replacement,3.98,0.00,3.98
Children and Young Peoples Services,Head of Childrens Social Care,085342,16 Hickstead Rise (previously 9 Cedar Ave),Supplies and Services,324117,Provisions E324,07-Dec-2022,000010462573535,B&M 410 - DARLINGTON,5399,Catering costs - provisions,22.49,0.00,22.49
Children and Young Peoples Services,Head of Childrens Social Care,085342,16 Hickstead Rise (previously 9 Cedar Ave),Supplies and Services,304999,Equipment and Materials,07-Dec-2022,000010462573537,HOME BARGAINS,5251,Misc equipment tools and materials,5.91,0.00,5.91
Resources BK0010,Procurement Sales & Business Services,065504,Business Support - Meadowfield,Transport,215013,Running Costs of Vehicles,07-Dec-2022,000010462573557,DVLA VEHICLE TAX,9311,Vehicle Excise Duty (VED),302.50,0.00,302.50
Children and Young Peoples Services,Head of Childrens Social Care,085333,Coxhoe Satelite Home,Transport,235057,Public Transport,07-Dec-2022,000010462573587,WWW.GONORTHEAST.CO.UK,4111,Staff travelling,5.70,0.00,5.70
Children and Young Peoples Services,Head of Childrens Social Care,085521,Adolescent Safeguarding and Exploitation Team - ASET,Supplies and Services,304999,Equipment and Materials,07-Dec-2022,000010462573589,BOOTS UK ECOMM,5912,Misc equipment tools and materials,54.00,0.00,54.00
Adult and Health Services,Head of Adults,055202,Support and Recovery,Supplies and Services,304403,Equipment and Materials,07-Dec-2022,000010462573607,AMZNMktplace,5999,Other consumables,33.00,0.00,33.00
Children and Young Peoples Services,Head of Early Help Inclusion & Vulnerable Children.,085957,Secure Management,Supplies and Services,324117,Provisions E324,07-Dec-2022,000010462573609,PUREGUSTO COFFEE COMPA,5399,Catering costs - provisions,39.53,0.00,39.53
Regeneration Economy and Growth,Economic Development Level C,030771,Durham Advance Flexible Fund,Supplies and Services,324117,Provisions E324,07-Dec-2022,000010462573611,ASDA STORES,5411,Catering costs - provisions,50.00,0.00,50.00
Children and Young Peoples Services,Head of Childrens Social Care,085364,Children Looked After Team 1,Supplies and Services,328041,Clothing uniforms and laundry E328,07-Dec-2022,000010462573625,ARGOS LTD,5310,Clothing uniforms and laundry,51.00,0.00,51.00
Children and Young Peoples Services,Head of Early Help Inclusion & Vulnerable Children.,085957,Secure Management,Supplies and Services,328041,Clothing uniforms and laundry E328,07-Dec-2022,000010462573627,Footasylum Limited,5651,Clothing uniforms and laundry,22.99,0.00,22.99
Children and Young Peoples Services,Head of Early Help Inclusion & Vulnerable Children.,085957,Secure Management,Supplies and Services,328041,Clothing uniforms and laundry E328,07-Dec-2022,000010462573629,Blacks Outdoor Retail,5655,Clothing uniforms and laundry,99.00,0.00,99.00
Children and Young Peoples Services,Head of Early Help Inclusion & Vulnerable Children.,085957,Secure Management,Supplies and Services,384999,Miscellaneous Expenses,07-Dec-2022,000010462573631,Amazon.co.uk 1W9UT9KT4,5969,Other expenses,13.99,2.33,11.66
Children and Young Peoples Services,Head of Early Help Inclusion & Vulnerable Children.,085957,Secure Management,Supplies and Services,304403,Equipment and Materials,07-Dec-2022,000010462573633,AMZNMktplace,5999,Other consumables,7.93,1.32,6.61
Children and Young Peoples Services,Head of Early Help Inclusion & Vulnerable Children.,085957,Secure Management,Supplies and Services,304403,Equipment and Materials,07-Dec-2022,000010462573635,AMZNMktplace,5999,Other consumables,50.98,8.50,42.48
Children and Young Peoples Services,Head of Early Help Inclusion & Vulnerable Children.,085957,Secure Management,Supplies and Services,304403,Equipment and Materials,07-Dec-2022,000010462573637,AMZNMktplace,5999,Other consumables,17.64,2.94,14.70
Children and Young Peoples Services,Head of Early Help Inclusion & Vulnerable Children.,085957,Secure Management,Supplies and Services,304403,Equipment and Materials,07-Dec-2022,000010462573639,AMZNMktplace,5999,Other consumables,5.99,1.00,4.99
Children and Young Peoples Services,Head of Early Help Inclusion & Vulnerable Children.,085957,Secure Management,Supplies and Services,304403,Equipment and Materials,07-Dec-2022,000010462573641,AMZNMktplace,5999,Other consumables,9.95,1.66,8.29
Children and Young Peoples Services,Head of Early Help Inclusion & Vulnerable Children.,085957,Secure Management,Supplies and Services,304259,Equipment and Materials,07-Dec-2022,000010462573643,JD SPORTS INTERNET,5941,Equipment-purchase and rental,117.00,0.00,117.00
Children and Young Peoples Services,Head of Early Help Inclusion & Vulnerable Children.,085957,Secure Management,Supplies and Services,304259,Equipment and Materials,07-Dec-2022,000010462573645,JD SPORTS INTERNET,5941,Equipment-purchase and rental,75.00,0.00,75.00
Children and Young Peoples Services,Head of Early Help Inclusion & Vulnerable Children.,085957,Secure Management,Supplies and Services,304259,Equipment and Materials,07-Dec-2022,000010462573647,JD SPORTS INTERNET,5941,Equipment-purchase and rental,83.00,0.00,83.00
Children and Young Peoples Services,Head of Early Help Inclusion & Vulnerable Children.,085957,Secure Management,Supplies and Services,304259,Equipment and Materials,07-Dec-2022,000010462573649,JD SPORTS INTERNET,5941,Equipment-purchase and rental,205.00,0.00,205.00
Children and Young Peoples Services,Head of Early Help Inclusion & Vulnerable Children.,085957,Secure Management,Supplies and Services,384999,Miscellaneous Expenses,07-Dec-2022,000010462573651,WWW.ARGENTO.COM,5944,Other expenses,45.00,0.00,45.00
Children and Young Peoples Services,Head of Early Help Inclusion & Vulnerable Children.,085957,Secure Management,Supplies and Services,384999,Miscellaneous Expenses,07-Dec-2022,000010462573655,STRATTONS JEWELLERS,5944,Other expenses,60.00,0.00,60.00
Children and Young Peoples Services,Head of Early Help Inclusion & Vulnerable Children.,085957,Secure Management,Supplies and Services,304403,Equipment and Materials,07-Dec-2022,000010462573659,AMZNMKTPLACE AMAZON.CO,5999,Other consumables,20.98,0.00,20.98
Children and Young Peoples Services,Head of Early Help Inclusion & Vulnerable Children.,085957,Secure Management,Supplies and Services,324117,Provisions E324,07-Dec-2022,000010462573661,TESCO STORES 6329,5411,Catering costs - provisions,83.89,0.00,83.89
Children and Young Peoples Services,Head of Early Help Inclusion & Vulnerable Children.,085957,Secure Management,Supplies and Services,304999,Equipment and Materials,07-Dec-2022,000010462573663,SUPERDRUG STORES PLC,5912,Misc equipment tools and materials,9.99,0.00,9.99
Children and Young Peoples Services,Head of Childrens Social Care,085621,Families First Newton Aycliffe and Shildon,Supplies and Services,304403,Equipment and Materials,07-Dec-2022,000010462573697,AMZNMktplace,5999,Other consumables,35.98,6.00,29.98
Children and Young Peoples Services,Head of Childrens Social Care,085621,Families First Newton Aycliffe and Shildon,Supplies and Services,304403,Equipment and Materials,07-Dec-2022,000010462573699,AMZNBusiness 1W5WR6KR4,5999,Other consumables,6.45,0.00,6.45
Children and Young Peoples Services,Head of Childrens Social Care,085551,Short Break Services-Park Hse Sher,Supplies and Services,304259,Equipment and Materials,07-Dec-2022,000010462573727,PHOTOTRONICS SCHOLASTI,7221,Equipment-purchase and rental,17.00,0.00,17.00
Children and Young Peoples Services,Head of Childrens Social Care,085551,Short Break Services-Park Hse Sher,Supplies and Services,304999,Equipment and Materials,07-Dec-2022,000010462573729,HOME BARGAINS,5251,Misc equipment tools and materials,2.99,0.00,2.99
Resources BK0010,Procurement Sales & Business Services,065504,Business Support - Meadowfield,Supplies and Services,304403,Equipment and Materials,07-Dec-2022,000010462573771,AMZNMktplace,5999,Other consumables,7.95,0.00,7.95
Children and Young Peoples Services,Head of Education and Skills,071802,Louisa Cent Nursery,Supplies and Services,324117,Provisions E324,07-Dec-2022,000010462573775,ASDA SUPERSTORE,5411,Catering costs - provisions,28.70,0.00,28.70
Children and Young Peoples Services,Head of Education and Skills,071732,Dean Bank Childcare,Supplies and Services,324117,Provisions E324,07-Dec-2022,000010462573793,CO-OP GROUP 010518,5411,Catering costs - provisions,10.02,0.00,10.02
Resources BK0010,Procurement Sales & Business Services,065504,Business Support - Meadowfield,Supplies and Services,328041,Clothing uniforms and laundry E328,07-Dec-2022,000010462573795,ARGOS LTD,5310,Clothing uniforms and laundry,33.00,0.00,33.00
Resources BK0010,Procurement Sales & Business Services,065504,Business Support - Meadowfield,Supplies and Services,328041,Clothing uniforms and laundry E328,07-Dec-2022,000010462573797,ARGOS LTD,5310,Clothing uniforms and laundry,33.75,0.00,33.75
Neighbourhoods and Climate Change,Partnerships & Community Engagement Div.,060700,Civil Contingencies Unit 060700,Supplies and Services,304403,Equipment and Materials,07-Dec-2022,000010462573823,AMZNMKTPLACE AMAZON.CO,5999,Other consumables,62.64,10.44,52.20
Neighbourhoods and Climate Change,Partnerships & Community Engagement Div.,060700,Civil Contingencies Unit 060700,Supplies and Services,304403,Equipment and Materials,07-Dec-2022,000010462573825,AMZNMKTPLACE AMAZON.CO,5999,Other consumables,125.28,20.88,104.40
Neighbourhoods and Climate Change,Partnerships & Community Engagement Div.,060700,Civil Contingencies Unit 060700,Supplies and Services,304403,Equipment and Materials,07-Dec-2022,000010462573827,AMZNMKTPLACE AMAZON.CO,5999,Other consumables,62.64,10.44,52.20
Neighbourhoods and Climate Change,Partnerships & Community Engagement Div.,060700,Civil Contingencies Unit 060700,Supplies and Services,304403,Equipment and Materials,07-Dec-2022,000010462573835,AMZNMKTPLACE AMAZON.CO,5999,Other consumables,62.64,10.44,52.20
Neighbourhoods and Climate Change,Partnerships & Community Engagement Div.,060700,Civil Contingencies Unit 060700,Supplies and Services,304403,Equipment and Materials,07-Dec-2022,000010462573837,AMZNMKTPLACE AMAZON.CO,5999,Other consumables,62.64,10.44,52.20
Neighbourhoods and Climate Change,Partnerships & Community Engagement Div.,060700,Civil Contingencies Unit 060700,Supplies and Services,304403,Equipment and Materials,07-Dec-2022,000010462573839,AMZNMKTPLACE AMAZON.CO,5999,Other consumables,62.64,10.44,52.20
Neighbourhoods and Climate Change,Partnerships & Community Engagement Div.,060700,Civil Contingencies Unit 060700,Supplies and Services,304403,Equipment and Materials,07-Dec-2022,000010462573839 - 1,AMZNMKTPLACE AMAZON.CO,5999,Other consumables,0.03,,0.03
Neighbourhoods and Climate Change,Partnerships & Community Engagement Div.,060700,Civil Contingencies Unit 060700,Supplies and Services,304403,Equipment and Materials,07-Dec-2022,000010462573841,AMZNMKTPLACE AMAZON.CO,5999,Other consumables,62.64,10.44,52.20
Neighbourhoods and Climate Change,Partnerships & Community Engagement Div.,060700,Civil Contingencies Unit 060700,Supplies and Services,304403,Equipment and Materials,07-Dec-2022,000010462573843,AMZNMKTPLACE AMAZON.CO,5999,Other consumables,62.65,10.44,52.21
Neighbourhoods and Climate Change,Partnerships & Community Engagement Div.,060700,Civil Contingencies Unit 060700,Supplies and Services,304403,Equipment and Materials,07-Dec-2022,000010462573845,AMZNMKTPLACE AMAZON.CO,5999,Other consumables,62.64,10.44,52.20
Neighbourhoods and Climate Change,Partnerships & Community Engagement Div.,060700,Civil Contingencies Unit 060700,Supplies and Services,304403,Equipment and Materials,07-Dec-2022,000010462573847,AMZNMKTPLACE AMAZON.CO,5999,Other consumables,62.64,10.44,52.20
Neighbourhoods and Climate Change,Partnerships & Community Engagement Div.,060700,Civil Contingencies Unit 060700,Supplies and Services,304403,Equipment and Materials,07-Dec-2022,000010462573849,AMZNMKTPLACE AMAZON.CO,5999,Other consumables,62.64,10.44,52.20
Neighbourhoods and Climate Change,Partnerships & Community Engagement Div.,060700,Civil Contingencies Unit 060700,Supplies and Services,304403,Equipment and Materials,07-Dec-2022,000010462573851,AMZNMKTPLACE AMAZON.CO,5999,Other consumables,62.64,10.44,52.20
Neighbourhoods and Climate Change,Partnerships & Community Engagement Div.,060700,Civil Contingencies Unit 060700,Supplies and Services,304403,Equipment and Materials,07-Dec-2022,000010462573853,AMZNMKTPLACE AMAZON.CO,5999,Other consumables,62.64,10.44,52.20
Neighbourhoods and Climate Change,Partnerships & Community Engagement Div.,060700,Civil Contingencies Unit 060700,Supplies and Services,304403,Equipment and Materials,07-Dec-2022,000010462573855,AMZNMKTPLACE AMAZON.CO,5999,Other consumables,62.65,10.44,52.21
Neighbourhoods and Climate Change,Partnerships & Community Engagement Div.,060700,Civil Contingencies Unit 060700,Supplies and Services,304403,Equipment and Materials,07-Dec-2022,000010462573857,AMZNMKTPLACE AMAZON.CO,5999,Other consumables,62.65,10.44,52.21
Children and Young Peoples Services,Head of Childrens Social Care,085334,West Rainton Satelite Home,Supplies and Services,324117,Provisions E324,07-Dec-2022,000010462573861,TESCO STORES 2371,5411,Catering costs - provisions,9.65,0.00,9.65
Resources BK0010,Procurement Sales & Business Services,065502,Business Support - Crook,Supplies and Services,324117,Provisions E324,07-Dec-2022,000010462573873,ASDA GEORGE COM LEEDS,5411,Catering costs - provisions,41.00,0.00,41.00
Resources BK0010,Procurement Sales & Business Services,065502,Business Support - Crook,Supplies and Services,324117,Provisions E324,07-Dec-2022,000010462573875,ASDA GROCERIES ONLINE,5411,Catering costs - provisions,60.50,0.00,60.50
Children and Young Peoples Services,Head of Early Help Inclusion & Vulnerable Children.,085963,Maple House,Supplies and Services,372009,Subscriptions E372,07-Dec-2022,000010462573891,SHUTTERSTOCK IRELAND L,7333,Subscriptions 372009,34.80,0.00,34.80
Dedicated Schools Grant BG0015,DSG High Needs Block,079040,HNB Management and support,Supplies and Services,324117,Provisions E324,07-Dec-2022,000010462573899,ASDA GROCERIES ONLINE,5411,Catering costs - provisions,29.03,0.00,29.03
Children and Young Peoples Services,Head of Early Help Inclusion & Vulnerable Children.,085801,CDYJS - Support,Third Party Payments,430100,Rendered by Private Contractors,07-Dec-2022,000010462573913,VOUCHER EXPRESS,7399,Payments to sub-contractors,20.00,0.00,20.00
Children and Young Peoples Services,Head of Childrens Social Care,085333,Coxhoe Satelite Home,Supplies and Services,324117,Provisions E324,07-Dec-2022,000010462573927,H TAYLOR & SONS LTD,5422,Catering costs - provisions,26.19,0.00,26.19
Children and Young Peoples Services,Head of Childrens Social Care,085333,Coxhoe Satelite Home,Supplies and Services,328041,Clothing uniforms and laundry E328,07-Dec-2022,000010462573929,"W.BOYES & CO.,LIMITED",5311,Clothing uniforms and laundry,21.98,0.00,21.98
Children and Young Peoples Services,Head of Childrens Social Care,085333,Coxhoe Satelite Home,Supplies and Services,324117,Provisions E324,07-Dec-2022,000010462573931,SAINSBURY`S S/MKT,5411,Catering costs - provisions,112.79,0.00,112.79
Children and Young Peoples Services,Head of Childrens Social Care,085347,Solo Home The Manse,Supplies and Services,304999,Equipment and Materials,07-Dec-2022,000010462573939,CENTRE FOR LIFE - TIME,7991,Misc equipment tools and materials,2.60,0.00,2.60
Children and Young Peoples Services,Head of Childrens Social Care,085347,Solo Home The Manse,Supplies and Services,304999,Equipment and Materials,07-Dec-2022,000010462573941,INTERNATIONAL CENTRE F,7991,Misc equipment tools and materials,10.00,0.00,10.00
Children and Young Peoples Services,Head of Childrens Social Care,085347,Solo Home The Manse,Supplies and Services,304999,Equipment and Materials,07-Dec-2022,000010462573943,INTERNATIONAL CENTRE F,7991,Misc equipment tools and materials,8.35,0.00,8.35
Children and Young Peoples Services,Head of Childrens Social Care,085633,Families First Chester-Le-Street,Supplies and Services,364340,Grants to Voluntary Organisations,07-Dec-2022,000010462573949,WWW.GONORTHEAST.CO.UK,4111,Contact expenses,30.00,0.00,30.00
Children and Young Peoples Services,Head of Early Help Inclusion & Vulnerable Children.,088107,Wheatley Hill & N. Aycliffe Family Centre,Supplies and Services,304403,Equipment and Materials,07-Dec-2022,000010462573959,AMZNMKTPLACE AMAZON.CO,5999,Other consumables,16.99,2.83,14.16
Regeneration Economy and Growth,Culture Sport and Tourism,054233,Bishop Auckland Town Hall Library,Supplies and Services,324117,Provisions E324,07-Dec-2022,000010462573967,HERON FOODS,5411,Catering costs - provisions,9.90,0.00,9.90
Regeneration Economy and Growth,Culture Sport and Tourism,054233,Bishop Auckland Town Hall Library,Supplies and Services,324117,Provisions E324,07-Dec-2022,000010462573969,ASDA STORES,5411,Catering costs - provisions,47.77,0.00,47.77
Children and Young Peoples Services,Head of Childrens Social Care,085334,West Rainton Satelite Home,Supplies and Services,304403,Equipment and Materials,07-Dec-2022,000010462573979,AMZNMktplace,5999,Other consumables,295.01,0.00,295.01
Resources BK0010,Procurement Sales & Business Services,065501,Business Support - Executive Support,Supplies and Services,304403,Equipment and Materials,07-Dec-2022,000010462573981,AMZNMktplace,5999,Other consumables,244.98,40.83,204.15
Resources BK0010,Procurement Sales & Business Services,065501,Business Support - Executive Support,Supplies and Services,338048,Services,07-Dec-2022,000010462573983,ROYAL COURTS OF JUSTIC,9222,Court costs 338048,154.00,0.00,154.00
Resources BK0010,Procurement Sales & Business Services,065501,Business Support - Executive Support,Employees,040149,Recruitment Instruction and Training,07-Dec-2022,000010462573985,RICS COM GBP CYBS,8699,Training-all costs,138.00,0.00,138.00
Resources BK0010,Procurement Sales & Business Services,065500,Business Support - Management,Supplies and Services,304403,Equipment and Materials,07-Dec-2022,000010462573997,AMZNMktplace,5999,Other consumables,199.99,33.33,166.66
Resources BK0010,Procurement Sales & Business Services,065500,Business Support - Management,Supplies and Services,342033,Computers and Communications,07-Dec-2022,000010462573999,WPMU DEV INCSUBFEE.COM,7372,Computer hardware,15.63,0.00,15.63
Neighbourhoods and Climate Change,Community Protection,011035,Consumer Protection 011035,Supplies and Services,338048,Services,07-Dec-2022,000010462574009,HMCTS DURHAM012,9222,Court costs 338048,250.00,0.00,250.00
Children and Young Peoples Services,Head of Childrens Social Care,085341,High Etherley Satelite Home,Supplies and Services,304403,Equipment and Materials,07-Dec-2022,000010462574011,AMZNMktplace,5999,Other consumables,24.77,4.13,20.64
Neighbourhoods and Climate Change,Environmental Services,031200,North Pennines Core,Supplies and Services,304403,Equipment and Materials,07-Dec-2022,000010462574029,SAFELINCS,5999,Other consumables,-133.19,0.00,-133.19
Children and Young Peoples Services,Head of Early Help Inclusion & Vulnerable Children.,088113,Seaham & Laurel Avenue Family Centre,Supplies and Services,304999,Equipment and Materials,07-Dec-2022,000010462574039,HOME BARGAINS,5251,Misc equipment tools and materials,11.98,0.00,11.98
Children and Young Peoples Services,Head of Early Help Inclusion & Vulnerable Children.,088101,Bullion Lane & Brandon Family Centre,Supplies and Services,304403,Equipment and Materials,07-Dec-2022,000010462574045,AMZNMKTPLACE AMAZON.CO,5999,Other consumables,24.98,0.00,24.98
Regeneration Economy and Growth,Business Durham CL0850,030694,Plexus 2,Supplies and Services,324117,Provisions E324,07-Dec-2022,000010462574047,SAINSBURYS SMKTS,5411,Catering costs - provisions,119.50,0.00,119.50
Regeneration Economy and Growth,Economic Development Level C,030554,International Relations 030554,Supplies and Services,352001,Conference Expenses,07-Dec-2022,000010462574063,Booking BV s partners,7011,Conferencesseminars fees etc,48.93,0.00,48.93
Regeneration Economy and Growth,Economic Development Level C,030554,International Relations 030554,Supplies and Services,352001,Conference Expenses,07-Dec-2022,000010462574065,Booking BV s partners,7011,Conferencesseminars fees etc,48.93,0.00,48.93
Regeneration Economy and Growth,Economic Development Level C,030554,International Relations 030554,Supplies and Services,352001,Conference Expenses,07-Dec-2022,000010462574067,Roadchef Durham,7011,Conferencesseminars fees etc,7.50,0.00,7.50
Regeneration Economy and Growth,Economic Development Level C,030554,International Relations 030554,Supplies and Services,352001,Conference Expenses,07-Dec-2022,000010462574069,Roadchef Durham,7011,Conferencesseminars fees etc,7.50,0.00,7.50
Regeneration Economy and Growth,Economic Development Level C,030554,International Relations 030554,Supplies and Services,352001,Conference Expenses,07-Dec-2022,000010462574071,Roadchef Durham,7011,Conferencesseminars fees etc,7.50,0.00,7.50
Regeneration Economy and Growth,Economic Development Level C,030554,International Relations 030554,Supplies and Services,352001,Conference Expenses,07-Dec-2022,000010462574073,Roadchef Durham,7011,Conferencesseminars fees etc,7.50,0.00,7.50
Regeneration Economy and Growth,Economic Development Level C,030554,International Relations 030554,Supplies and Services,352001,Conference Expenses,07-Dec-2022,000010462574075,Roadchef Durham,7011,Conferencesseminars fees etc,15.00,0.00,15.00
Regeneration Economy and Growth,Corporate Property and Land,010525,Catering - Green Lane,Supplies and Services,324117,Provisions E324,07-Dec-2022,000010462638281,JR HOLLAND FOODSERVICE,5499,Catering costs - provisions,64.95,0.00,64.95
Regeneration Economy and Growth,Corporate Property and Land,021234,Catering - Locomotion,Supplies and Services,384999,Miscellaneous Expenses,07-Dec-2022,000010462638287,ON A ROLL SANDWICH COM,5199,Other expenses,231.17,0.00,231.17
Regeneration Economy and Growth,Corporate Property and Land,021234,Catering - Locomotion,Supplies and Services,324117,Provisions E324,07-Dec-2022,000010462638289,JR HOLLAND FOODSERVICE,5499,Catering costs - provisions,54.06,0.00,54.06
Regeneration Economy and Growth,Corporate Property and Land,021242,Catering - County Hall,Supplies and Services,384999,Miscellaneous Expenses,07-Dec-2022,000010462638291,ON A ROLL SANDWICH COM,5199,Other expenses,269.36,0.00,269.36
Regeneration Economy and Growth,Corporate Property and Land,021242,Catering - County Hall,Supplies and Services,324117,Provisions E324,07-Dec-2022,000010462638293,JR HOLLAND FOODSERVICE,5499,Catering costs - provisions,43.83,0.00,43.83
Regeneration Economy and Growth,Corporate Property and Land,021242,Catering - County Hall,Supplies and Services,324117,Provisions E324,07-Dec-2022,000010462638295,JR HOLLAND FOODSERVICE,5499,Catering costs - provisions,24.74,0.00,24.74
Regeneration Economy and Growth,Corporate Property and Land,021242,Catering - County Hall,Supplies and Services,324117,Provisions E324,07-Dec-2022,000010462638297,JR HOLLAND FOODSERVICE,5499,Catering costs - provisions,26.86,0.00,26.86
Regeneration Economy and Growth,Corporate Property and Land,021324,Catering - Meadowfield,Supplies and Services,324117,Provisions E324,07-Dec-2022,000010462638299,JR HOLLAND FOODSERVICE,5499,Catering costs - provisions,153.44,0.00,153.44
Children and Young Peoples Services,Head of Childrens Social Care,085342,16 Hickstead Rise (previously 9 Cedar Ave),Supplies and Services,324117,Provisions E324,07-Dec-2022,000010468426325,ALDI,5411,Catering costs - provisions,47.92,0.00,47.92
Adult and Health Services,Head of Adults,055302,Durham Pathways,Supplies and Services,324117,Provisions E324,07-Dec-2022,000010468426347,ALDI STORES,5411,Catering costs - provisions,3.89,0.00,3.89
Children and Young Peoples Services,Head of Childrens Social Care,085341,High Etherley Satelite Home,Supplies and Services,324117,Provisions E324,07-Dec-2022,000010468426369,774 026,5411,Catering costs - provisions,11.98,0.00,11.98
Children and Young Peoples Services,Head of Early Help Inclusion & Vulnerable Children.,085957,Secure Management,Supplies and Services,304403,Equipment and Materials,07-Dec-2022,000010468426451,AMZNMKTPLACE AMAZON.CO,5999,Other consumables,103.23,17.21,86.02
Children and Young Peoples Services,Head of Early Help Inclusion & Vulnerable Children.,085957,Secure Management,Supplies and Services,304403,Equipment and Materials,07-Dec-2022,000010468426453,AMZNMKTPLACE AMAZON.CO,5999,Other consumables,17.98,0.00,17.98
Neighbourhoods and Climate Change,Partnerships & Community Engagement Div.,060700,Civil Contingencies Unit 060700,Supplies and Services,304403,Equipment and Materials,07-Dec-2022,000010468426745,AMZNMKTPLACE AMAZON.CO,5999,Other consumables,62.64,10.44,52.20
Neighbourhoods and Climate Change,Partnerships & Community Engagement Div.,060700,Civil Contingencies Unit 060700,Supplies and Services,304403,Equipment and Materials,07-Dec-2022,000010468426745 - 1,AMZNMKTPLACE AMAZON.CO,5999,Other consumables,0.03,,0.03
Neighbourhoods and Climate Change,Partnerships & Community Engagement Div.,060700,Civil Contingencies Unit 060700,Supplies and Services,304403,Equipment and Materials,07-Dec-2022,000010468426751,AMZNMKTPLACE AMAZON.CO,5999,Other consumables,62.64,10.44,52.20
Neighbourhoods and Climate Change,Partnerships & Community Engagement Div.,060700,Civil Contingencies Unit 060700,Supplies and Services,304403,Equipment and Materials,07-Dec-2022,000010468426755,AMZNMKTPLACE AMAZON.CO,5999,Other consumables,41.76,6.96,34.80
Neighbourhoods and Climate Change,Partnerships & Community Engagement Div.,060700,Civil Contingencies Unit 060700,Supplies and Services,304403,Equipment and Materials,07-Dec-2022,000010468426759,AMZNMKTPLACE AMAZON.CO,5999,Other consumables,62.64,10.44,52.20
Neighbourhoods and Climate Change,Partnerships & Community Engagement Div.,060700,Civil Contingencies Unit 060700,Supplies and Services,304403,Equipment and Materials,07-Dec-2022,000010468426761,AMZNMKTPLACE AMAZON.CO,5999,Other consumables,62.64,10.44,52.20
Neighbourhoods and Climate Change,Partnerships & Community Engagement Div.,060700,Civil Contingencies Unit 060700,Supplies and Services,304403,Equipment and Materials,07-Dec-2022,000010468426763,AMZNMKTPLACE AMAZON.CO,5999,Other consumables,62.65,10.44,52.21
Neighbourhoods and Climate Change,Partnerships & Community Engagement Div.,060700,Civil Contingencies Unit 060700,Supplies and Services,304403,Equipment and Materials,07-Dec-2022,000010468426767,AMZNMKTPLACE AMAZON.CO,5999,Other consumables,62.65,10.44,52.21
Children and Young Peoples Services,Head of Childrens Social Care,085334,West Rainton Satelite Home,Supplies and Services,324117,Provisions E324,07-Dec-2022,000010468426777,ALDI 12 774,5411,Catering costs - provisions,42.80,0.00,42.80
Dedicated Schools Grant BG0015,DSG High Needs Block,079040,HNB Management and support,Supplies and Services,304403,Equipment and Materials,07-Dec-2022,000010468426875,AMZNMKTPLACE AMAZON.CO,5999,Other consumables,16.79,2.80,13.99
Resources BK0010,Procurement Sales & Business Services,065501,Business Support - Executive Support,Supplies and Services,304403,Equipment and Materials,07-Dec-2022,000010468427117,AMZNMKTPLACE AMAZON.CO,5999,Other consumables,7.98,1.33,6.65
Regeneration Economy and Growth,Business Durham CL0850,030689,Inward Investment and Aftercare,Supplies and Services,342222,Computers and Communications,07-Dec-2022,000010485638405,FASTHOSTS,4816,Comp hardware purch-network servers,6.34,0.00,6.34
Regeneration Economy and Growth,Culture Sport and Tourism,030705,Visit County Durham 030705,Supplies and Services,304259,Equipment and Materials,07-Dec-2022,000010485638451,FASTHOSTS,4816,Equipment-purchase and rental,6.34,0.00,6.34
Regeneration Economy and Growth,Business Durham CL0850,030689,Inward Investment and Aftercare,Supplies and Services,342033,Computers and Communications,08-Dec-2022,000010462573373,STK Shutterstock,7333,Computer hardware,19.00,0.00,19.00
Children and Young Peoples Services,Head of Childrens Social Care,085511,Emergency Duty Team,Supplies and Services,352001,Conference Expenses,08-Dec-2022,000010462573513,HARROWGATE HILL LODGE,7011,Conferencesseminars fees etc,48.00,0.00,48.00
Children and Young Peoples Services,Head of Early Help Inclusion & Vulnerable Children.,085957,Secure Management,Supplies and Services,328041,Clothing uniforms and laundry E328,08-Dec-2022,000010462573653,Nike GBP,5655,Clothing uniforms and laundry,95.97,0.00,95.97
Children and Young Peoples Services,Head of Early Help Inclusion & Vulnerable Children.,085957,Secure Management,Supplies and Services,304403,Equipment and Materials,08-Dec-2022,000010462573665,AMZNMktplace,5999,Other consumables,21.50,3.58,17.92
Resources BK0010,Procurement Sales & Business Services,065500,Business Support - Management,Supplies and Services,342033,Computers and Communications,08-Dec-2022,000010462574001,WPMU DEV INCSUBFEE.COM,7372,Computer hardware,0.43,0.00,0.43
Children and Young Peoples Services,Head of Education and Skills,071801,Selby Cottage Childcare Centre,Supplies and Services,304999,Equipment and Materials,08-Dec-2022,000010468426049,Amazon Prime 1W4GT39B4,5968,Misc equipment tools and materials,8.99,0.00,8.99
Children and Young Peoples Services,Head of Education and Skills,071801,Selby Cottage Childcare Centre,Supplies and Services,324117,Provisions E324,08-Dec-2022,000010468426051,TESCO STORES 2278,5411,Catering costs - provisions,15.79,0.00,15.79
Regeneration Economy and Growth,Planning & Housing,031500,Housing Solutions - Core,Supplies and Services,352001,Conference Expenses,08-Dec-2022,000010468426079,Hotel at Booking.com,7011,Conferencesseminars fees etc,236.00,0.00,236.00
Children and Young Peoples Services,Head of Education and Skills,078411,16-19 Education & Training,Supplies and Services,304221,Equipment and Materials,08-Dec-2022,000010468426103,WWW.SCREWFIX.COM,5211,Direct materials,4.98,0.83,4.15
Children and Young Peoples Services,Head of Education and Skills,078411,16-19 Education & Training,Supplies and Services,304221,Equipment and Materials,08-Dec-2022,000010468426103 - 1,WWW.SCREWFIX.COM,5211,Direct materials,20.01,,20.01
Children and Young Peoples Services,Head of Education and Skills,078411,16-19 Education & Training,Supplies and Services,304259,Equipment and Materials,08-Dec-2022,000010468426105,DURHAM COUNTY COUNCIL,9399,Equipment-purchase and rental,11.00,0.00,11.00
Children and Young Peoples Services,Head of Childrens Social Care,085342,16 Hickstead Rise (previously 9 Cedar Ave),Supplies and Services,328041,Clothing uniforms and laundry E328,08-Dec-2022,000010468426109,NEW LOOK,5621,Clothing uniforms and laundry,8.12,0.00,8.12
Children and Young Peoples Services,Head of Childrens Social Care,085342,16 Hickstead Rise (previously 9 Cedar Ave),Supplies and Services,324117,Provisions E324,08-Dec-2022,000010468426113,B&M 147 - FERRYHILL,5399,Catering costs - provisions,6.88,0.00,6.88
Regeneration Economy and Growth,Culture Sport and Tourism,030712,VCD - Project Delivery,Supplies and Services,384199,Miscellaneous Expenses,08-Dec-2022,000010468426131,PAYPAL WEBALON,5817,Other hired and contracted services,6.46,0.00,6.46
Regeneration Economy and Growth,Economic Development Level C,030771,Durham Advance Flexible Fund,Supplies and Services,304403,Equipment and Materials,08-Dec-2022,000010468426159,The Range,5719,Other consumables,15.49,0.00,15.49
Children and Young Peoples Services,Head of Early Help Inclusion & Vulnerable Children.,088108,Spennymoor & Shildon Intensive Family Support Team,Supplies and Services,384302,Miscellaneous Expenses,08-Dec-2022,000010468426253,TESCO STORES 6329,5411,Activity expenses,131.25,0.00,131.25
Children and Young Peoples Services,Head of Childrens Social Care,085331,New Lea Childrens Home,Supplies and Services,304259,Equipment and Materials,08-Dec-2022,000010468426257,JD SPORTS INTERNET,5941,Equipment-purchase and rental,100.00,0.00,100.00
Children and Young Peoples Services,Head of Early Help Inclusion & Vulnerable Children.,088105,W/Close and Willington Family Centre,Supplies and Services,324117,Provisions E324,08-Dec-2022,000010468426261,ASDA GROCERIES ONLINE,5411,Catering costs - provisions,288.84,0.00,288.84
Children and Young Peoples Services,Head of Childrens Social Care,085511,Emergency Duty Team,Supplies and Services,352001,Conference Expenses,08-Dec-2022,000010468426301,HARROWGATE HILL LODGE,7011,Conferencesseminars fees etc,48.00,0.00,48.00
Children and Young Peoples Services,Head of Childrens Social Care,085511,Emergency Duty Team,Supplies and Services,352001,Conference Expenses,08-Dec-2022,000010468426303,Roadchef Durham,7011,Conferencesseminars fees etc,49.00,0.00,49.00
Children and Young Peoples Services,Head of Education and Skills,071732,Dean Bank Childcare,Supplies and Services,324117,Provisions E324,08-Dec-2022,000010468426343,CO-OP GROUP 010503,5411,Catering costs - provisions,4.10,0.00,4.10
Children and Young Peoples Services,Head of Education and Skills,071732,Dean Bank Childcare,Supplies and Services,324117,Provisions E324,08-Dec-2022,000010468426345,B&M 035 - SHILDON,5399,Catering costs - provisions,76.56,0.00,76.56
Children and Young Peoples Services,Head of Childrens Social Care,085333,Coxhoe Satelite Home,Transport,235057,Public Transport,08-Dec-2022,000010468426365,WWW.GONORTHEAST.CO.UK,4111,Staff travelling,5.70,0.00,5.70
Children and Young Peoples Services,Head of Early Help Inclusion & Vulnerable Children.,085957,Secure Management,Supplies and Services,384999,Miscellaneous Expenses,08-Dec-2022,000010468426399,Amazon.co.uk 1W8060UY4,5969,Other expenses,14.29,2.38,11.91
Neighbourhoods and Climate Change,Environmental Services,010301,C&G - North Grounds Maintenance,Supplies and Services,328041,Clothing uniforms and laundry E328,08-Dec-2022,000010468426409,THE WORKS,5310,Clothing uniforms and laundry,31.50,0.00,31.50
Children and Young Peoples Services,Head of Childrens Social Care,085364,Children Looked After Team 1,Supplies and Services,304259,Equipment and Materials,08-Dec-2022,000010468426431,DURHAM COUNTY COUNCIL,9399,Equipment-purchase and rental,11.00,0.00,11.00
Children and Young Peoples Services,Head of Early Help Inclusion & Vulnerable Children.,085957,Secure Management,Supplies and Services,384999,Miscellaneous Expenses,08-Dec-2022,000010468426435,The Body Shop Internat,5977,Other expenses,33.99,0.00,33.99
Children and Young Peoples Services,Head of Early Help Inclusion & Vulnerable Children.,085957,Secure Management,Supplies and Services,304259,Equipment and Materials,08-Dec-2022,000010468426441,Amazon MP3,5735,Equipment-purchase and rental,0.98,0.00,0.98
Children and Young Peoples Services,Head of Early Help Inclusion & Vulnerable Children.,085957,Secure Management,Supplies and Services,304259,Equipment and Materials,08-Dec-2022,000010468426445,Amazon MP3,5735,Equipment-purchase and rental,0.98,0.00,0.98
Children and Young Peoples Services,Head of Early Help Inclusion & Vulnerable Children.,085957,Secure Management,Supplies and Services,304259,Equipment and Materials,08-Dec-2022,000010468426449,Amazon MP3,5735,Equipment-purchase and rental,0.98,0.00,0.98
Children and Young Peoples Services,Head of Early Help Inclusion & Vulnerable Children.,085957,Secure Management,Supplies and Services,304403,Equipment and Materials,08-Dec-2022,000010468426457,AMZNMKTPLACE AMAZON.CO,5999,Other consumables,7.64,1.27,6.37
Children and Young Peoples Services,Head of Early Help Inclusion & Vulnerable Children.,085957,Secure Management,Supplies and Services,304403,Equipment and Materials,08-Dec-2022,000010468426461,AMZNMKTPLACE AMAZON.CO,5999,Other consumables,9.99,1.67,8.32
Children and Young Peoples Services,Head of Early Help Inclusion & Vulnerable Children.,085957,Secure Management,Supplies and Services,324117,Provisions E324,08-Dec-2022,000010468426463,TESCO STORES 6329,5411,Catering costs - provisions,8.00,0.00,8.00
Neighbourhoods and Climate Change,Environmental Services,031200,North Pennines Core,Supplies and Services,312009,Newspapers books and periodicals E312,08-Dec-2022,000010468426487,WATERSTONES.COM,5942,Newspapers books and periodicals,80.00,0.00,80.00
Children and Young Peoples Services,Head of Education and Skills,070169,Durham SSP,Supplies and Services,304403,Equipment and Materials,08-Dec-2022,000010468426491,AMZNMktplace,5999,Other consumables,194.90,0.00,194.90
Neighbourhoods and Climate Change,Environmental Services,011177,C&G - Find & Fix,Supplies and Services,304221,Equipment and Materials,08-Dec-2022,000010468426527,DAVID BROWN TRANSPORT,5085,Direct materials,101.25,0.00,101.25
Children and Young Peoples Services,Head of Childrens Social Care,085551,Short Break Services-Park Hse Sher,Supplies and Services,324117,Provisions E324,08-Dec-2022,000010468426533,TESCO STORES 6329,5411,Catering costs - provisions,23.00,0.00,23.00
Adult and Health Services,Head of Adults,055302,Durham Pathways,Supplies and Services,328041,Clothing uniforms and laundry E328,08-Dec-2022,000010468426565,POUNDLAND,5310,Clothing uniforms and laundry,5.00,0.00,5.00
Regeneration Economy and Growth,Economic Development Level C,030554,International Relations 030554,Transport,235057,Public Transport,08-Dec-2022,000010468426571,3C_ NSL Durham WAP,7523,Staff travelling,2.40,0.00,2.40
Children and Young Peoples Services,Head of Education and Skills,071802,Louisa Cent Nursery,Supplies and Services,304403,Equipment and Materials,08-Dec-2022,000010468426639,AMZNMktplace,5999,Other consumables,9.30,1.56,7.74
Children and Young Peoples Services,Head of Education and Skills,071802,Louisa Cent Nursery,Supplies and Services,304403,Equipment and Materials,08-Dec-2022,000010468426643,AMZNMktplace,5999,Other consumables,7.49,1.25,6.24
Children and Young Peoples Services,Head of Education and Skills,071802,Louisa Cent Nursery,Supplies and Services,304403,Equipment and Materials,08-Dec-2022,000010468426645,AMZNMktplace,5999,Other consumables,12.99,2.17,10.82
Children and Young Peoples Services,Head of Education and Skills,071802,Louisa Cent Nursery,Supplies and Services,304403,Equipment and Materials,08-Dec-2022,000010468426647,AMZNMktplace,5999,Other consumables,25.98,4.34,21.64
Children and Young Peoples Services,Head of Education and Skills,071802,Louisa Cent Nursery,Supplies and Services,304403,Equipment and Materials,08-Dec-2022,000010468426649,AMZNMktplace,5999,Other consumables,28.53,4.76,23.77
Children and Young Peoples Services,Head of Education and Skills,071802,Louisa Cent Nursery,Supplies and Services,304403,Equipment and Materials,08-Dec-2022,000010468426651,AMZNMktplace,5999,Other consumables,15.95,2.66,13.29
Adult and Health Services,Head of Adults,055301,Stanley Pathways,Supplies and Services,304403,Equipment and Materials,08-Dec-2022,000010468426689,AMZNMKTPLACE AMAZON.CO,5999,Other consumables,7.39,1.23,6.16
Resources BK0010,Procurement Sales & Business Services,065504,Business Support - Meadowfield,Supplies and Services,328041,Clothing uniforms and laundry E328,08-Dec-2022,000010468426727,ARGOS LTD,5310,Clothing uniforms and laundry,33.00,0.00,33.00
Regeneration Economy and Growth,Corporate Property and Land,015015,FM-Civic Bldgs-Spectrum 8 Seaham,Supplies and Services,304403,Equipment and Materials,08-Dec-2022,000010468426771,AMZNMktplace,5999,Other consumables,6.24,1.05,5.19
Resources BK0010,Procurement Sales & Business Services,065502,Business Support - Crook,Supplies and Services,304403,Equipment and Materials,08-Dec-2022,000010468426795,AMZNMktplace,5999,Other consumables,29.49,4.92,24.57
Resources BK0010,Procurement Sales & Business Services,065502,Business Support - Crook,Supplies and Services,384237,Miscellaneous Expenses,08-Dec-2022,000010468426799,INFINITE AIR TRAMPOLIN,7999,Recreational exps outings parties,248.75,0.00,248.75
Resources BK0010,Procurement Sales & Business Services,065502,Business Support - Crook,Supplies and Services,348037,Subsistence E348,08-Dec-2022,000010468426803,THE SARNIE SALON,5812,Subsistence,85.50,0.00,85.50
Resources BK0010,Procurement Sales & Business Services,065502,Business Support - Crook,Supplies and Services,324117,Provisions E324,08-Dec-2022,000010468426805,ASDA GEORGE COM LEEDS,5411,Catering costs - provisions,8.00,0.00,8.00
Resources BK0010,Procurement Sales & Business Services,065502,Business Support - Crook,Supplies and Services,324117,Provisions E324,08-Dec-2022,000010468426807,ASDA GEORGE COM LEEDS,5411,Catering costs - provisions,55.95,0.00,55.95
Resources BK0010,Procurement Sales & Business Services,065502,Business Support - Crook,Supplies and Services,324117,Provisions E324,08-Dec-2022,000010468426809,ASDA GROCERIES ONLINE,5411,Catering costs - provisions,225.23,0.00,225.23
Resources BK0010,Procurement Sales & Business Services,065502,Business Support - Crook,Supplies and Services,324117,Provisions E324,08-Dec-2022,000010468426813,ASDA GROCERIES ONLINE,5411,Catering costs - provisions,400.43,0.00,400.43
Resources BK0010,Procurement Sales & Business Services,065502,Business Support - Crook,Supplies and Services,324117,Provisions E324,08-Dec-2022,000010468426815,ASDA GROCERIES ONLINE,5411,Catering costs - provisions,-5.05,0.00,-5.05
Resources BK0010,Procurement Sales & Business Services,065502,Business Support - Crook,Supplies and Services,324117,Provisions E324,08-Dec-2022,000010468426817,ASDA GROCERIES ONLINE,5411,Catering costs - provisions,-3.25,0.00,-3.25
Children and Young Peoples Services,Head of Early Help Inclusion & Vulnerable Children.,074000,National Supporting Families Programme,Supplies and Services,308011,Furniture,08-Dec-2022,000010468426827,Frank`s Flooring Bisho,5713,Furniture repair and replacement,250.00,0.00,250.00
Children and Young Peoples Services,Head of Early Help Inclusion & Vulnerable Children.,074000,National Supporting Families Programme,Supplies and Services,308011,Furniture,08-Dec-2022,000010468426833,J DODDS CARPETS LTD,5713,Furniture repair and replacement,250.00,0.00,250.00
Resources BK0010,Digital Services,065335,School Services - Implementations,Supplies and Services,304259,Equipment and Materials,08-Dec-2022,000010468426837,REPLACEBASE,5732,Equipment-purchase and rental,10.60,0.00,10.60
Resources BK0010,Digital Services,065335,School Services - Implementations,Supplies and Services,304259,Equipment and Materials,08-Dec-2022,000010468426841,REPLACEBASE,5732,Equipment-purchase and rental,11.14,0.00,11.14
Children and Young Peoples Services,Head of Early Help Inclusion & Vulnerable Children.,085965,Barnard,Supplies and Services,304259,Equipment and Materials,08-Dec-2022,000010468426853,Amazon.co.uk 1W2Z18UY4,5969,Equipment-purchase and rental,15.98,2.66,13.32
Children and Young Peoples Services,Head of Early Help Inclusion & Vulnerable Children.,085801,CDYJS - Support,Third Party Payments,430100,Rendered by Private Contractors,08-Dec-2022,000010468426911,EB CHILD TO PARENT AB,7399,Payments to sub-contractors,50.00,0.00,50.00
Children and Young Peoples Services,Head of Childrens Social Care,085351,Framwellgate Moor CU,Supplies and Services,384999,Miscellaneous Expenses,08-Dec-2022,000010468426941,York Dungeon,7922,Other expenses,15.95,0.00,15.95
Children and Young Peoples Services,Head of Childrens Social Care,085351,Framwellgate Moor CU,Supplies and Services,348037,Subsistence E348,08-Dec-2022,000010468426947,Wagamama Limited 201,5814,Subsistence,69.20,0.00,69.20
Children and Young Peoples Services,Head of Childrens Social Care,085351,Framwellgate Moor CU,Supplies and Services,324117,Provisions E324,08-Dec-2022,000010468426951,SP YORK COCOA HOUSE,5499,Catering costs - provisions,3.95,0.00,3.95
Children and Young Peoples Services,Head of Childrens Social Care,085351,Framwellgate Moor CU,Supplies and Services,348037,Subsistence E348,08-Dec-2022,000010468426955,Supreme Gourmet Events,5814,Subsistence,14.00,0.00,14.00
Children and Young Peoples Services,Head of Childrens Social Care,085351,Framwellgate Moor CU,Transport,235057,Public Transport,08-Dec-2022,000010468426957,FIRST YORK,4131,Staff travelling,7.00,0.00,7.00
Children and Young Peoples Services,Head of Childrens Social Care,085351,Framwellgate Moor CU,Supplies and Services,312009,Newspapers books and periodicals E312,08-Dec-2022,000010468426961,WH Smith York,5994,Newspapers books and periodicals,10.97,0.00,10.97
Children and Young Peoples Services,Head of Childrens Social Care,085351,Framwellgate Moor CU,Supplies and Services,304999,Equipment and Materials,08-Dec-2022,000010468426967,YORK,7991,Misc equipment tools and materials,6.96,0.00,6.96
Children and Young Peoples Services,Head of Childrens Social Care,085351,Framwellgate Moor CU,Supplies and Services,304999,Equipment and Materials,08-Dec-2022,000010468426971,YORK,7991,Misc equipment tools and materials,20.00,0.00,20.00
Children and Young Peoples Services,Head of Childrens Social Care,085351,Framwellgate Moor CU,Supplies and Services,304999,Equipment and Materials,08-Dec-2022,000010468426975,YORK,7991,Misc equipment tools and materials,5.00,0.00,5.00
Children and Young Peoples Services,Head of Childrens Social Care,085351,Framwellgate Moor CU,Supplies and Services,304403,Equipment and Materials,08-Dec-2022,000010468426977,YMEL,5947,Other consumables,2.95,0.00,2.95
Children and Young Peoples Services,Head of Childrens Social Care,085351,Framwellgate Moor CU,Supplies and Services,348037,Subsistence E348,08-Dec-2022,000010468426981,43048620 COSTA COFFEE,5814,Subsistence,7.85,0.00,7.85
Children and Young Peoples Services,Head of Childrens Social Care,085351,Framwellgate Moor CU,Supplies and Services,348037,Subsistence E348,08-Dec-2022,000010468426987,ROSE COTTAGE BUTCHERS,5812,Subsistence,3.00,0.00,3.00
Neighbourhoods and Climate Change,Environmental Services,031118,E&D - Seascape,Supplies and Services,324117,Provisions E324,08-Dec-2022,000010468426993,MARKS&SPENCER PLC SF,5411,Catering costs - provisions,8.10,0.00,8.10
Children and Young Peoples Services,Head of Early Help Inclusion & Vulnerable Children.,085962,Aycliffe Secure - Durham,Supplies and Services,304403,Equipment and Materials,08-Dec-2022,000010468427065,AMZNMKTPLACE AMAZON.CO,5999,Other consumables,11.99,2.00,9.99
Children and Young Peoples Services,Head of Early Help Inclusion & Vulnerable Children.,085962,Aycliffe Secure - Durham,Supplies and Services,304403,Equipment and Materials,08-Dec-2022,000010468427071,AMZNMKTPLACE AMAZON.CO,5999,Other consumables,28.99,4.83,24.16
Resources BK0010,Procurement Sales & Business Services,065501,Business Support - Executive Support,Employees,040149,Recruitment Instruction and Training,08-Dec-2022,000010468427105,WWW.TEAMTEACH.CO.UK,8299,Training-all costs,245.99,0.00,245.99
Resources BK0010,Procurement Sales & Business Services,065501,Business Support - Executive Support,Employees,040149,Recruitment Instruction and Training,08-Dec-2022,000010468427111,RICS SUBS UK CYBS,8699,Training-all costs,663.00,0.00,663.00
Resources BK0010,Procurement Sales & Business Services,065500,Business Support - Management,Supplies and Services,304259,Equipment and Materials,08-Dec-2022,000010468427135,APPLE.COM/BILL,5735,Equipment-purchase and rental,0.79,0.00,0.79
Resources BK0010,Procurement Sales & Business Services,065500,Business Support - Management,Supplies and Services,324117,Provisions E324,08-Dec-2022,000010468427141,ASDA GEORGE COM LEEDS,5411,Catering costs - provisions,74.50,0.00,74.50
Children and Young Peoples Services,Head of Childrens Social Care,085551,Short Break Services-Park Hse Sher,Supplies and Services,324117,Provisions E324,08-Dec-2022,000010468427173,TESCO STORES 2371,5411,Catering costs - provisions,128.98,0.00,128.98
Children and Young Peoples Services,Head of Early Help Inclusion & Vulnerable Children.,088113,Seaham & Laurel Avenue Family Centre,Supplies and Services,324117,Provisions E324,08-Dec-2022,000010468427209,B&M 681 - DURHAM,5399,Catering costs - provisions,449.63,0.00,449.63
Regeneration Economy and Growth,Economic Development Level C,030770,Durham Advance,Supplies and Services,304259,Equipment and Materials,08-Dec-2022,000010468427215,CURRYS ONLINE,5732,Equipment-purchase and rental,129.00,21.50,107.50
Regeneration Economy and Growth,Economic Development Level C,030554,International Relations 030554,Supplies and Services,352001,Conference Expenses,08-Dec-2022,000010468427247,Hotel at Booking.com,7011,Conferencesseminars fees etc,476.00,0.00,476.00
Regeneration Economy and Growth,Economic Development Level C,030554,International Relations 030554,Supplies and Services,352001,Conference Expenses,08-Dec-2022,000010468427251,Hotel at Booking.com,7011,Conferencesseminars fees etc,288.00,0.00,288.00
Regeneration Economy and Growth,Economic Development Level C,030554,International Relations 030554,Supplies and Services,352001,Conference Expenses,08-Dec-2022,000010468427255,Hotel at Booking.com,7011,Conferencesseminars fees etc,56.00,0.00,56.00
Regeneration Economy and Growth,Economic Development Level C,030554,International Relations 030554,Supplies and Services,352001,Conference Expenses,08-Dec-2022,000010468427257,Hotel at Booking.com,7011,Conferencesseminars fees etc,51.00,0.00,51.00
Regeneration Economy and Growth,Economic Development Level C,030554,International Relations 030554,Transport,235057,Public Transport,08-Dec-2022,000010468427261,UBER TRIP,4121,Staff travelling,34.55,0.00,34.55
Regeneration Economy and Growth,Economic Development Level C,030554,International Relations 030554,Transport,235057,Public Transport,08-Dec-2022,000010468427263,UBER TRIP,4121,Staff travelling,27.83,0.00,27.83
Regeneration Economy and Growth,Economic Development Level C,030554,International Relations 030554,Transport,235057,Public Transport,08-Dec-2022,000010468427265,UBER TRIP,4121,Staff travelling,24.84,0.00,24.84
Regeneration Economy and Growth,Economic Development Level C,030554,International Relations 030554,Supplies and Services,352001,Conference Expenses,08-Dec-2022,000010468427267,H52STANLEY,7011,Conferencesseminars fees etc,346.50,0.00,346.50
Regeneration Economy and Growth,Economic Development Level C,030554,International Relations 030554,Supplies and Services,352001,Conference Expenses,08-Dec-2022,000010468427269,Roadchef Durham,7011,Conferencesseminars fees etc,49.00,0.00,49.00
Regeneration Economy and Growth,Economic Development Level C,030554,International Relations 030554,Supplies and Services,352001,Conference Expenses,08-Dec-2022,000010468427271,Roadchef Durham,7011,Conferencesseminars fees etc,15.00,0.00,15.00
Regeneration Economy and Growth,Economic Development Level C,030554,International Relations 030554,Supplies and Services,352001,Conference Expenses,08-Dec-2022,000010468427275,Roadchef Durham,7011,Conferencesseminars fees etc,15.00,0.00,15.00
Regeneration Economy and Growth,Economic Development Level C,030554,International Relations 030554,Supplies and Services,352001,Conference Expenses,08-Dec-2022,000010468427277,Roadchef Durham,7011,Conferencesseminars fees etc,20.00,0.00,20.00
Regeneration Economy and Growth,Economic Development Level C,030554,International Relations 030554,Supplies and Services,352001,Conference Expenses,08-Dec-2022,000010468427281,Roadchef Durham,7011,Conferencesseminars fees etc,7.50,0.00,7.50
Regeneration Economy and Growth,Economic Development Level C,030554,International Relations 030554,Supplies and Services,352001,Conference Expenses,08-Dec-2022,000010468427283,Roadchef Durham,7011,Conferencesseminars fees etc,51.00,0.00,51.00
Regeneration Economy and Growth,Economic Development Level C,030554,International Relations 030554,Supplies and Services,352001,Conference Expenses,08-Dec-2022,000010468427287,Roadchef Durham,7011,Conferencesseminars fees etc,50.00,0.00,50.00
Children and Young Peoples Services,Head of Early Help Inclusion & Vulnerable Children.,088113,Seaham & Laurel Avenue Family Centre,Supplies and Services,384999,Miscellaneous Expenses,08-Dec-2022,000010468427297,Amazon.co.uk 1W1KC49Y4,5969,Other expenses,18.03,0.00,18.03
Children and Young Peoples Services,Head of Early Help Inclusion & Vulnerable Children.,071616,Seaham Childrens Centre,Supplies and Services,328041,Clothing uniforms and laundry E328,08-Dec-2022,000010468427299,ARGOS LTD,5310,Clothing uniforms and laundry,22.00,0.00,22.00
Resources BK0010,Procurement Sales & Business Services,065503,Business Support - Spectrum,Supplies and Services,324117,Provisions E324,08-Dec-2022,000010468427301,ASDA GROCERIES ONLINE,5411,Catering costs - provisions,50.50,0.00,50.50
Regeneration Economy and Growth,Corporate Property and Land,011296,Catering - Dunes,Supplies and Services,324117,Provisions E324,08-Dec-2022,000010468495207,JR HOLLAND FOODSERVICE,5499,Catering costs - provisions,71.34,0.00,71.34
Regeneration Economy and Growth,Corporate Property and Land,030691,Catering - Durham Dales Centre,Supplies and Services,324117,Provisions E324,08-Dec-2022,000010468495211,JR HOLLAND FOODSERVICE,5499,Catering costs - provisions,20.16,0.00,20.16
Regeneration Economy and Growth,Culture Sport and Tourism,054235,Bishop Auckland Town Hall Cafe,Supplies and Services,324117,Provisions E324,08-Dec-2022,000010468495213,JR HOLLAND FOODSERVICE,5499,Catering costs - provisions,145.88,0.00,145.88
Neighbourhoods and Climate Change,Environmental Services,011060,C&G - Hardwick Park Catering,Supplies and Services,324117,Provisions E324,08-Dec-2022,000010468495215,JR HOLLAND FOODSERVICE,5499,Catering costs - provisions,85.84,0.00,85.84
Children and Young Peoples Services,Head of Early Help Inclusion & Vulnerable Children.,085957,Secure Management,Supplies and Services,304403,Equipment and Materials,08-Dec-2022,000010475849589,AMZNMKTPLACE AMAZON.CO,5999,Other consumables,279.98,0.00,279.98
Children and Young Peoples Services,Head of Childrens Social Care,085342,16 Hickstead Rise (previously 9 Cedar Ave),Supplies and Services,324117,Provisions E324,08-Dec-2022,000010475849819,ALDI 74 774,5411,Catering costs - provisions,18.59,0.00,18.59
Children and Young Peoples Services,Head of Childrens Social Care,085341,High Etherley Satelite Home,Supplies and Services,324117,Provisions E324,08-Dec-2022,000010475849999,ASDA STORES LTD,5411,Catering costs - provisions,21.40,0.00,21.40
Children and Young Peoples Services,Head of Education and Skills,071802,Louisa Cent Nursery,Supplies and Services,324117,Provisions E324,08-Dec-2022,000010475850221,ALDI STORES,5411,Catering costs - provisions,15.37,0.00,15.37
Children and Young Peoples Services,Head of Childrens Social Care,085334,West Rainton Satelite Home,Supplies and Services,304403,Equipment and Materials,08-Dec-2022,000010475850429,AMZNMKTPLACE AMAZON.CO,5999,Other consumables,29.66,0.00,29.66
Children and Young Peoples Services,Head of Childrens Social Care,085334,West Rainton Satelite Home,Supplies and Services,304403,Equipment and Materials,08-Dec-2022,000010475850433,AMZNMKTPLACE AMAZON.CO,5999,Other consumables,33.61,0.00,33.61
Children and Young Peoples Services,Head of Childrens Social Care,085347,Solo Home The Manse,Supplies and Services,324117,Provisions E324,08-Dec-2022,000010475850567,ASDA SUPERSTORE,5411,Catering costs - provisions,23.52,0.00,23.52
Children and Young Peoples Services,Head of Childrens Social Care,085351,Framwellgate Moor CU,Transport,215995,Running Costs of Vehicles,08-Dec-2022,000010475850591,MFG BILBROUGH TOP SSTN,5541,Vehicle running expenses,20.01,0.00,20.01
Children and Young Peoples Services,Head of Childrens Social Care,085351,Framwellgate Moor CU,Supplies and Services,348037,Subsistence E348,08-Dec-2022,000010475850593,MCDONALDS,5812,Subsistence,15.27,0.00,15.27
Children and Young Peoples Services,Head of Childrens Social Care,085380,Service Manager CLA Fostering,Supplies and Services,324117,Provisions E324,08-Dec-2022,000010475850721,ASDA STORES,5411,Catering costs - provisions,9.48,0.00,9.48
Regeneration Economy and Growth,Culture Sport and Tourism,054233,Bishop Auckland Town Hall Library,Supplies and Services,324117,Provisions E324,08-Dec-2022,000010475850765,ASDA STORES,5411,Catering costs - provisions,27.62,0.00,27.62
Regeneration Economy and Growth,Economic Development Level C,030776,LINKCD Flexible Fund,Supplies and Services,324117,Provisions E324,08-Dec-2022,000010475850809,ASDA STORES LTD,5411,Catering costs - provisions,4.90,0.00,4.90
Children and Young Peoples Services,Head of Education and Skills,076001,Music Service,Supplies and Services,304403,Equipment and Materials,08-Dec-2022,000010475850939,AMZNBUSINESS 1W2I89WP4,5999,Other consumables,22.68,3.78,18.90
Children and Young Peoples Services,Head of Education and Skills,076001,Music Service,Supplies and Services,304403,Equipment and Materials,08-Dec-2022,000010475850939 - 1,AMZNBUSINESS 1W2I89WP4,5999,Other consumables,0.03,,0.03
Regeneration Economy and Growth,Business Durham CL0850,030689,Inward Investment and Aftercare,Supplies and Services,342222,Computers and Communications,08-Dec-2022,000010485638407,FASTHOSTS,4816,Comp hardware purch-network servers,63.00,0.00,63.00
Regeneration Economy and Growth,Business Durham CL0850,030689,Inward Investment and Aftercare,Supplies and Services,342222,Computers and Communications,08-Dec-2022,000010485638409,FASTHOSTS,4816,Comp hardware purch-network servers,7.54,0.00,7.54
Regeneration Economy and Growth,Corporate Property and Land,010525,Catering - Green Lane,Supplies and Services,324117,Provisions E324,08-Dec-2022,000010516692441,BATLEYS PERTH,5300,Catering costs - provisions,107.82,17.97,89.85
Regeneration Economy and Growth,Corporate Property and Land,010525,Catering - Green Lane,Supplies and Services,324117,Provisions E324,08-Dec-2022,000010516692441 - 1,BATLEYS PERTH,5300,Catering costs - provisions,46.10,,46.10
Neighbourhoods and Climate Change,Environmental Services,011060,C&G - Hardwick Park Catering,Supplies and Services,324117,Provisions E324,08-Dec-2022,000010516692449,BATLEYS PERTH,5300,Catering costs - provisions,228.00,38.00,190.00
Neighbourhoods and Climate Change,Environmental Services,011060,C&G - Hardwick Park Catering,Supplies and Services,324117,Provisions E324,08-Dec-2022,000010516692449 - 1,BATLEYS PERTH,5300,Catering costs - provisions,155.87,,155.87
Regeneration Economy and Growth,Corporate Property and Land,021235,Catering - Wharton Park,Supplies and Services,324117,Provisions E324,08-Dec-2022,000010516692455,BATLEYS PERTH,5300,Catering costs - provisions,9.36,1.56,7.80
Regeneration Economy and Growth,Corporate Property and Land,021235,Catering - Wharton Park,Supplies and Services,324117,Provisions E324,08-Dec-2022,000010516692455 - 1,BATLEYS PERTH,5300,Catering costs - provisions,35.25,,35.25
Children and Young Peoples Services,Head of Childrens Social Care,085521,Adolescent Safeguarding and Exploitation Team - ASET,Supplies and Services,328041,Clothing uniforms and laundry E328,09-Dec-2022,000010468426375,Nike GBP,5655,Clothing uniforms and laundry,164.95,0.00,164.95
Children and Young Peoples Services,Head of Childrens Social Care,085342,16 Hickstead Rise (previously 9 Cedar Ave),Supplies and Services,372009,Subscriptions E372,09-Dec-2022,000010468426655,Netflix,4899,Subscriptions 372009,15.99,0.00,15.99
Children and Young Peoples Services,Head of Education and Skills,078100,Curric and Professional Development 078100,Supplies and Services,342033,Computers and Communications,09-Dec-2022,000010468426781,STK Shutterstock,7333,Computer hardware,22.80,0.00,22.80
Children and Young Peoples Services,Head of Early Help Inclusion & Vulnerable Children.,085965,Barnard,Transfer Payments,515002,Social Services Clients,09-Dec-2022,000010468426859,Nike GBP,5655,Pocket money,95.97,0.00,95.97
Children and Young Peoples Services,Head of Early Help Inclusion & Vulnerable Children.,085957,Secure Management,Supplies and Services,384302,Miscellaneous Expenses,09-Dec-2022,000010468426863,Microsoft Subscription,5816,Activity expenses,10.99,0.00,10.99
Children and Young Peoples Services,Head of Education and Skills,071801,Selby Cottage Childcare Centre,Supplies and Services,324117,Provisions E324,09-Dec-2022,000010475848611,WM MORRISONS STORE,5411,Catering costs - provisions,7.65,0.00,7.65
Children and Young Peoples Services,Head of Education and Skills,075034,Youth Futures Foundation,Transport,235057,Public Transport,09-Dec-2022,000010475848665,ARRIVA UK BUS,4131,Staff travelling,19.00,0.00,19.00
Children and Young Peoples Services,Head of Education and Skills,078411,16-19 Education & Training,Supplies and Services,304221,Equipment and Materials,09-Dec-2022,000010475848731,WWW.SCREWFIX.COM,5211,Direct materials,34.99,5.83,29.16
Children and Young Peoples Services,Head of Education and Skills,078411,16-19 Education & Training,Transport,235057,Public Transport,09-Dec-2022,000010475848737,WWW.GONORTHEAST.CO.UK,4111,Staff travelling,-6.40,0.00,-6.40
Regeneration Economy and Growth,Culture Sport and Tourism,054966,Gala Theatre - Gala Productions,Supplies and Services,338047,Services,09-Dec-2022,000010475848771,RISUSLTDTRI,5945,Direct production costs,435.52,72.59,362.93
Children and Young Peoples Services,Head of Childrens Social Care,085332,Middlestone Moor CU,Supplies and Services,324117,Provisions E324,09-Dec-2022,000010475848811,TESCO STORES 2371,5411,Catering costs - provisions,159.60,0.00,159.60
Neighbourhoods and Climate Change,Environmental Services,010367,C&G - South Grounds Maintenance,Supplies and Services,304221,Equipment and Materials,09-Dec-2022,000010475848997,Toolstation Ltd,5211,Direct materials,40.68,6.78,33.90
Neighbourhoods and Climate Change,Environmental Services,010367,C&G - South Grounds Maintenance,Supplies and Services,304403,Equipment and Materials,09-Dec-2022,000010475849005,MAXWELLS DIY,5231,Other consumables,10.99,1.83,9.16
Children and Young Peoples Services,Head of Childrens Social Care,085331,New Lea Childrens Home,Supplies and Services,304259,Equipment and Materials,09-Dec-2022,000010475849017,MIDDLESBROUGH COUNCIL,9399,Equipment-purchase and rental,2.60,0.00,2.60
Children and Young Peoples Services,Head of Childrens Social Care,085511,Emergency Duty Team,Supplies and Services,352001,Conference Expenses,09-Dec-2022,000010475849077,Hotel at Booking.com,7011,Conferencesseminars fees etc,229.07,0.00,229.07
Children and Young Peoples Services,Head of Childrens Social Care,085511,Emergency Duty Team,Supplies and Services,352001,Conference Expenses,09-Dec-2022,000010475849081,Hotel at Booking.com,7011,Conferencesseminars fees etc,229.07,0.00,229.07
Children and Young Peoples Services,Head of Childrens Social Care,085511,Emergency Duty Team,Supplies and Services,352001,Conference Expenses,09-Dec-2022,000010475849085,H52STANLEY,7011,Conferencesseminars fees etc,211.50,0.00,211.50
Children and Young Peoples Services,Head of Childrens Social Care,085511,Emergency Duty Team,Supplies and Services,352001,Conference Expenses,09-Dec-2022,000010475849089,Hotel at Booking.com,7011,Conferencesseminars fees etc,-229.07,0.00,-229.07
Regeneration Economy and Growth,Economic Development Level C,030772,CLLD South,Transport,215995,Running Costs of Vehicles,09-Dec-2022,000010475849095,TESCO PAY AT PUMP 4214,5542,Vehicle running expenses,40.53,0.00,40.53
Adult and Health Services,Head of Adults,055807,Newton Aycliffe Pathways,Supplies and Services,324117,Provisions E324,09-Dec-2022,000010475849141,WILKO RETAIL LIMITED,5399,Catering costs - provisions,19.85,0.00,19.85
Children and Young Peoples Services,Head of Early Help Inclusion & Vulnerable Children.,088111,Easington Horden & Seascape Family Centre,Supplies and Services,384302,Miscellaneous Expenses,09-Dec-2022,000010475849263,High Street Vouchers,5311,Activity expenses,50.00,0.00,50.00
Children and Young Peoples Services,Head of Childrens Social Care,085358,Orchard House Sacriston Solo Home,Supplies and Services,384237,Miscellaneous Expenses,09-Dec-2022,000010475849339,Top Gear Karting,7999,Recreational exps outings parties,20.00,0.00,20.00
Children and Young Peoples Services,Head of Childrens Social Care,085358,Orchard House Sacriston Solo Home,Supplies and Services,328041,Clothing uniforms and laundry E328,09-Dec-2022,000010475849343,Get The Label,5655,Clothing uniforms and laundry,144.90,0.00,144.90
Resources BK0010,Digital Services,065351,Microsoft Office 365,Supplies and Services,372009,Subscriptions E372,09-Dec-2022,000010475849367,NOMINET UK,7392,Subscriptions 372009,23.40,3.90,19.50
Resources BK0010,Transactional & Customer Services,065184,Financial Assessments,Supplies and Services,372009,Subscriptions E372,09-Dec-2022,000010475849371,NOMINET UK,7392,Subscriptions 372009,23.40,3.90,19.50
Children and Young Peoples Services,Head of Education and Skills,071732,Dean Bank Childcare,Supplies and Services,304403,Equipment and Materials,09-Dec-2022,000010475849415,AMZNMktplace,5999,Other consumables,91.44,0.00,91.44
Regeneration Economy and Growth,Culture Sport and Tourism,054967,Theatre - Technical Staffing,Supplies and Services,304999,Equipment and Materials,09-Dec-2022,000010475849435,TOOLSTATION UK,5251,Misc equipment tools and materials,164.98,0.00,164.98
Regeneration Economy and Growth,Culture Sport and Tourism,054967,Theatre - Technical Staffing,Supplies and Services,324117,Provisions E324,09-Dec-2022,000010475849441,TESCO STORES 2371,5411,Catering costs - provisions,79.20,0.00,79.20
Neighbourhoods and Climate Change,Environmental Services,011060,C&G - Hardwick Park Catering,Supplies and Services,304083,Equipment and Materials,09-Dec-2022,000010475849455,Finerfilters Limited,5251,Catering equipment,46.78,0.00,46.78
